Directorate,Department,Expenditure Type,Ref.Doc.1,Vendor Name,Expenditure Amount (exc VAT),Payment Date
COMMERCIAL,ENVIRONMENT,Advertising,1000323701,TMP (UK) LTD,480,06/02/2020
COMMERCIAL,ENVIRONMENT,Equipment and Materials Purcha,1000313901,Sun Hill Surveys,"2,625.00",06/02/2020
COMMERCIAL,ENVIRONMENT,Other Services,1000645501,Macleod Simmonds Ltd,"21,172.10",20/02/2020
COMMERCIAL,ENVIRONMENT,Other Services,1000647601,Macleod Simmonds Ltd,"8,710.00",20/02/2020
COMMERCIAL,ENVIRONMENT,Other Services,1000640001,Conway Aecom Ltd,"27,219.15",20/02/2020
COMMERCIAL,ENVIRONMENT,Other Services,1000641501,Conway Aecom Ltd,"34,441.05",28/02/2020
COMMERCIAL,ENVIRONMENT,Other Services,1000642501,Conway Aecom Ltd,"45,887.75",28/02/2020
COMMERCIAL,ENVIRONMENT,Other Services,1000642601,Conway Aecom Ltd,"34,803.80",20/02/2020
COMMERCIAL,ENVIRONMENT,Other Services,1000649301,Conway Aecom Ltd,"48,255.25",20/02/2020
COMMERCIAL,ENVIRONMENT,Other Services,1000649401,Conway Aecom Ltd,624.5,20/02/2020
COMMERCIAL,ENVIRONMENT,Other Services,1000649901,Conway Aecom Ltd,"9,944.00",28/02/2020
COMMERCIAL,ENVIRONMENT,Other Services,1000650601,Conway Aecom Ltd,"2,143.16",20/02/2020
COMMERCIAL,ENVIRONMENT,Other Services,1000559201,Conway Aecom Ltd,300,11/02/2020
COMMERCIAL,ENVIRONMENT,Other Services,1000429202,TRANSPORT FOR LONDON,"7,459.85",20/02/2020
COMMERCIAL,ENVIRONMENT,Other Services,1000400102,Bouygues E&S Infrastructure UK,"3,066.83",12/02/2020
COMMERCIAL,ENVIRONMENT,Other Services,1000543001,Bouygues E&S Infrastructure UK,"18,555.54",10/02/2020
COMMERCIAL,ENVIRONMENT,Other Services,1000515401,Conway Aecom Ltd,"6,285.45",06/02/2020
COMMERCIAL,ENVIRONMENT,Other Services,1000554601,Conway Aecom Ltd,"8,886.60",11/02/2020
COMMERCIAL,ENVIRONMENT,Other Services,1000483902,Traffic Survey Partners (TSP) Ltd,570,12/02/2020
COMMERCIAL,ENVIRONMENT,Other Services,1000484402,Traffic Survey Partners (TSP) Ltd,340,12/02/2020
COMMERCIAL,ENVIRONMENT,Other Services,1000541401,XAIS Asset Management Ltd,"4,590.83",10/02/2020
COMMERCIAL,ENVIRONMENT,Other Services,1000696401,DAVID OGILVIE ENGINEERING LTD,"2,372.50",24/02/2020
COMMERCIAL,ENVIRONMENT,Other Services,1000693301,EARTH ANCHORS LTD,"3,005.00",24/02/2020
COMMERCIAL,ENVIRONMENT,Grounds maintenance,1000507601,IRIS GARDENING SERVICES LTD,675,05/02/2020
COMMERCIAL,ENVIRONMENT,Equipment and Materials Purcha,1000504301,Taylormade Castings Ltd,"4,160.00",05/02/2020
COMMERCIAL,ENVIRONMENT,Equipment and Materials Purcha,1000504601,Taylormade Castings Ltd,"7,670.00",05/02/2020
COMMERCIAL,ENVIRONMENT,Other Services,1000687101,Cycle Confident Ltd,"7,516.83",24/02/2020
COMMERCIAL,ENVIRONMENT,Other Services,1000697201,Stylebrands Marketing Ltd,"3,180.00",24/02/2020
COMMERCIAL,ENVIRONMENT,Other Services,1000655701,Intelligent Data Collection,810,20/02/2020
COMMERCIAL,ENVIRONMENT,Other Services,1000592701,Conway Aecom Ltd,"30,000.00",14/02/2020
COMMERCIAL,ENVIRONMENT,Other Services,1000553601,Traffic Survey Partners (TSP) Ltd,295,11/02/2020
COMMERCIAL,ENVIRONMENT,Other Services,1000399502,Bouygues E&S Infrastructure UK,"6,414.07",19/02/2020
COMMERCIAL,ENVIRONMENT,Other Services,1000219602,Bouygues E&S Infrastructure UK,"1,000.50",12/02/2020
COMMERCIAL,ENVIRONMENT,Advertising,1000560501,TMP (UK) LTD,566,11/02/2020
COMMERCIAL,ENVIRONMENT,Professional Services,1000437002,APPLEYARD & TREW LLP,"4,292.06",18/02/2020
COMMERCIAL,ENVIRONMENT,Professional Services,1000532001,BLAKEDOWN LANDSCAPE (SE) LTD,"210,065.97",28/02/2020
COMMERCIAL,ENVIRONMENT,Equipment and Materials Purcha,1000598901,Taylormade Castings Ltd,"2,750.00",19/02/2020
COMMERCIAL,ENVIRONMENT,Professional Services,1000073102,London Underground Ltd,82,28/02/2020
COMMERCIAL,ENVIRONMENT,Professional Services,1000067202,Emergent Vernacular Architecture Ltd,"15,434.72",11/02/2020
COMMERCIAL,ENVIRONMENT,Equipment and Materials Purcha,1000016101,Conway Aecom Ltd,300,27/02/2020
COMMERCIAL,ENVIRONMENT,Other Services,1000690201,Conway Aecom Ltd,567,24/02/2020
COMMERCIAL,ENVIRONMENT,Other Services,1000690401,Conway Aecom Ltd,"1,398.60",24/02/2020
COMMERCIAL,ENVIRONMENT,Other Services,1000690701,Conway Aecom Ltd,655.2,24/02/2020
COMMERCIAL,ENVIRONMENT,Other Services,1000691301,Conway Aecom Ltd,"1,058.40",24/02/2020
COMMERCIAL,HOUSING REVENUE ACCOUNT,Professional Services,1000412402,THE BARNETGROUP LIMITED,"1,371,000.00",13/02/2020
COMMERCIAL,HOUSING REVENUE ACCOUNT,Professional Services,1000666102,THE BARNETGROUP LIMITED,"1,469,000.00",26/02/2020
COMMERCIAL,HOUSING REVENUE ACCOUNT,Other Agencies - Third Party P,1000412802,THE BARNETGROUP LIMITED,"1,299,000.00",13/02/2020
COMMERCIAL,HOUSING REVENUE ACCOUNT,Other Agencies - Third Party P,1000705401,THE BARNETGROUP LIMITED,"131,668.96",27/02/2020
COMMERCIAL,HOUSING REVENUE ACCOUNT,Other Agencies - Third Party P,1000413902,THE BARNETGROUP LIMITED,"3,606,000.00",13/02/2020
Commercial,HRA,Consultants Fees,1000700502,THE BARNETGROUP LIMITED,"4,540.99",28/02/2020
Commercial,HRA,Consultants Fees,1000722502,THE BARNETGROUP LIMITED,"6,100.00",28/02/2020
Commercial,HRA,Consultants Fees,1000727402,THE BARNETGROUP LIMITED,"5,510.56",28/02/2020
Commercial,HRA,Consultants Fees,1000639402,PRIORITY ESTATES PROJECT LTD,"2,095.50",20/02/2020
Commercial,HRA,Consultants Fees,1000679501,PRIORITY ESTATES PROJECT LTD,"2,724.15",21/02/2020
Commercial,HRA,Advertising,60144983,TMP (UK) LTD,216,18/02/2020
Commercial,HRA,Advertising,60145015,TMP (UK) LTD,296,18/02/2020
Commercial,HRA,Advertising,1000719301,TMP (UK) LTD,584.5,28/02/2020
Commercial,HRA,Other Services,1000720802,THE BARNETGROUP LIMITED,"35,416.00",28/02/2020
Commercial,HRA,Consultants Fees,1000524001,TBG Open Door Limited,"2,500.00",07/02/2020
Commercial,HRA,Other Services,1000415502,THE BARNETGROUP LIMITED,"2,020,145.93",26/02/2020
Commercial,HRA,Miscellaneous Expenses,1000705901,THE BARNETGROUP LIMITED,"63,250.00",27/02/2020
Commercial,HRA,Private Contractors - Third Pa,80033445,REDACTED - PERSONAL DATA,"1,500.00",19/02/2020
Commercial,HRA,Consultants Fees,1000575202,Microfish Communications Ltd,"1,359.91",13/02/2020
Commercial,HRA,Consultants Fees,1000719401,AD HOC PROPERTY MANAGEMENT LTD,505,28/02/2020
Commercial,Regional Enterprise,Equipment and Materials Purcha,1000434502,Enforcement Services Ltd,"9,880.00",18/02/2020
Commercial,Regional Enterprise,Equipment and Materials Purcha,1000503602,Enforcement Services Ltd,"8,420.00",12/02/2020
Commercial,Regional Enterprise,Other Services,1000515001,Conway Aecom Ltd,"22,574.71",06/02/2020
Commercial,Regional Enterprise,Other Services,1000515301,Conway Aecom Ltd,"2,562.50",06/02/2020
Commercial,Regional Enterprise,Other Services,1000517901,Conway Aecom Ltd,"1,688.88",06/02/2020
Commercial,Regional Enterprise,Other Services,60145234,Affinity For Business,32.79,25/02/2020
Commercial,Regional Enterprise,Other Services,1000334602,Affinity For Business,286.12,26/02/2020
Commercial,Regional Enterprise,Other Services,1000338102,Castle Water Ltd,26.33,12/02/2020
Commercial,Regional Enterprise,Other Services,1000353402,Castle Water Ltd,23.91,05/02/2020
Commercial,Regional Enterprise,Other Services,1000621402,Castle Water Ltd,24.17,18/02/2020
Commercial,Regional Enterprise,Other Services,1000622502,Castle Water Ltd,8.66,18/02/2020
Commercial,Regional Enterprise,Other Services,1000636202,Castle Water Ltd,135.14,19/02/2020
Commercial,Regional Enterprise,Other Services,1000636502,Castle Water Ltd,27.21,19/02/2020
Commercial,Regional Enterprise,Other Services,1000637702,Castle Water Ltd,53.53,19/02/2020
Commercial,Regional Enterprise,Other Services,60140786,KENT COUNTY COUNCIL (KCS),60.02,06/02/2020
Commercial,Regional Enterprise,Advertising,1000561301,TMP (UK) LTD,179,11/02/2020
Commercial,Regional Enterprise,Professional Services,1000492201,WATES PROPERTY SERVICES LTD,296.14,06/02/2020
Commercial,Regional Enterprise,Other Services,1000400402,Bouygues E&S Infrastructure UK,152.3,12/02/2020
Commercial,Regional Enterprise,Other Services,1000553001,TMP (UK) LTD,296,11/02/2020
Commercial,Regional Enterprise,Advertising,1000710701,TMP (UK) LTD,570,28/02/2020
Commercial,Regional Enterprise,Other Services,1000365401,RM COUNTRYSIDE SERVICES LTD,180,18/02/2020
Commercial,Regional Enterprise,Other Services,1000733801,RM COUNTRYSIDE SERVICES LTD,275,28/02/2020
Commercial,Regional Enterprise,Professional Services,1000515502,PUBLIC ANALYST SCIENTIFIC SERVS. LT,300,07/02/2020
Commercial,Regional Enterprise,Other Services,60143111,Conway Aecom Ltd,46.11,12/02/2020
Commercial,Regional Enterprise,Other Services,1000689001,Conway Aecom Ltd,213.13,24/02/2020
Commercial,Regional Enterprise,Other Services,1000689101,Conway Aecom Ltd,127.06,24/02/2020
Commercial,Regional Enterprise,Other Services,1000689501,Conway Aecom Ltd,501.23,24/02/2020
Commercial,Regional Enterprise,Other Services,1000690301,Conway Aecom Ltd,317.67,24/02/2020
Commercial,Regional Enterprise,Other Services,1000690601,Conway Aecom Ltd,319.95,24/02/2020
Commercial,Regional Enterprise,Other Services,1000690801,Conway Aecom Ltd,127.06,24/02/2020
Commercial,Regional Enterprise,Other Services,1000691101,Conway Aecom Ltd,101.67,24/02/2020
Commercial,Regional Enterprise,Other Services,1000691901,Conway Aecom Ltd,"1,046.60",24/02/2020
Commercial,Regional Enterprise,Other Services,1000692301,Conway Aecom Ltd,127.06,24/02/2020
Commercial,Regional Enterprise,Other Services,1000692601,Conway Aecom Ltd,623.85,24/02/2020
Commercial,Regional Enterprise,Other Services,1000692801,Conway Aecom Ltd,495.86,24/02/2020
Commercial,Regional Enterprise,Other Services,1000695501,Conway Aecom Ltd,254.14,24/02/2020
Commercial,Regional Enterprise,Other Services,1000696201,Conway Aecom Ltd,374.78,24/02/2020
Commercial,Regional Enterprise,Other Services,1000697601,Conway Aecom Ltd,365.61,24/02/2020
Commercial,Regional Enterprise,Other Services,1000605301,RM COUNTRYSIDE SERVICES LTD,"1,435.00",18/02/2020
Commercial,Regional Enterprise,Other Services,1000738301,RM COUNTRYSIDE SERVICES LTD,932,28/02/2020
Commercial,Regional Enterprise,Other Services,1000547701,CAPITAL  LOCKSMITHS,174.2,12/02/2020
Commercial,Regional Enterprise,Other Services,1000548401,Conway Aecom Ltd,945,11/02/2020
Commercial,Regional Enterprise,Other Services,1000548701,Conway Aecom Ltd,"1,209.60",11/02/2020
Commercial,Regional Enterprise,Other Services,1000549101,Conway Aecom Ltd,604.8,11/02/2020
Commercial,Regional Enterprise,Other Services,1000550101,Conway Aecom Ltd,831.6,11/02/2020
Commercial,Regional Enterprise,Other Services,1000553101,Conway Aecom Ltd,507.15,11/02/2020
Commercial,Regional Enterprise,Other Services,1000553401,Conway Aecom Ltd,"1,048.95",11/02/2020
Commercial,Regional Enterprise,Other Services,1000556701,Conway Aecom Ltd,982.8,11/02/2020
Commercial,Regional Enterprise,Other Services,1000556801,Conway Aecom Ltd,"1,917.30",11/02/2020
Commercial,Regional Enterprise,Other Services,1000557201,Conway Aecom Ltd,"1,134.00",11/02/2020
Commercial,Regional Enterprise,Other Services,1000558401,Conway Aecom Ltd,"1,209.60",11/02/2020
Commercial,Regional Enterprise,Other Services,1000558601,Conway Aecom Ltd,680.4,11/02/2020
Commercial,Regional Enterprise,Other Services,1000558901,Conway Aecom Ltd,787.5,11/02/2020
Commercial,Regional Enterprise,Consultants Fees,1000653501,Gowling WLG,"3,503.68",20/02/2020
Commercial,Regional Enterprise,RE Services Contract Payment,1000531401,RE (REGIONAL ENTERPRISE) LIMITED,"22,189.28",07/02/2020
Commercial,Regional Enterprise,Consultants Fees,1000616801,CBRE INDIRECT INVESTMENT SERVS. LTD,"50,000.00",20/02/2020
Commercial,Regional Enterprise,Consultants Fees,1000653301,Gowling WLG,"3,728.28",20/02/2020
Commercial,Regional Enterprise,Consultants Fees,1000654501,Gowling WLG,"17,404.56",20/02/2020
Commercial,Regional Enterprise,RE Services Contract Payment,1000534001,RE (REGIONAL ENTERPRISE) LIMITED,"50,212.02",07/02/2020
Commercial,Regional Enterprise,Professional Services,1000707601,RE (REGIONAL ENTERPRISE) LIMITED,"87,028.65",27/02/2020
Commercial,Regional Enterprise,Fees and Charges,1000491901,WATES PROPERTY SERVICES LTD,28.2,06/02/2020
Commercial,Regional Enterprise,Fees and Charges,1000567501,WATES PROPERTY SERVICES LTD,"2,432.60",12/02/2020
Commercial,Regional Enterprise,Professional Services,1000739201,WATES PROPERTY SERVICES LTD,"3,750.19",28/02/2020
Commercial,Regional Enterprise,Professional Services,1000743101,WATES PROPERTY SERVICES LTD,26.38,28/02/2020
Commercial,Regional Enterprise,RE Services Contract Payment,1000476702,RE (REGIONAL ENTERPRISE) LIMITED,"683,500.00",12/02/2020
Corporate Accounting,Corporate Accounting,Other Local Authorities - Thir,80033081,GLA LEVIES,"4,665,343.56",05/02/2020
Corporate Accounting,Corporate Accounting,Other Local Authorities - Thir,80033084,GLA LEVIES,"1,519,940.00",05/02/2020
Corporate Accounting,Corporate Accounting,Other Local Authorities - Thir,80033086,GLA LEVIES,"227,824.00",05/02/2020
Corporate Accounting,Corporate Accounting,Other Agencies - Third Party P,1000413802,THE BARNETGROUP LIMITED,"91,666.67",12/02/2020
Corporate Accounting,Corporate Accounting,Other Agencies - Third Party P,1000665902,THE BARNETGROUP LIMITED,"91,666.64",26/02/2020
DELIVERY UNITS,ADULTS AND COMMUNITIES,Consultants Fees,1000631002,Better Group Limited,"88,996.00",19/02/2020
DELIVERY UNITS,ADULTS AND COMMUNITIES,Consultants Fees,1000646702,Better Group Limited,"88,996.00",20/02/2020
DELIVERY UNITS,ADULTS AND COMMUNITIES,Consultants Fees,1000647002,Better Group Limited,"88,996.00",20/02/2020
DELIVERY UNITS,ADULTS AND COMMUNITIES,Consultants Fees,1000660102,Better Group Limited,"88,996.00",21/02/2020
DELIVERY UNITS,ADULTS AND COMMUNITIES,Ttl IT & Comms,10015539,Servelec Synergy Ltd,"16,500.00",06/02/2020
DELIVERY UNITS,ADULTS AND COMMUNITIES,Ttl IT & Comms,1000403802,Trojan Consultants Ltd,"2,406.00",04/02/2020
DELIVERY UNITS,ADULTS AND COMMUNITIES,Ttl IT & Comms,1000477101,Trojan Consultants Ltd,"2,210.00",03/02/2020
Delivery Units,Adults and Health,Voluntary Associations - Third,50008603,BARNET MENCAP,"11,142.65",18/02/2020
Delivery Units,Adults and Health,Voluntary Associations - Third,50008605,METROPOLITAN SUPPORT TRUST,"5,626.00",18/02/2020
Delivery Units,Adults and Health,Voluntary Associations - Third,50008606,SANCTUARY HOUSING ASSOCIATION,"6,065.28",18/02/2020
Delivery Units,Adults and Health,Equipment and Materials Purcha,1000577402,Millbrook Healthcare Ltd,"37,249.45",24/02/2020
Delivery Units,Adults and Health,Voluntary Associations - Third,50008602,AGE CONCERN,"58,333.00",18/02/2020
Delivery Units,Adults and Health,Other Transfer Payments to Soc,1000493102,BARNET CITIZENS ADVICE BUREAU,"61,075.25",04/02/2020
Delivery Units,Adults and Health,Professional Services,1000495502,BARNET CITIZENS ADVICE BUREAU,"87,955.25",04/02/2020
Delivery Units,Adults and Health,Voluntary Associations - Third,50008604,BARNET MENCAP,"18,249.66",18/02/2020
Delivery Units,Adults and Health,Other Transfer Payments to Soc,1000581902,MIDDLESEX ASSOCIATION  FOR THE BLIN,"1,512.12",14/02/2020
Delivery Units,Adults and Health,Other Services,1000506402,COMMUNITY BARNET,"10,666.67",06/02/2020
Delivery Units,Adults and Health,Other Services,1000478001,Hasca Ltd,800,03/02/2020
Delivery Units,Adults and Health,Advertising,1000360002,TMP (UK) LTD,795.61,12/02/2020
Delivery Units,Adults and Health,Stationery,1000314202,Staples UK Ltd,55.52,12/02/2020
Delivery Units,Adults and Health,Non Education Staff GPay,1000741202,Capita Employee Benefits,"150,583.77",28/02/2020
Delivery Units,Adults and Health,Other Services,1000548201,D.A. Languages Ltd,15.08,13/02/2020
Delivery Units,Adults and Health,Other Services,1000558301,D.A. Languages Ltd,54,11/02/2020
Delivery Units,Adults and Health,Equipment and Materials Purcha,60140202,HANDS FREE COMPUTING LTD,239,20/02/2020
Delivery Units,Adults and Health,Travelling Expenses,1000508201,M1 EXPRESS CAR SERVICES,68.2,06/02/2020
Delivery Units,Adults and Health,Travelling Expenses,1000511001,M1 EXPRESS CAR SERVICES,171.6,06/02/2020
Delivery Units,Adults and Health,Travelling Expenses,1000580501,M1 EXPRESS CAR SERVICES,175.7,13/02/2020
Delivery Units,Adults and Health,Travelling Expenses,1000587201,M1 EXPRESS CAR SERVICES,15.4,14/02/2020
Delivery Units,Adults and Health,Transport Spot  Hire Recharge,1000609901,Mott MacDonald Ltd/Cambridge Education,780,19/02/2020
Delivery Units,Adults and Health,Other Services,1000537101,D.A. Languages Ltd,54,10/02/2020
Delivery Units,Adults and Health,Other Services,1000540202,D.A. Languages Ltd,27,13/02/2020
Delivery Units,Adults and Health,Other Services,1000545301,D.A. Languages Ltd,20.28,13/02/2020
Delivery Units,Adults and Health,Other Services,1000546502,D.A. Languages Ltd,33.75,13/02/2020
Delivery Units,Adults and Health,Stationery,60135060,Staples UK Ltd,87.72,25/02/2020
Delivery Units,Adults and Health,Stationery,60135304,Staples UK Ltd,22.4,25/02/2020
Delivery Units,Adults and Health,Stationery,60135735,Staples UK Ltd,2.8,25/02/2020
Delivery Units,Adults and Health,Water Services,1000678801,AFFINITY WATER LIMITED,15.54,24/02/2020
Delivery Units,Adults and Health,Translation Exp / Interpret,1000539501,D.A. Languages Ltd,22,10/02/2020
Delivery Units,Adults and Health,Electricity,1000661801,KENT COUNTY COUNCIL (KCS),146.67,21/02/2020
Delivery Units,Adults and Health,Gas,1000662301,KENT COUNTY COUNCIL (KCS),252.84,21/02/2020
Delivery Units,Adults and Health,Gas,1000678601,KENT COUNTY COUNCIL (KCS),229.89,21/02/2020
Delivery Units,Adults and Health,Other Services,1000663101,THE KEYHOLDING CO LTD,461.28,21/02/2020
Delivery Units,Adults and Health,Stationery,1000663601,XEROX FINANCE LTD,0.67,24/02/2020
Delivery Units,Adults and Health,Grounds maintenance,1000679401,REDACTED - PERSONAL DATA,100,21/02/2020
Delivery Units,Adults and Health,Training,1000558201,Caring for Care Ltd,500,11/02/2020
Delivery Units,Adults and Health,Training,1000564801,EDGE TRAINING,875,13/02/2020
Delivery Units,Adults and Health,Training,1000618201,HUNTERSJOY LTD,"1,500.00",18/02/2020
Delivery Units,Adults and Health,Training,1000556302,Meducate Training Ltd,400,12/02/2020
Delivery Units,Adults and Health,Training,1000558702,Meducate Training Ltd,400,12/02/2020
Delivery Units,Adults and Health,Training,1000562602,MIDDLESEX UNIVERSITY,"9,250.00",12/02/2020
Delivery Units,Adults and Health,Training,1000455702,Skills for Care Solutions Ltd,850,07/02/2020
Delivery Units,Adults and Health,Other Services,80033452,Shimla Foods,600,21/02/2020
Delivery Units,Adults and Health,Training,1000567702,The Commsion for Local Administration,90,14/02/2020
Delivery Units,Adults and Health,Stationery,1000167002,Staples UK Ltd,67.44,11/02/2020
Delivery Units,Adults and Health,Other Services,80033172,REDACTED - PERSONAL DATA,12,10/02/2020
Delivery Units,Adults and Health,Other Services,80033492,REDACTED - PERSONAL DATA,5.98,21/02/2020
Delivery Units,Adults and Health,Translation Exp / Interpret,1000560701,PRIME PRODUCTION LTD,500,11/02/2020
Delivery Units,Adults and Health,Other Services,1000669602,REDACTED - PERSONAL DATA,"5,100.00",24/02/2020
Delivery Units,Adults and Health,Other Services,1000503201,HAS Technology Ltd,"1,389.75",07/02/2020
Delivery Units,Adults and Health,Other Transfer Payments to Soc,1000523502,Staples UK Ltd,30.17,12/02/2020
Delivery Units,Adults and Health,Translation Exp / Interpret,1000536801,D.A. Languages Ltd,40.5,13/02/2020
Delivery Units,Adults and Health,Translation Exp / Interpret,1000537501,D.A. Languages Ltd,14.04,13/02/2020
Delivery Units,Adults and Health,Translation Exp / Interpret,1000539801,D.A. Languages Ltd,67.5,13/02/2020
Delivery Units,Adults and Health,Translation Exp / Interpret,1000540601,D.A. Languages Ltd,15,13/02/2020
Delivery Units,Adults and Health,Translation Exp / Interpret,1000544501,D.A. Languages Ltd,3.12,13/02/2020
Delivery Units,Adults and Health,Translation Exp / Interpret,1000547001,D.A. Languages Ltd,5.72,13/02/2020
Delivery Units,Adults and Health,Other Services,1000680701,HUNTERSJOY LTD,"6,930.00",21/02/2020
Delivery Units,Adults and Health,Other Services,1000485402,Interpreting Matters Ltd,180,13/02/2020
Delivery Units,Adults and Health,Other Transfer Payments to Soc,1000592002,Mott MacDonald Ltd/Cambridge Education,195,18/02/2020
Delivery Units,Adults and Health,Other Services,1000680602,Mott MacDonald Ltd/Cambridge Education,185,28/02/2020
Delivery Units,Adults and Health,Other Services,80033662,Surefire Services Ltd,"2,954.25",28/02/2020
Delivery Units,Adults and Health,Transport Hire Charges,60132728,Mott MacDonald Ltd/Cambridge Education,370,03/02/2020
Delivery Units,Adults and Health,Other Services,80033241,PJ Environmetnal Services Ltd,289,18/02/2020
Delivery Units,Adults and Health,Other Services,1000092802,Staples UK Ltd,67.12,11/02/2020
Delivery Units,Adults and Health,Equipment and Materials Purcha,60138926,HANDS FREE COMPUTING LTD,258,20/02/2020
Delivery Units,Adults and Health,Other Transfer Payments to Soc,1000039102,ACTION FIRST RECRUITMENT,390,13/02/2020
Delivery Units,Adults and Health,Other Transfer Payments to Soc,1000551901,ACTION FIRST RECRUITMENT,345,11/02/2020
Delivery Units,Adults and Health,Other Transfer Payments to Soc,1000555001,ACTION FIRST RECRUITMENT,690,12/02/2020
Delivery Units,Adults and Health,Other Transfer Payments to Soc,1000630801,ACTION FIRST RECRUITMENT,992.5,19/02/2020
Delivery Units,Adults and Health,Other Transfer Payments to Soc,1000720202,Aisa Medical Ltd,173.37,28/02/2020
Delivery Units,Adults and Health,Other Transfer Payments to Soc,1000720502,Aisa Medical Ltd,180.36,28/02/2020
Delivery Units,Adults and Health,Other Transfer Payments to Soc,1000723002,Aisa Medical Ltd,175.59,28/02/2020
Delivery Units,Adults and Health,Other Transfer Payments to Soc,1000724402,Aisa Medical Ltd,180.15,28/02/2020
Delivery Units,Adults and Health,Other Transfer Payments to Soc,1000724602,Aisa Medical Ltd,179.67,28/02/2020
Delivery Units,Adults and Health,Other Transfer Payments to Soc,1000725602,Aisa Medical Ltd,173.37,28/02/2020
Delivery Units,Adults and Health,Other Transfer Payments to Soc,1000727902,Aisa Medical Ltd,179.57,28/02/2020
Delivery Units,Adults and Health,Other Transfer Payments to Soc,1000728202,Aisa Medical Ltd,187.73,28/02/2020
Delivery Units,Adults and Health,Other Transfer Payments to Soc,1000730102,Aisa Medical Ltd,173.37,28/02/2020
Delivery Units,Adults and Health,Other Transfer Payments to Soc,1000730302,Aisa Medical Ltd,174.27,28/02/2020
Delivery Units,Adults and Health,Other Transfer Payments to Soc,1000731602,Aisa Medical Ltd,173.37,28/02/2020
Delivery Units,Adults and Health,Other Services,1000668901,Ambrosial Services Limited,825,21/02/2020
Delivery Units,Adults and Health,Other Services,1000677801,Ambrosial Services Limited,"1,375.00",21/02/2020
Delivery Units,Adults and Health,Other Services,1000633201,BROOKVALE,173.37,19/02/2020
Delivery Units,Adults and Health,Other Services,1000633701,Carebuz,750,19/02/2020
Delivery Units,Adults and Health,Other Transfer Payments to Soc,1000608501,Eduhez Ltd,"1,555.00",17/02/2020
Delivery Units,Adults and Health,Other Services,1000568202,Eloges Social Work Ltd,750,12/02/2020
Delivery Units,Adults and Health,Other Transfer Payments to Soc,1000729202,Empowering Social Work Ltd,700,28/02/2020
Delivery Units,Adults and Health,Other Transfer Payments to Soc,1000644802,Favore Didio Ltd,"3,060.00",20/02/2020
Delivery Units,Adults and Health,Other Services,1000643302,Harrow Mencap,120,20/02/2020
Delivery Units,Adults and Health,Other Transfer Payments to Soc,1000613301,Kevin Scheuring Ltd,310,17/02/2020
Delivery Units,Adults and Health,Other Services,1000508902,KMCA Consultancy Services Ltd,"1,532.48",07/02/2020
Delivery Units,Adults and Health,Other Transfer Payments to Soc,60144768,KORU MEDICAL LTD,"1,994.84",12/02/2020
Delivery Units,Adults and Health,Other Transfer Payments to Soc,1000177602,KORU MEDICAL LTD,335.3,13/02/2020
Delivery Units,Adults and Health,Other Transfer Payments to Soc,1000300502,KORU MEDICAL LTD,"1,500.37",14/02/2020
Delivery Units,Adults and Health,Other Transfer Payments to Soc,1000411102,KORU MEDICAL LTD,670.6,17/02/2020
Delivery Units,Adults and Health,Other Transfer Payments to Soc,1000567202,KORU MEDICAL LTD,"1,013.10",14/02/2020
Delivery Units,Adults and Health,Other Transfer Payments to Soc,1000628001,KORU MEDICAL LTD,335.3,18/02/2020
Delivery Units,Adults and Health,Other Transfer Payments to Soc,1000316802,Peaceable Habitation Ltd,930.02,12/02/2020
Delivery Units,Adults and Health,Other Transfer Payments to Soc,1000477402,Peaceable Habitation Ltd,302.16,12/02/2020
Delivery Units,Adults and Health,Other Services,60143966,Recruitment Team Nine Limited,270,12/02/2020
Delivery Units,Adults and Health,Other Services,60144199,Recruitment Team Nine Limited,270,12/02/2020
Delivery Units,Adults and Health,Other Services,60144383,Recruitment Team Nine Limited,270,12/02/2020
Delivery Units,Adults and Health,Other Services,60144409,Recruitment Team Nine Limited,135,12/02/2020
Delivery Units,Adults and Health,Other Services,1000025702,Recruitment Team Nine Limited,270,12/02/2020
Delivery Units,Adults and Health,Other Services,1000359102,Recruitment Team Nine Limited,270,14/02/2020
Delivery Units,Adults and Health,Other Services,1000432302,Recruitment Team Nine Limited,270,18/02/2020
Delivery Units,Adults and Health,Other Services,1000156402,Sparkes Medical Services Ltd,199.87,21/02/2020
Delivery Units,Adults and Health,Other Services,1000667202,Sparkes Medical Services Ltd,221.07,24/02/2020
Delivery Units,Adults and Health,Other Agencies - Third Party P,90235499,Aarandale Manor Care Home,"1,992.38",27/02/2020
Delivery Units,Adults and Health,Other Agencies - Third Party P,90235500,Aarandale Manor Care Home,"4,142.86",27/02/2020
Delivery Units,Adults and Health,Other Agencies - Third Party P,90235501,Aarandale Manor Care Home,"3,500.51",27/02/2020
Delivery Units,Adults and Health,Other Agencies - Third Party P,90235502,Aarandale Manor Care Home,"2,404.72",27/02/2020
Delivery Units,Adults and Health,Other Agencies - Third Party P,90229782,ABBEY RAVENSCROFT PARK NURSING HOME,"3,642.86",03/02/2020
Delivery Units,Adults and Health,Other Agencies - Third Party P,90229783,ABBEY RAVENSCROFT PARK NURSING HOME,"3,764.29",03/02/2020
Delivery Units,Adults and Health,Other Agencies - Third Party P,90230681,ABBEY RAVENSCROFT PARK NURSING HOME,"2,428.57",05/02/2020
Delivery Units,Adults and Health,Other Agencies - Third Party P,90230682,ABBEY RAVENSCROFT PARK NURSING HOME,"3,764.29",05/02/2020
Delivery Units,Adults and Health,Other Agencies - Third Party P,90235451,ABBEY RAVENSCROFT PARK NURSING HOME,"3,521.43",27/02/2020
Delivery Units,Adults and Health,Other Agencies - Third Party P,90235452,ABBEY RAVENSCROFT PARK NURSING HOME,"3,521.43",27/02/2020
Delivery Units,Adults and Health,Other Agencies - Third Party P,90235454,ABBEY RAVENSCROFT PARK NURSING HOME,"3,107.14",27/02/2020
Delivery Units,Adults and Health,Other Agencies - Third Party P,90235457,ABBEY RAVENSCROFT PARK NURSING HOME,"2,608.43",27/02/2020
Delivery Units,Adults and Health,Other Agencies - Third Party P,90235458,ABBEY RAVENSCROFT PARK NURSING HOME,"4,673.14",27/02/2020
Delivery Units,Adults and Health,Other Agencies - Third Party P,90235459,ABBEY RAVENSCROFT PARK NURSING HOME,"3,107.14",27/02/2020
Delivery Units,Adults and Health,Other Agencies - Third Party P,90235460,ABBEY RAVENSCROFT PARK NURSING HOME,"3,107.14",27/02/2020
Delivery Units,Adults and Health,Other Agencies - Third Party P,90235461,ABBEY RAVENSCROFT PARK NURSING HOME,"2,608.43",27/02/2020
Delivery Units,Adults and Health,Other Agencies - Third Party P,90235463,ABBEY RAVENSCROFT PARK NURSING HOME,"3,107.14",27/02/2020
Delivery Units,Adults and Health,Other Agencies - Third Party P,90235464,ABBEY RAVENSCROFT PARK NURSING HOME,"2,608.43",27/02/2020
Delivery Units,Adults and Health,Other Agencies - Third Party P,90235466,ABBEY RAVENSCROFT PARK NURSING HOME,"2,608.43",27/02/2020
Delivery Units,Adults and Health,Other Agencies - Third Party P,90235469,ABBEY RAVENSCROFT PARK NURSING HOME,"3,107.14",27/02/2020
Delivery Units,Adults and Health,Other Agencies - Third Party P,90235470,ABBEY RAVENSCROFT PARK NURSING HOME,"3,107.14",27/02/2020
Delivery Units,Adults and Health,Other Agencies - Third Party P,90230551,Adara Healthcare Ltd,"3,400.00",04/02/2020
Delivery Units,Adults and Health,Other Agencies - Third Party P,90230654,AGUDAS ISRAEL HOUSING ASSCTN LTD,"2,736.86",12/02/2020
Delivery Units,Adults and Health,Other Agencies - Third Party P,90235519,Alliance Care (Dales Homes) Limited,"3,764.29",27/02/2020
Delivery Units,Adults and Health,Other Agencies - Third Party P,90235520,Alliance Care (Dales Homes) Limited,"3,764.29",27/02/2020
Delivery Units,Adults and Health,Other Agencies - Third Party P,90235521,Alliance Care (Dales Homes) Limited,"-3,400.00",27/02/2020
Delivery Units,Adults and Health,Other Agencies - Third Party P,90230579,ASHTON LODGE CARE CENTRE,"14,211.43",04/02/2020
Delivery Units,Adults and Health,Other Agencies - Third Party P,90230580,ASHTON LODGE CARE CENTRE,"-6,158.29",04/02/2020
Delivery Units,Adults and Health,Other Agencies - Third Party P,90230581,ASHTON LODGE CARE CENTRE,"19,896.00",04/02/2020
Delivery Units,Adults and Health,Other Agencies - Third Party P,90230582,ASHTON LODGE CARE CENTRE,"4,219.03",04/02/2020
Delivery Units,Adults and Health,Other Agencies - Third Party P,90235300,ASHTON LODGE CARE CENTRE,"2,469.72",26/02/2020
Delivery Units,Adults and Health,Other Agencies - Third Party P,90235302,ASHTON LODGE CARE CENTRE,"4,150.15",26/02/2020
Delivery Units,Adults and Health,Other Agencies - Third Party P,90235303,ASHTON LODGE CARE CENTRE,"3,313.29",26/02/2020
Delivery Units,Adults and Health,Other Agencies - Third Party P,90235304,ASHTON LODGE CARE CENTRE,"3,598.78",26/02/2020
Delivery Units,Adults and Health,Other Agencies - Third Party P,90235305,ASHTON LODGE CARE CENTRE,"4,906.97",26/02/2020
Delivery Units,Adults and Health,Other Agencies - Third Party P,90235307,ASHTON LODGE CARE CENTRE,"4,078.39",26/02/2020
Delivery Units,Adults and Health,Other Agencies - Third Party P,90235308,ASHTON LODGE CARE CENTRE,"2,954.81",26/02/2020
Delivery Units,Adults and Health,Other Agencies - Third Party P,90235309,ASHTON LODGE CARE CENTRE,"3,172.85",26/02/2020
Delivery Units,Adults and Health,Other Agencies - Third Party P,90235310,ASHTON LODGE CARE CENTRE,"2,823.85",26/02/2020
Delivery Units,Adults and Health,Other Agencies - Third Party P,90235311,ASHTON LODGE CARE CENTRE,-204.13,26/02/2020
Delivery Units,Adults and Health,Other Agencies - Third Party P,90235312,ASHTON LODGE CARE CENTRE,"2,959.91",26/02/2020
Delivery Units,Adults and Health,Other Agencies - Third Party P,90235314,ASHTON LODGE CARE CENTRE,"6,007.11",26/02/2020
Delivery Units,Adults and Health,Other Agencies - Third Party P,90235315,ASHTON LODGE CARE CENTRE,"3,385.83",26/02/2020
Delivery Units,Adults and Health,Other Agencies - Third Party P,90235316,ASHTON LODGE CARE CENTRE,"3,940.93",26/02/2020
Delivery Units,Adults and Health,Other Agencies - Third Party P,90235317,ASHTON LODGE CARE CENTRE,"2,735.32",26/02/2020
Delivery Units,Adults and Health,Other Agencies - Third Party P,90235318,ASHTON LODGE CARE CENTRE,"3,313.29",26/02/2020
Delivery Units,Adults and Health,Other Agencies - Third Party P,90235319,ASHTON LODGE CARE CENTRE,"3,535.51",26/02/2020
Delivery Units,Adults and Health,Other Agencies - Third Party P,90235321,ASHTON LODGE CARE CENTRE,"2,736.94",26/02/2020
Delivery Units,Adults and Health,Other Agencies - Third Party P,90235322,ASHTON LODGE CARE CENTRE,"3,372.58",26/02/2020
Delivery Units,Adults and Health,Other Agencies - Third Party P,90235323,ASHTON LODGE CARE CENTRE,"2,735.32",26/02/2020
Delivery Units,Adults and Health,Other Agencies - Third Party P,90235324,ASHTON LODGE CARE CENTRE,"3,194.39",26/02/2020
Delivery Units,Adults and Health,Other Agencies - Third Party P,90235326,ASHTON LODGE CARE CENTRE,"3,456.97",26/02/2020
Delivery Units,Adults and Health,Other Agencies - Third Party P,90235327,ASHTON LODGE CARE CENTRE,"3,407.33",26/02/2020
Delivery Units,Adults and Health,Other Agencies - Third Party P,90235328,ASHTON LODGE CARE CENTRE,"2,955.85",26/02/2020
Delivery Units,Adults and Health,Other Agencies - Third Party P,90235338,ASPEN VILLAGES LTD,"2,485.71",26/02/2020
Delivery Units,Adults and Health,Other Agencies - Third Party P,90234415,AUTUMN GARDENS,"3,440.00",20/02/2020
Delivery Units,Adults and Health,Other Agencies - Third Party P,90234416,AUTUMN GARDENS,"4,800.00",20/02/2020
Delivery Units,Adults and Health,Other Agencies - Third Party P,90234419,AUTUMN GARDENS,"4,800.00",20/02/2020
Delivery Units,Adults and Health,Other Agencies - Third Party P,90232783,Bondcare London (The Fountains),"2,138.00",13/02/2020
Delivery Units,Adults and Health,Other Agencies - Third Party P,90230614,BUPA CARE HOMES,32.18,04/02/2020
Delivery Units,Adults and Health,Other Agencies - Third Party P,90230615,BUPA CARE HOMES,90.99,04/02/2020
Delivery Units,Adults and Health,Other Agencies - Third Party P,90230616,BUPA CARE HOMES,139.38,04/02/2020
Delivery Units,Adults and Health,Other Agencies - Third Party P,90231848,BUPA CARE HOMES,"2,058.57",11/02/2020
Delivery Units,Adults and Health,Other Agencies - Third Party P,90231849,BUPA CARE HOMES,"2,900.71",11/02/2020
Delivery Units,Adults and Health,Other Agencies - Third Party P,90231850,BUPA CARE HOMES,"2,807.14",11/02/2020
Delivery Units,Adults and Health,Other Agencies - Third Party P,90231851,BUPA CARE HOMES,"2,900.71",11/02/2020
Delivery Units,Adults and Health,Other Agencies - Third Party P,90234031,BUPA CARE HOMES,"2,760.20",17/02/2020
Delivery Units,Adults and Health,Other Agencies - Third Party P,90234033,BUPA CARE HOMES,"3,242.82",17/02/2020
Delivery Units,Adults and Health,Other Agencies - Third Party P,90234929,BUPA CARE HOMES,"1,859.38",25/02/2020
Delivery Units,Adults and Health,Other Agencies - Third Party P,90234931,BUPA CARE HOMES,"2,820.68",25/02/2020
Delivery Units,Adults and Health,Other Agencies - Third Party P,90234932,BUPA CARE HOMES,"3,907.27",25/02/2020
Delivery Units,Adults and Health,Other Agencies - Third Party P,90234934,BUPA CARE HOMES,"3,972.56",25/02/2020
Delivery Units,Adults and Health,Other Agencies - Third Party P,90226168,BUPA NURSING HOMES LTD - ARKLEY,-395.01,06/02/2020
Delivery Units,Adults and Health,Other Agencies - Third Party P,90226170,BUPA NURSING HOMES LTD - ARKLEY,-395.01,06/02/2020
Delivery Units,Adults and Health,Other Agencies - Third Party P,90226172,BUPA NURSING HOMES LTD - ARKLEY,-395.01,06/02/2020
Delivery Units,Adults and Health,Other Agencies - Third Party P,90226173,BUPA NURSING HOMES LTD - ARKLEY,-395.01,06/02/2020
Delivery Units,Adults and Health,Other Agencies - Third Party P,90230574,BUPA NURSING HOMES LTD - ARKLEY,"4,400.00",06/02/2020
Delivery Units,Adults and Health,Other Agencies - Third Party P,90230575,BUPA NURSING HOMES LTD - ARKLEY,"3,800.00",06/02/2020
Delivery Units,Adults and Health,Other Agencies - Third Party P,90230576,BUPA NURSING HOMES LTD - ARKLEY,"2,265.36",06/02/2020
Delivery Units,Adults and Health,Other Agencies - Third Party P,90230577,BUPA NURSING HOMES LTD - ARKLEY,"3,337.76",06/02/2020
Delivery Units,Adults and Health,Other Agencies - Third Party P,90235353,CARLTON COURT (TLC GROUP),"4,142.86",26/02/2020
Delivery Units,Adults and Health,Other Agencies - Third Party P,90235354,CARLTON COURT (TLC GROUP),"3,495.54",26/02/2020
Delivery Units,Adults and Health,Other Agencies - Third Party P,90235358,CARLTON COURT (TLC GROUP),"2,290.79",26/02/2020
Delivery Units,Adults and Health,Other Agencies - Third Party P,90235363,CARLTON COURT (TLC GROUP),"4,142.86",26/02/2020
Delivery Units,Adults and Health,Other Agencies - Third Party P,90235365,CARLTON COURT (TLC GROUP),"3,521.43",26/02/2020
Delivery Units,Adults and Health,Other Agencies - Third Party P,90235329,CEDARS NURSING HOME,-407.14,26/02/2020
Delivery Units,Adults and Health,Other Agencies - Third Party P,90235330,CEDARS NURSING HOME,"3,935.71",26/02/2020
Delivery Units,Adults and Health,Other Agencies - Third Party P,90235331,CEDARS NURSING HOME,"2,773.64",26/02/2020
Delivery Units,Adults and Health,Other Agencies - Third Party P,90235332,CEDARS NURSING HOME,"2,346.27",26/02/2020
Delivery Units,Adults and Health,Other Agencies - Third Party P,90235333,CEDARS NURSING HOME,"3,666.43",26/02/2020
Delivery Units,Adults and Health,Other Agencies - Third Party P,90235335,CEDARS NURSING HOME,"2,485.71",26/02/2020
Delivery Units,Adults and Health,Other Agencies - Third Party P,90235336,CEDARS NURSING HOME,"4,142.86",26/02/2020
Delivery Units,Adults and Health,Other Agencies - Third Party P,90235405,Chiswick House,"3,107.06",26/02/2020
Delivery Units,Adults and Health,Other Agencies - Third Party P,90235080,FERNBANK NURSING HOME.,"3,199.84",25/02/2020
Delivery Units,Adults and Health,Other Agencies - Third Party P,90235081,FERNBANK NURSING HOME.,"2,999.92",25/02/2020
Delivery Units,Adults and Health,Other Agencies - Third Party P,90229792,FOUR SEASONS HEALTH CARE,"2,566.38",03/02/2020
Delivery Units,Adults and Health,Other Agencies - Third Party P,90229793,FOUR SEASONS HEALTH CARE,"2,463.47",03/02/2020
Delivery Units,Adults and Health,Other Agencies - Third Party P,90229795,FOUR SEASONS HEALTH CARE,"2,560.00",03/02/2020
Delivery Units,Adults and Health,Other Agencies - Third Party P,90229796,FOUR SEASONS HEALTH CARE,"2,560.00",03/02/2020
Delivery Units,Adults and Health,Other Agencies - Third Party P,90229798,FOUR SEASONS HEALTH CARE,"2,314.28",03/02/2020
Delivery Units,Adults and Health,Other Agencies - Third Party P,90230683,FOUR SEASONS HEALTH CARE,"2,560.00",05/02/2020
Delivery Units,Adults and Health,Other Agencies - Third Party P,90230686,FOUR SEASONS HEALTH CARE,"2,560.00",05/02/2020
Delivery Units,Adults and Health,Other Agencies - Third Party P,90230688,FOUR SEASONS HEALTH CARE,"2,560.00",05/02/2020
Delivery Units,Adults and Health,Other Agencies - Third Party P,90230689,FOUR SEASONS HEALTH CARE,"2,560.00",05/02/2020
Delivery Units,Adults and Health,Other Agencies - Third Party P,90230690,FOUR SEASONS HEALTH CARE,"2,560.00",05/02/2020
Delivery Units,Adults and Health,Other Agencies - Third Party P,90230691,FOUR SEASONS HEALTH CARE,"2,560.00",05/02/2020
Delivery Units,Adults and Health,Other Agencies - Third Party P,90230692,FOUR SEASONS HEALTH CARE,"2,560.00",05/02/2020
Delivery Units,Adults and Health,Other Agencies - Third Party P,90234411,FOUR SEASONS HEALTH CARE,"2,463.47",20/02/2020
Delivery Units,Adults and Health,Other Agencies - Third Party P,90234412,FOUR SEASONS HEALTH CARE,"2,560.00",20/02/2020
Delivery Units,Adults and Health,Other Agencies - Third Party P,90233542,HENRY NIHILL HOUSE,"3,000.00",17/02/2020
Delivery Units,Adults and Health,Other Agencies - Third Party P,90233544,HENRY NIHILL HOUSE,"3,000.00",17/02/2020
Delivery Units,Adults and Health,Other Agencies - Third Party P,90233554,HENRY NIHILL HOUSE,"2,265.36",17/02/2020
Delivery Units,Adults and Health,Other Agencies - Third Party P,90233555,HENRY NIHILL HOUSE,"2,265.36",17/02/2020
Delivery Units,Adults and Health,Other Agencies - Third Party P,90233557,HENRY NIHILL HOUSE,"2,265.36",17/02/2020
Delivery Units,Adults and Health,Other Agencies - Third Party P,90233581,HENRY NIHILL HOUSE,"2,265.36",17/02/2020
Delivery Units,Adults and Health,Other Agencies - Third Party P,90233630,HENRY NIHILL HOUSE,"2,265.36",17/02/2020
Delivery Units,Adults and Health,Other Agencies - Third Party P,90233642,HENRY NIHILL HOUSE,"2,265.36",17/02/2020
Delivery Units,Adults and Health,Other Agencies - Third Party P,90233645,HENRY NIHILL HOUSE,"3,000.00",17/02/2020
Delivery Units,Adults and Health,Other Agencies - Third Party P,90235507,HUSKARDS NEW CARE LTD,"2,243.03",27/02/2020
Delivery Units,Adults and Health,Other Agencies - Third Party P,90233561,JEWISH CARE,"7,167.14",17/02/2020
Delivery Units,Adults and Health,Other Agencies - Third Party P,90233571,JEWISH CARE,"2,649.36",17/02/2020
Delivery Units,Adults and Health,Other Agencies - Third Party P,90233586,JEWISH CARE,"2,649.36",17/02/2020
Delivery Units,Adults and Health,Other Agencies - Third Party P,90233588,JEWISH CARE,"2,649.36",17/02/2020
Delivery Units,Adults and Health,Other Agencies - Third Party P,90233589,JEWISH CARE,"2,410.28",17/02/2020
Delivery Units,Adults and Health,Other Agencies - Third Party P,90233591,JEWISH CARE,"2,649.36",17/02/2020
Delivery Units,Adults and Health,Other Agencies - Third Party P,90233595,JEWISH CARE,"1,797.78",17/02/2020
Delivery Units,Adults and Health,Other Agencies - Third Party P,90233617,JEWISH CARE,"2,410.28",17/02/2020
Delivery Units,Adults and Health,Other Agencies - Third Party P,90233618,JEWISH CARE,"2,410.28",17/02/2020
Delivery Units,Adults and Health,Other Agencies - Third Party P,90233626,JEWISH CARE,"2,410.28",17/02/2020
Delivery Units,Adults and Health,Other Agencies - Third Party P,90233631,JEWISH CARE,"2,410.28",17/02/2020
Delivery Units,Adults and Health,Other Agencies - Third Party P,90233640,JEWISH CARE,"2,410.28",17/02/2020
Delivery Units,Adults and Health,Other Agencies - Third Party P,90233644,JEWISH CARE,"2,410.28",17/02/2020
Delivery Units,Adults and Health,Other Agencies - Third Party P,90233652,JEWISH CARE,"1,515.14",17/02/2020
Delivery Units,Adults and Health,Other Agencies - Third Party P,90233661,JEWISH CARE,"2,380.92",17/02/2020
Delivery Units,Adults and Health,Other Agencies - Third Party P,90233666,JEWISH CARE,"2,410.28",17/02/2020
Delivery Units,Adults and Health,Other Agencies - Third Party P,90233674,JEWISH CARE,"3,489.64",17/02/2020
Delivery Units,Adults and Health,Other Agencies - Third Party P,90233676,JEWISH CARE,"2,410.28",17/02/2020
Delivery Units,Adults and Health,Other Agencies - Third Party P,90233682,JEWISH CARE,"2,649.36",17/02/2020
Delivery Units,Adults and Health,Other Agencies - Third Party P,90233686,JEWISH CARE,"2,410.28",17/02/2020
Delivery Units,Adults and Health,Other Agencies - Third Party P,90233688,JEWISH CARE,"2,410.28",17/02/2020
Delivery Units,Adults and Health,Other Agencies - Third Party P,90233692,JEWISH CARE,"1,205.14",17/02/2020
Delivery Units,Adults and Health,Other Agencies - Third Party P,90235367,Karuna Manor,"3,935.71",26/02/2020
Delivery Units,Adults and Health,Other Agencies - Third Party P,90235368,Karuna Manor,"4,109.05",26/02/2020
Delivery Units,Adults and Health,Other Agencies - Third Party P,90235369,Karuna Manor,"2,220.57",26/02/2020
Delivery Units,Adults and Health,Other Agencies - Third Party P,90234428,LIFESTYLE CARE PLC,"2,856.21",20/02/2020
Delivery Units,Adults and Health,Other Agencies - Third Party P,90235439,M D HOMES,"2,874.11",27/02/2020
Delivery Units,Adults and Health,Other Agencies - Third Party P,90235435,MEERA NURSING HOME LIMITED,"2,287.89",27/02/2020
Delivery Units,Adults and Health,Other Agencies - Third Party P,90235436,MEERA NURSING HOME LIMITED,"3,521.43",27/02/2020
Delivery Units,Adults and Health,Other Agencies - Third Party P,90235437,MEERA NURSING HOME LIMITED,"2,287.89",27/02/2020
Delivery Units,Adults and Health,Other Agencies - Third Party P,90235438,MEERA NURSING HOME LIMITED,"3,280.48",27/02/2020
Delivery Units,Adults and Health,Other Agencies - Third Party P,90235255,METHODIST HOMES FOR THE AGED,"2,400.00",26/02/2020
Delivery Units,Adults and Health,Other Agencies - Third Party P,90235256,METHODIST HOMES FOR THE AGED,"2,400.00",26/02/2020
Delivery Units,Adults and Health,Other Agencies - Third Party P,90234038,NEWCENTURY CARE LTD,"3,400.00",17/02/2020
Delivery Units,Adults and Health,Other Agencies - Third Party P,90234039,NEWCENTURY CARE LTD,"2,442.86",17/02/2020
Delivery Units,Adults and Health,Other Agencies - Third Party P,90234040,NEWCENTURY CARE LTD,"3,494.12",17/02/2020
Delivery Units,Adults and Health,Other Agencies - Third Party P,90234041,NEWCENTURY CARE LTD,"4,028.48",17/02/2020
Delivery Units,Adults and Health,Other Agencies - Third Party P,90234042,NEWCENTURY CARE LTD,"3,699.64",17/02/2020
Delivery Units,Adults and Health,Other Agencies - Third Party P,90234043,NEWCENTURY CARE LTD,"3,232.00",17/02/2020
Delivery Units,Adults and Health,Other Agencies - Third Party P,90234044,NEWCENTURY CARE LTD,"3,400.00",17/02/2020
Delivery Units,Adults and Health,Other Agencies - Third Party P,90231652,NHS BARNET CCG,"15,676.00",06/02/2020
Delivery Units,Adults and Health,Other Agencies - Third Party P,90231656,NHS BARNET CCG,"15,676.00",06/02/2020
Delivery Units,Adults and Health,Other Agencies - Third Party P,90231659,NHS BARNET CCG,"3,201.76",06/02/2020
Delivery Units,Adults and Health,Other Agencies - Third Party P,90231660,NHS BARNET CCG,"31,585.71",06/02/2020
Delivery Units,Adults and Health,Other Agencies - Third Party P,90232808,NHS BARNET CCG,"10,520.07",13/02/2020
Delivery Units,Adults and Health,Other Agencies - Third Party P,90232809,NHS BARNET CCG,"14,457.14",13/02/2020
Delivery Units,Adults and Health,Other Agencies - Third Party P,90232811,NHS BARNET CCG,"7,880.98",13/02/2020
Delivery Units,Adults and Health,Other Agencies - Third Party P,90232812,NHS BARNET CCG,"7,880.98",13/02/2020
Delivery Units,Adults and Health,Other Agencies - Third Party P,90232060,NIGHTINGALE HOUSE,"2,952.35",11/02/2020
Delivery Units,Adults and Health,Other Agencies - Third Party P,90232062,NIGHTINGALE HOUSE,"2,437.71",11/02/2020
Delivery Units,Adults and Health,Other Agencies - Third Party P,90230601,SAGE NURSING HOME,"4,207.14",07/02/2020
Delivery Units,Adults and Health,Other Agencies - Third Party P,90230603,SAGE NURSING HOME,970.87,07/02/2020
Delivery Units,Adults and Health,Other Agencies - Third Party P,90230605,SAGE NURSING HOME,"2,788.32",07/02/2020
Delivery Units,Adults and Health,Other Agencies - Third Party P,90230606,SAGE NURSING HOME,"2,517.60",07/02/2020
Delivery Units,Adults and Health,Other Agencies - Third Party P,90230609,SAGE NURSING HOME,"4,207.14",07/02/2020
Delivery Units,Adults and Health,Other Agencies - Third Party P,90235446,SONESTA NURSING HOME LTD.,"2,692.86",27/02/2020
Delivery Units,Adults and Health,Other Agencies - Third Party P,90235447,SONESTA NURSING HOME LTD.,"2,346.27",27/02/2020
Delivery Units,Adults and Health,Other Agencies - Third Party P,90235448,SONESTA NURSING HOME LTD.,"2,243.03",27/02/2020
Delivery Units,Adults and Health,Other Agencies - Third Party P,90231853,SUNRISE SENIOR LIVING,"6,382.28",11/02/2020
Delivery Units,Adults and Health,Other Agencies - Third Party P,90231918,Victoria Care Centre,"2,958.95",11/02/2020
Delivery Units,Adults and Health,Other Agencies - Third Party P,90231901,East Anglia Care Homes Ltd (Halvergate H,2580,28/02/2020
Delivery Units,Adults and Health,Other Agencies - Third Party P,90231902,East Anglia Care Homes Ltd (Halvergate H,2580,28/02/2020
Delivery Units,Adults and Health,Other Agencies - Third Party P,90231903,East Anglia Care Homes Ltd (Halvergate H,2580,28/02/2020
Delivery Units,Adults and Health,Other Agencies - Third Party P,90231904,East Anglia Care Homes Ltd (Halvergate H,2580,28/02/2020
Delivery Units,Adults and Health,Other Agencies - Third Party P,90231905,East Anglia Care Homes Ltd (Halvergate H,2580,28/02/2020
Delivery Units,Adults and Health,Other Agencies - Third Party P,90231906,East Anglia Care Homes Ltd (Halvergate H,2580,28/02/2020
Delivery Units,Adults and Health,Other Agencies - Third Party P,90231907,East Anglia Care Homes Ltd (Halvergate H,2580,28/02/2020
Delivery Units,Adults and Health,Other Agencies - Third Party P,90235431,AARON COURT CARE HOME,"2,073.42",27/02/2020
Delivery Units,Adults and Health,Other Agencies - Third Party P,90235467,ABBEY RAVENSCROFT PARK NURSING HOME,"3,107.14",27/02/2020
Delivery Units,Adults and Health,Other Agencies - Third Party P,90235468,ABBEY RAVENSCROFT PARK NURSING HOME,"3,107.14",27/02/2020
Delivery Units,Adults and Health,Other Agencies - Third Party P,90230585,Alexandra House (Runwood Homes),"2,262.69",04/02/2020
Delivery Units,Adults and Health,Other Agencies - Third Party P,90229772,Amron Premier Care,"2,618.44",03/02/2020
Delivery Units,Adults and Health,Other Agencies - Third Party P,90234413,ANASTASIA LODGE,"3,800.00",20/02/2020
Delivery Units,Adults and Health,Other Agencies - Third Party P,90235073,Ashfields Residential Care Home,"2,421.19",25/02/2020
Delivery Units,Adults and Health,Other Agencies - Third Party P,90235075,Ashfields Residential Care Home,"2,601.87",25/02/2020
Delivery Units,Adults and Health,Other Agencies - Third Party P,90235301,ASHTON LODGE CARE CENTRE,"4,078.39",26/02/2020
Delivery Units,Adults and Health,Other Agencies - Third Party P,90234414,AUTUMN GARDENS,"3,560.00",20/02/2020
Delivery Units,Adults and Health,Other Agencies - Third Party P,90234418,AUTUMN GARDENS,"2,880.00",20/02/2020
Delivery Units,Adults and Health,Other Agencies - Third Party P,90234420,AUTUMN GARDENS,"3,160.00",20/02/2020
Delivery Units,Adults and Health,Other Agencies - Third Party P,90235486,B & M CARE,"2,386.29",27/02/2020
Delivery Units,Adults and Health,Other Agencies - Third Party P,90235487,B & M CARE,"3,521.43",27/02/2020
Delivery Units,Adults and Health,Other Agencies - Third Party P,90235347,Belmont Lodge Care Centre,"2,262.04",26/02/2020
Delivery Units,Adults and Health,Other Agencies - Third Party P,90226169,BUPA NURSING HOMES LTD - ARKLEY,-327.48,06/02/2020
Delivery Units,Adults and Health,Other Agencies - Third Party P,90226171,BUPA NURSING HOMES LTD - ARKLEY,-377.84,06/02/2020
Delivery Units,Adults and Health,Other Agencies - Third Party P,90235351,CARLTON COURT (TLC GROUP),"2,104.32",26/02/2020
Delivery Units,Adults and Health,Other Transfer Payments to Soc,1000515102,CATALYST HOUSING LTD,"240,513.07",07/02/2020
Delivery Units,Adults and Health,Other Agencies - Third Party P,90229429,CATHERINE LODGE,"3,764.29",05/02/2020
Delivery Units,Adults and Health,Other Agencies - Third Party P,90235062,CATHERINE LODGE,"3,764.29",25/02/2020
Delivery Units,Adults and Health,Other Agencies - Third Party P,90235395,CATHERINE LODGE,"3,521.43",26/02/2020
Delivery Units,Adults and Health,Other Agencies - Third Party P,90235442,CATHERINE LODGE,"2,434.01",27/02/2020
Delivery Units,Adults and Health,Other Agencies - Third Party P,90235443,CATHERINE LODGE,"3,107.14",27/02/2020
Delivery Units,Adults and Health,Other Agencies - Third Party P,90235444,CATHERINE LODGE,"3,521.43",27/02/2020
Delivery Units,Adults and Health,Other Agencies - Third Party P,90235518,CATHERINE LODGE,"2,434.01",27/02/2020
Delivery Units,Adults and Health,Other Agencies - Third Party P,90235337,CEDARS NURSING HOME,"4,142.86",26/02/2020
Delivery Units,Adults and Health,Other Agencies - Third Party P,90230523,CLOVELLY HOUSE RESID. HOME LTD,"2,780.00",04/02/2020
Delivery Units,Adults and Health,Other Agencies - Third Party P,90230525,CLOVELLY HOUSE RESID. HOME LTD,"3,000.00",04/02/2020
Delivery Units,Adults and Health,Other Agencies - Third Party P,90230527,CLOVELLY HOUSE RESID. HOME LTD,"2,350.08",04/02/2020
Delivery Units,Adults and Health,Other Agencies - Third Party P,90230528,CLOVELLY HOUSE RESID. HOME LTD,"2,350.08",04/02/2020
Delivery Units,Adults and Health,Other Agencies - Third Party P,90230533,CLOVELLY HOUSE RESID. HOME LTD,"3,000.00",04/02/2020
Delivery Units,Adults and Health,Other Agencies - Third Party P,90230534,CLOVELLY HOUSE RESID. HOME LTD,"2,600.00",04/02/2020
Delivery Units,Adults and Health,Other Agencies - Third Party P,90230536,CLOVELLY HOUSE RESID. HOME LTD,"2,350.08",04/02/2020
Delivery Units,Adults and Health,Other Agencies - Third Party P,90230537,CLOVELLY HOUSE RESID. HOME LTD,"3,000.00",04/02/2020
Delivery Units,Adults and Health,Other Agencies - Third Party P,90230538,CLOVELLY HOUSE RESID. HOME LTD,"3,000.00",04/02/2020
Delivery Units,Adults and Health,Other Agencies - Third Party P,90230539,CLOVELLY HOUSE RESID. HOME LTD,"3,000.00",04/02/2020
Delivery Units,Adults and Health,Other Agencies - Third Party P,90230561,CLOVELLY HOUSE RESID. HOME LTD,"2,546.43",04/02/2020
Delivery Units,Adults and Health,Other Agencies - Third Party P,90230552,EASTSIDE HOUSE CARE HOME,"3,500.00",04/02/2020
Delivery Units,Adults and Health,Other Agencies - Third Party P,90230557,EASTSIDE HOUSE CARE HOME,"3,500.00",07/02/2020
Delivery Units,Adults and Health,Other Agencies - Third Party P,90230558,EASTSIDE HOUSE CARE HOME,"3,580.00",07/02/2020
Delivery Units,Adults and Health,Other Agencies - Third Party P,90230587,EASTSIDE HOUSE CARE HOME,"3,580.00",04/02/2020
Delivery Units,Adults and Health,Other Agencies - Third Party P,90235408,ELEANOR PALMER TRUST NO 2 A/C.,"3,107.14",26/02/2020
Delivery Units,Adults and Health,Other Agencies - Third Party P,90235409,ELEANOR PALMER TRUST NO 2 A/C.,"3,138.21",26/02/2020
Delivery Units,Adults and Health,Other Agencies - Third Party P,90235410,ELEANOR PALMER TRUST NO 2 A/C.,"3,138.21",26/02/2020
Delivery Units,Adults and Health,Other Agencies - Third Party P,90235411,ELEANOR PALMER TRUST NO 2 A/C.,"3,209.14",26/02/2020
Delivery Units,Adults and Health,Other Agencies - Third Party P,90235412,ELEANOR PALMER TRUST NO 2 A/C.,"2,460.65",26/02/2020
Delivery Units,Adults and Health,Other Agencies - Third Party P,90235413,ELEANOR PALMER TRUST NO 2 A/C.,"2,460.65",26/02/2020
Delivery Units,Adults and Health,Other Agencies - Third Party P,90235414,ELEANOR PALMER TRUST NO 2 A/C.,"2,264.98",26/02/2020
Delivery Units,Adults and Health,Other Agencies - Third Party P,90235415,ELEANOR PALMER TRUST NO 2 A/C.,"3,107.14",26/02/2020
Delivery Units,Adults and Health,Other Agencies - Third Party P,90235416,ELEANOR PALMER TRUST NO 2 A/C.,"3,209.14",26/02/2020
Delivery Units,Adults and Health,Other Agencies - Third Party P,90235417,ELEANOR PALMER TRUST NO 2 A/C.,"3,107.14",26/02/2020
Delivery Units,Adults and Health,Other Agencies - Third Party P,90235418,ELEANOR PALMER TRUST NO 2 A/C.,"3,209.14",26/02/2020
Delivery Units,Adults and Health,Other Agencies - Third Party P,90235419,ELEANOR PALMER TRUST NO 2 A/C.,"2,264.98",26/02/2020
Delivery Units,Adults and Health,Other Agencies - Third Party P,90235420,ELEANOR PALMER TRUST NO 2 A/C.,"2,460.65",26/02/2020
Delivery Units,Adults and Health,Other Agencies - Third Party P,90235421,ELEANOR PALMER TRUST NO 2 A/C.,"3,138.21",26/02/2020
Delivery Units,Adults and Health,Other Agencies - Third Party P,90235422,ELEANOR PALMER TRUST NO 2 A/C.,"3,107.14",26/02/2020
Delivery Units,Adults and Health,Other Agencies - Third Party P,90235423,ELEANOR PALMER TRUST NO 2 A/C.,"3,209.14",26/02/2020
Delivery Units,Adults and Health,Other Agencies - Third Party P,90231874,ELM PARK LODGE,"3,242.51",11/02/2020
Delivery Units,Adults and Health,Other Agencies - Third Party P,90230659,ELMHURST RESIDENTIAL HOME,"3,278.57",05/02/2020
Delivery Units,Adults and Health,Other Agencies - Third Party P,90230661,ELMHURST RESIDENTIAL HOME,"15,443.38",05/02/2020
Delivery Units,Adults and Health,Other Agencies - Third Party P,90230663,ELMHURST RESIDENTIAL HOME,"22,342.86",05/02/2020
Delivery Units,Adults and Health,Other Agencies - Third Party P,90230664,ELMHURST RESIDENTIAL HOME,"22,342.86",05/02/2020
Delivery Units,Adults and Health,Other Agencies - Third Party P,90230666,ELMHURST RESIDENTIAL HOME,"17,085.71",05/02/2020
Delivery Units,Adults and Health,Other Agencies - Third Party P,90230667,ELMHURST RESIDENTIAL HOME,"15,771.43",05/02/2020
Delivery Units,Adults and Health,Other Agencies - Third Party P,90230669,ELMHURST RESIDENTIAL HOME,"22,342.86",05/02/2020
Delivery Units,Adults and Health,Other Agencies - Third Party P,90235473,FINBOND LIMITED,"3,107.14",27/02/2020
Delivery Units,Adults and Health,Other Agencies - Third Party P,90235400,GCH (Hertfordshire) Ltd T/A,"2,414.68",26/02/2020
Delivery Units,Adults and Health,Other Agencies - Third Party P,90234025,GREEN TREES,"3,300.00",17/02/2020
Delivery Units,Adults and Health,Other Agencies - Third Party P,90234026,GREEN TREES,"3,410.00",17/02/2020
Delivery Units,Adults and Health,Other Agencies - Third Party P,90233664,HENRY NIHILL HOUSE,"2,265.36",17/02/2020
Delivery Units,Adults and Health,Other Agencies - Third Party P,90233541,JEWISH CARE,"14,637.82",17/02/2020
Delivery Units,Adults and Health,Other Agencies - Third Party P,90233543,JEWISH CARE,"13,461.12",17/02/2020
Delivery Units,Adults and Health,Other Agencies - Third Party P,90233547,JEWISH CARE,"2,482.36",17/02/2020
Delivery Units,Adults and Health,Other Agencies - Third Party P,90233553,JEWISH CARE,"2,484.56",17/02/2020
Delivery Units,Adults and Health,Other Agencies - Third Party P,90233558,JEWISH CARE,"2,484.56",17/02/2020
Delivery Units,Adults and Health,Other Agencies - Third Party P,90233559,JEWISH CARE,"2,484.56",17/02/2020
Delivery Units,Adults and Health,Other Agencies - Third Party P,90233560,JEWISH CARE,"2,296.24",17/02/2020
Delivery Units,Adults and Health,Other Agencies - Third Party P,90233562,JEWISH CARE,"2,296.24",17/02/2020
Delivery Units,Adults and Health,Other Agencies - Third Party P,90233563,JEWISH CARE,"2,296.24",17/02/2020
Delivery Units,Adults and Health,Other Agencies - Third Party P,90233564,JEWISH CARE,"2,480.92",17/02/2020
Delivery Units,Adults and Health,Other Agencies - Third Party P,90233565,JEWISH CARE,"2,484.56",17/02/2020
Delivery Units,Adults and Health,Other Agencies - Third Party P,90233572,JEWISH CARE,"2,484.56",17/02/2020
Delivery Units,Adults and Health,Other Agencies - Third Party P,90233575,JEWISH CARE,"2,296.24",17/02/2020
Delivery Units,Adults and Health,Other Agencies - Third Party P,90233577,JEWISH CARE,"1,033.31",17/02/2020
Delivery Units,Adults and Health,Other Agencies - Third Party P,90233578,JEWISH CARE,"2,296.24",17/02/2020
Delivery Units,Adults and Health,Other Agencies - Third Party P,90233579,JEWISH CARE,"2,479.68",17/02/2020
Delivery Units,Adults and Health,Other Agencies - Third Party P,90233582,JEWISH CARE,"2,482.36",17/02/2020
Delivery Units,Adults and Health,Other Agencies - Third Party P,90233583,JEWISH CARE,"2,482.36",17/02/2020
Delivery Units,Adults and Health,Other Agencies - Third Party P,90233584,JEWISH CARE,"2,479.68",17/02/2020
Delivery Units,Adults and Health,Other Agencies - Third Party P,90233585,JEWISH CARE,"2,296.24",17/02/2020
Delivery Units,Adults and Health,Other Agencies - Third Party P,90233590,JEWISH CARE,354.63,17/02/2020
Delivery Units,Adults and Health,Other Agencies - Third Party P,90233593,JEWISH CARE,"2,482.36",17/02/2020
Delivery Units,Adults and Health,Other Agencies - Third Party P,90233597,JEWISH CARE,"2,050.21",17/02/2020
Delivery Units,Adults and Health,Other Agencies - Third Party P,90233599,JEWISH CARE,"2,479.68",17/02/2020
Delivery Units,Adults and Health,Other Agencies - Third Party P,90233600,JEWISH CARE,"2,480.92",17/02/2020
Delivery Units,Adults and Health,Other Agencies - Third Party P,90233601,JEWISH CARE,"2,480.92",17/02/2020
Delivery Units,Adults and Health,Other Agencies - Third Party P,90233602,JEWISH CARE,"2,479.68",17/02/2020
Delivery Units,Adults and Health,Other Agencies - Third Party P,90233603,JEWISH CARE,"4,265.48",17/02/2020
Delivery Units,Adults and Health,Other Agencies - Third Party P,90233605,JEWISH CARE,"2,280.32",17/02/2020
Delivery Units,Adults and Health,Other Agencies - Third Party P,90233606,JEWISH CARE,"2,296.24",17/02/2020
Delivery Units,Adults and Health,Other Agencies - Third Party P,90233608,JEWISH CARE,"2,156.80",17/02/2020
Delivery Units,Adults and Health,Other Agencies - Third Party P,90233613,JEWISH CARE,"2,480.92",17/02/2020
Delivery Units,Adults and Health,Other Agencies - Third Party P,90233614,JEWISH CARE,"2,482.36",17/02/2020
Delivery Units,Adults and Health,Other Agencies - Third Party P,90233615,JEWISH CARE,"2,296.24",17/02/2020
Delivery Units,Adults and Health,Other Agencies - Third Party P,90233621,JEWISH CARE,"2,482.36",17/02/2020
Delivery Units,Adults and Health,Other Agencies - Third Party P,90233622,JEWISH CARE,"1,863.42",17/02/2020
Delivery Units,Adults and Health,Other Agencies - Third Party P,90233623,JEWISH CARE,"2,479.68",17/02/2020
Delivery Units,Adults and Health,Other Agencies - Third Party P,90233625,JEWISH CARE,"2,480.92",17/02/2020
Delivery Units,Adults and Health,Other Agencies - Third Party P,90233629,JEWISH CARE,"2,296.24",17/02/2020
Delivery Units,Adults and Health,Other Agencies - Third Party P,90233637,JEWISH CARE,"2,296.24",17/02/2020
Delivery Units,Adults and Health,Other Agencies - Third Party P,90233638,JEWISH CARE,"2,296.24",17/02/2020
Delivery Units,Adults and Health,Other Agencies - Third Party P,90233643,JEWISH CARE,"2,296.24",17/02/2020
Delivery Units,Adults and Health,Other Agencies - Third Party P,90233646,JEWISH CARE,"2,479.68",17/02/2020
Delivery Units,Adults and Health,Other Agencies - Third Party P,90233647,JEWISH CARE,-88.61,17/02/2020
Delivery Units,Adults and Health,Other Agencies - Third Party P,90233648,JEWISH CARE,"-3,374.27",17/02/2020
Delivery Units,Adults and Health,Other Agencies - Third Party P,90233650,JEWISH CARE,"2,649.36",17/02/2020
Delivery Units,Adults and Health,Other Agencies - Third Party P,90233651,JEWISH CARE,"2,480.92",17/02/2020
Delivery Units,Adults and Health,Other Agencies - Third Party P,90233654,JEWISH CARE,"2,479.68",17/02/2020
Delivery Units,Adults and Health,Other Agencies - Third Party P,90233656,JEWISH CARE,"2,479.68",17/02/2020
Delivery Units,Adults and Health,Other Agencies - Third Party P,90233657,JEWISH CARE,"2,482.36",17/02/2020
Delivery Units,Adults and Health,Other Agencies - Third Party P,90233658,JEWISH CARE,"2,484.56",17/02/2020
Delivery Units,Adults and Health,Other Agencies - Third Party P,90233660,JEWISH CARE,"2,484.56",17/02/2020
Delivery Units,Adults and Health,Other Agencies - Third Party P,90233662,JEWISH CARE,"2,296.24",17/02/2020
Delivery Units,Adults and Health,Other Agencies - Third Party P,90233667,JEWISH CARE,"2,296.24",17/02/2020
Delivery Units,Adults and Health,Other Agencies - Third Party P,90233668,JEWISH CARE,"4,922.72",17/02/2020
Delivery Units,Adults and Health,Other Agencies - Third Party P,90233672,JEWISH CARE,"-16,483.72",17/02/2020
Delivery Units,Adults and Health,Other Agencies - Third Party P,90233675,JEWISH CARE,"2,480.92",17/02/2020
Delivery Units,Adults and Health,Other Agencies - Third Party P,90233678,JEWISH CARE,"2,479.68",17/02/2020
Delivery Units,Adults and Health,Other Agencies - Third Party P,90233680,JEWISH CARE,"2,479.68",17/02/2020
Delivery Units,Adults and Health,Other Agencies - Third Party P,90233681,JEWISH CARE,"2,484.56",17/02/2020
Delivery Units,Adults and Health,Other Agencies - Third Party P,90233683,JEWISH CARE,"2,484.56",17/02/2020
Delivery Units,Adults and Health,Other Agencies - Third Party P,90233684,JEWISH CARE,"4,825.16",17/02/2020
Delivery Units,Adults and Health,Other Agencies - Third Party P,90233685,JEWISH CARE,"2,480.92",17/02/2020
Delivery Units,Adults and Health,Other Agencies - Third Party P,90233687,JEWISH CARE,"2,484.56",17/02/2020
Delivery Units,Adults and Health,Other Agencies - Third Party P,90233689,JEWISH CARE,"2,296.24",17/02/2020
Delivery Units,Adults and Health,Other Agencies - Third Party P,90233690,JEWISH CARE,"9,475.92",17/02/2020
Delivery Units,Adults and Health,Other Agencies - Third Party P,90233691,JEWISH CARE,"18,779.96",17/02/2020
Delivery Units,Adults and Health,Other Agencies - Third Party P,90235366,Karuna Manor,"3,935.71",26/02/2020
Delivery Units,Adults and Health,Other Agencies - Third Party P,90235373,Kestrel Grove Nursing Home,"2,862.71",26/02/2020
Delivery Units,Adults and Health,Other Agencies - Third Party P,90230541,LIVABILITY,"3,424.00",05/02/2020
Delivery Units,Adults and Health,Other Agencies - Third Party P,90230544,LIVABILITY,"3,180.00",05/02/2020
Delivery Units,Adults and Health,Other Agencies - Third Party P,90230673,NAZARETH HOUSE,"2,186.88",05/02/2020
Delivery Units,Adults and Health,Other Agencies - Third Party P,90235259,NAZARETH HOUSE,"2,186.88",26/02/2020
Delivery Units,Adults and Health,Other Agencies - Third Party P,90235260,NAZARETH HOUSE,"2,186.88",26/02/2020
Delivery Units,Adults and Health,Other Agencies - Third Party P,90235261,NAZARETH HOUSE,"2,186.88",26/02/2020
Delivery Units,Adults and Health,Other Agencies - Third Party P,90235262,NAZARETH HOUSE,"2,186.68",26/02/2020
Delivery Units,Adults and Health,Other Agencies - Third Party P,90235263,NAZARETH HOUSE,"2,186.88",26/02/2020
Delivery Units,Adults and Health,Other Agencies - Third Party P,90235264,NAZARETH HOUSE,"2,186.88",26/02/2020
Delivery Units,Adults and Health,Other Agencies - Third Party P,90235265,NAZARETH HOUSE,"2,350.08",26/02/2020
Delivery Units,Adults and Health,Other Agencies - Third Party P,90235266,NAZARETH HOUSE,"2,186.88",26/02/2020
Delivery Units,Adults and Health,Other Agencies - Third Party P,90235267,NAZARETH HOUSE,"2,186.88",26/02/2020
Delivery Units,Adults and Health,Other Agencies - Third Party P,90235268,NAZARETH HOUSE,"2,350.08",26/02/2020
Delivery Units,Adults and Health,Other Agencies - Third Party P,90235269,NAZARETH HOUSE,"2,186.88",26/02/2020
Delivery Units,Adults and Health,Other Agencies - Third Party P,90235270,NAZARETH HOUSE,"2,186.88",26/02/2020
Delivery Units,Adults and Health,Other Agencies - Third Party P,90235271,NAZARETH HOUSE,"2,144.00",26/02/2020
Delivery Units,Adults and Health,Other Agencies - Third Party P,90235272,NAZARETH HOUSE,"2,186.88",26/02/2020
Delivery Units,Adults and Health,Other Agencies - Third Party P,90235274,NAZARETH HOUSE,"2,650.40",26/02/2020
Delivery Units,Adults and Health,Other Agencies - Third Party P,90235275,NAZARETH HOUSE,"2,186.88",26/02/2020
Delivery Units,Adults and Health,Other Agencies - Third Party P,90235276,NAZARETH HOUSE,"2,350.08",26/02/2020
Delivery Units,Adults and Health,Other Agencies - Third Party P,90235277,NAZARETH HOUSE,"2,186.88",26/02/2020
Delivery Units,Adults and Health,Other Agencies - Third Party P,90235278,NAZARETH HOUSE,"2,186.88",26/02/2020
Delivery Units,Adults and Health,Other Agencies - Third Party P,90235279,NAZARETH HOUSE,"2,186.88",26/02/2020
Delivery Units,Adults and Health,Other Agencies - Third Party P,90235280,NAZARETH HOUSE,"2,186.88",26/02/2020
Delivery Units,Adults and Health,Other Agencies - Third Party P,90235281,NAZARETH HOUSE,"2,350.08",26/02/2020
Delivery Units,Adults and Health,Other Agencies - Third Party P,90235282,NAZARETH HOUSE,"2,350.08",26/02/2020
Delivery Units,Adults and Health,Other Agencies - Third Party P,90235283,NAZARETH HOUSE,"2,186.88",26/02/2020
Delivery Units,Adults and Health,Other Agencies - Third Party P,90235284,NAZARETH HOUSE,"2,186.88",26/02/2020
Delivery Units,Adults and Health,Other Agencies - Third Party P,90235285,NAZARETH HOUSE,"2,186.88",26/02/2020
Delivery Units,Adults and Health,Other Agencies - Third Party P,90235286,NAZARETH HOUSE,"2,186.88",26/02/2020
Delivery Units,Adults and Health,Other Agencies - Third Party P,90235287,NAZARETH HOUSE,"2,186.88",26/02/2020
Delivery Units,Adults and Health,Other Agencies - Third Party P,90235288,NAZARETH HOUSE,"2,350.08",26/02/2020
Delivery Units,Adults and Health,Other Agencies - Third Party P,90231658,NHS BARNET CCG,"15,676.00",06/02/2020
Delivery Units,Adults and Health,Other Agencies - Third Party P,90232810,NHS BARNET CCG,"7,880.98",13/02/2020
Delivery Units,Adults and Health,Other Agencies - Third Party P,90232059,NIGHTINGALE HOUSE,"2,437.71",11/02/2020
Delivery Units,Adults and Health,Other Agencies - Third Party P,90234029,QUANTUM CARE LIMITED,"3,321.43",17/02/2020
Delivery Units,Adults and Health,Other Agencies - Third Party P,90234030,QUANTUM CARE LIMITED,"4,207.14",17/02/2020
Delivery Units,Adults and Health,Other Agencies - Third Party P,90234034,QUANTUM CARE LIMITED,"3,542.86",17/02/2020
Delivery Units,Adults and Health,Other Agencies - Third Party P,90230604,SAGE NURSING HOME,"2,657.14",07/02/2020
Delivery Units,Adults and Health,Other Agencies - Third Party P,90230607,SAGE NURSING HOME,"2,679.29",07/02/2020
Delivery Units,Adults and Health,Other Agencies - Third Party P,90230608,SAGE NURSING HOME,"2,421.19",07/02/2020
Delivery Units,Adults and Health,Other Agencies - Third Party P,90230610,SAGE NURSING HOME,"3,100.00",07/02/2020
Delivery Units,Adults and Health,Other Agencies - Third Party P,90235489,SCIMITAR CARE HOTELS PLC,"3,728.57",27/02/2020
Delivery Units,Adults and Health,Other Agencies - Third Party P,90235490,SCIMITAR CARE HOTELS PLC,"3,521.43",27/02/2020
Delivery Units,Adults and Health,Other Agencies - Third Party P,90235491,SCIMITAR CARE HOTELS PLC,"3,935.71",27/02/2020
Delivery Units,Adults and Health,Other Agencies - Third Party P,90235407,Sonnet Care Homes (Essex) Ltd,"4,557.14",26/02/2020
Delivery Units,Adults and Health,Other Agencies - Third Party P,90235503,South Coast Care Homes Ltd,"2,402.85",27/02/2020
Delivery Units,Adults and Health,Other Agencies - Third Party P,90234037,SPRINGDENE,"5,070.71",17/02/2020
Delivery Units,Adults and Health,Other Agencies - Third Party P,90235389,SUNRIDGE HOUSING ASSOCIATION LTD,"2,711.21",26/02/2020
Delivery Units,Adults and Health,Other Agencies - Third Party P,90235390,SUNRIDGE HOUSING ASSOCIATION LTD,"2,796.70",26/02/2020
Delivery Units,Adults and Health,Other Agencies - Third Party P,90234830,THE BARNETGROUP LIMITED,"2,144.00",27/02/2020
Delivery Units,Adults and Health,Other Agencies - Third Party P,90234831,THE BARNETGROUP LIMITED,"2,144.00",27/02/2020
Delivery Units,Adults and Health,Other Agencies - Third Party P,90234832,THE BARNETGROUP LIMITED,"2,144.00",27/02/2020
Delivery Units,Adults and Health,Other Agencies - Third Party P,90234833,THE BARNETGROUP LIMITED,"-1,481.14",27/02/2020
Delivery Units,Adults and Health,Other Agencies - Third Party P,90234834,THE BARNETGROUP LIMITED,"2,304.00",27/02/2020
Delivery Units,Adults and Health,Other Agencies - Third Party P,90234835,THE BARNETGROUP LIMITED,"2,144.00",27/02/2020
Delivery Units,Adults and Health,Other Agencies - Third Party P,90234836,THE BARNETGROUP LIMITED,"2,144.00",27/02/2020
Delivery Units,Adults and Health,Other Agencies - Third Party P,90234837,THE BARNETGROUP LIMITED,"2,304.00",27/02/2020
Delivery Units,Adults and Health,Other Agencies - Third Party P,90234839,THE BARNETGROUP LIMITED,658.29,27/02/2020
Delivery Units,Adults and Health,Other Agencies - Third Party P,90234840,THE BARNETGROUP LIMITED,"2,304.00",27/02/2020
Delivery Units,Adults and Health,Other Agencies - Third Party P,90234841,THE BARNETGROUP LIMITED,"2,304.00",27/02/2020
Delivery Units,Adults and Health,Other Agencies - Third Party P,90234842,THE BARNETGROUP LIMITED,"2,144.00",27/02/2020
Delivery Units,Adults and Health,Other Agencies - Third Party P,90234843,THE BARNETGROUP LIMITED,"2,304.00",27/02/2020
Delivery Units,Adults and Health,Other Agencies - Third Party P,90234844,THE BARNETGROUP LIMITED,"2,144.00",27/02/2020
Delivery Units,Adults and Health,Other Agencies - Third Party P,90234845,THE BARNETGROUP LIMITED,"2,373.71",27/02/2020
Delivery Units,Adults and Health,Other Agencies - Third Party P,90234846,THE BARNETGROUP LIMITED,"2,144.00",27/02/2020
Delivery Units,Adults and Health,Other Agencies - Third Party P,90234847,THE BARNETGROUP LIMITED,"2,144.00",27/02/2020
Delivery Units,Adults and Health,Other Agencies - Third Party P,90234848,THE BARNETGROUP LIMITED,"2,304.00",27/02/2020
Delivery Units,Adults and Health,Other Agencies - Third Party P,90234849,THE BARNETGROUP LIMITED,"2,144.00",27/02/2020
Delivery Units,Adults and Health,Other Agencies - Third Party P,90234850,THE BARNETGROUP LIMITED,"2,304.00",27/02/2020
Delivery Units,Adults and Health,Other Agencies - Third Party P,90234851,THE BARNETGROUP LIMITED,"2,144.00",27/02/2020
Delivery Units,Adults and Health,Other Agencies - Third Party P,90234852,THE BARNETGROUP LIMITED,"2,144.00",27/02/2020
Delivery Units,Adults and Health,Other Agencies - Third Party P,90234853,THE BARNETGROUP LIMITED,"2,144.00",27/02/2020
Delivery Units,Adults and Health,Other Agencies - Third Party P,90234854,THE BARNETGROUP LIMITED,"3,210.29",27/02/2020
Delivery Units,Adults and Health,Other Agencies - Third Party P,90234855,THE BARNETGROUP LIMITED,"2,144.00",27/02/2020
Delivery Units,Adults and Health,Other Agencies - Third Party P,90234856,THE BARNETGROUP LIMITED,"2,304.00",27/02/2020
Delivery Units,Adults and Health,Other Agencies - Third Party P,90234857,THE BARNETGROUP LIMITED,"2,144.00",27/02/2020
Delivery Units,Adults and Health,Other Agencies - Third Party P,90234858,THE BARNETGROUP LIMITED,"2,304.00",27/02/2020
Delivery Units,Adults and Health,Other Agencies - Third Party P,90234859,THE BARNETGROUP LIMITED,"2,304.00",27/02/2020
Delivery Units,Adults and Health,Other Agencies - Third Party P,90234860,THE BARNETGROUP LIMITED,"2,694.00",27/02/2020
Delivery Units,Adults and Health,Other Agencies - Third Party P,90234861,THE BARNETGROUP LIMITED,"60,914.24",27/02/2020
Delivery Units,Adults and Health,Other Agencies - Third Party P,90234862,THE BARNETGROUP LIMITED,"2,304.00",27/02/2020
Delivery Units,Adults and Health,Other Agencies - Third Party P,90234863,THE BARNETGROUP LIMITED,"2,144.00",27/02/2020
Delivery Units,Adults and Health,Other Agencies - Third Party P,90234866,THE BARNETGROUP LIMITED,"2,304.00",27/02/2020
Delivery Units,Adults and Health,Other Agencies - Third Party P,90234867,THE BARNETGROUP LIMITED,"2,304.00",27/02/2020
Delivery Units,Adults and Health,Other Agencies - Third Party P,90234868,THE BARNETGROUP LIMITED,"2,144.00",27/02/2020
Delivery Units,Adults and Health,Other Agencies - Third Party P,90234869,THE BARNETGROUP LIMITED,"2,144.00",27/02/2020
Delivery Units,Adults and Health,Other Agencies - Third Party P,90234870,THE BARNETGROUP LIMITED,"2,144.00",27/02/2020
Delivery Units,Adults and Health,Other Agencies - Third Party P,90234871,THE BARNETGROUP LIMITED,"2,144.00",27/02/2020
Delivery Units,Adults and Health,Other Agencies - Third Party P,90234872,THE BARNETGROUP LIMITED,"2,144.00",27/02/2020
Delivery Units,Adults and Health,Other Agencies - Third Party P,90234874,THE BARNETGROUP LIMITED,"4,062.40",27/02/2020
Delivery Units,Adults and Health,Other Agencies - Third Party P,90234875,THE BARNETGROUP LIMITED,"-2,797.71",27/02/2020
Delivery Units,Adults and Health,Other Agencies - Third Party P,90234876,THE BARNETGROUP LIMITED,"1,152.00",27/02/2020
Delivery Units,Adults and Health,Other Agencies - Third Party P,90234877,THE BARNETGROUP LIMITED,"2,304.00",27/02/2020
Delivery Units,Adults and Health,Other Agencies - Third Party P,90234880,THE BARNETGROUP LIMITED,"2,144.00",27/02/2020
Delivery Units,Adults and Health,Other Agencies - Third Party P,90234881,THE BARNETGROUP LIMITED,"2,304.00",27/02/2020
Delivery Units,Adults and Health,Other Agencies - Third Party P,90234882,THE BARNETGROUP LIMITED,"2,304.00",27/02/2020
Delivery Units,Adults and Health,Other Agencies - Third Party P,90234883,THE BARNETGROUP LIMITED,"2,144.00",27/02/2020
Delivery Units,Adults and Health,Other Agencies - Third Party P,90234884,THE BARNETGROUP LIMITED,"2,304.00",27/02/2020
Delivery Units,Adults and Health,Other Agencies - Third Party P,90234885,THE BARNETGROUP LIMITED,"1,728.00",27/02/2020
Delivery Units,Adults and Health,Other Agencies - Third Party P,90234886,THE BARNETGROUP LIMITED,"3,567.52",27/02/2020
Delivery Units,Adults and Health,Other Agencies - Third Party P,90234888,THE BARNETGROUP LIMITED,"-3,006.32",27/02/2020
Delivery Units,Adults and Health,Other Agencies - Third Party P,90234889,THE BARNETGROUP LIMITED,"2,144.00",27/02/2020
Delivery Units,Adults and Health,Other Agencies - Third Party P,90234890,THE BARNETGROUP LIMITED,"2,144.00",27/02/2020
Delivery Units,Adults and Health,Other Agencies - Third Party P,90234891,THE BARNETGROUP LIMITED,995.42,27/02/2020
Delivery Units,Adults and Health,Other Agencies - Third Party P,90234893,THE BARNETGROUP LIMITED,"2,144.00",27/02/2020
Delivery Units,Adults and Health,Other Agencies - Third Party P,90234894,THE BARNETGROUP LIMITED,"2,144.00",27/02/2020
Delivery Units,Adults and Health,Other Agencies - Third Party P,90234896,THE BARNETGROUP LIMITED,"2,304.00",27/02/2020
Delivery Units,Adults and Health,Other Agencies - Third Party P,90234898,THE BARNETGROUP LIMITED,"2,144.00",27/02/2020
Delivery Units,Adults and Health,Other Agencies - Third Party P,90234899,THE BARNETGROUP LIMITED,"2,144.00",27/02/2020
Delivery Units,Adults and Health,Other Agencies - Third Party P,90234900,THE BARNETGROUP LIMITED,"2,144.00",27/02/2020
Delivery Units,Adults and Health,Other Agencies - Third Party P,90234901,THE BARNETGROUP LIMITED,"2,144.00",27/02/2020
Delivery Units,Adults and Health,Other Agencies - Third Party P,90234903,THE BARNETGROUP LIMITED,"2,144.00",27/02/2020
Delivery Units,Adults and Health,Other Agencies - Third Party P,90234904,THE BARNETGROUP LIMITED,"2,144.00",27/02/2020
Delivery Units,Adults and Health,Other Agencies - Third Party P,90234905,THE BARNETGROUP LIMITED,"2,144.00",27/02/2020
Delivery Units,Adults and Health,Other Agencies - Third Party P,90234907,THE BARNETGROUP LIMITED,"4,080.00",27/02/2020
Delivery Units,Adults and Health,Other Agencies - Third Party P,90234908,THE BARNETGROUP LIMITED,842.29,27/02/2020
Delivery Units,Adults and Health,Other Agencies - Third Party P,90234909,THE BARNETGROUP LIMITED,"2,304.00",27/02/2020
Delivery Units,Adults and Health,Other Agencies - Third Party P,90234910,THE BARNETGROUP LIMITED,"2,304.00",27/02/2020
Delivery Units,Adults and Health,Other Agencies - Third Party P,90234912,THE BARNETGROUP LIMITED,"-4,443.43",27/02/2020
Delivery Units,Adults and Health,Other Agencies - Third Party P,90234913,THE BARNETGROUP LIMITED,"2,304.00",27/02/2020
Delivery Units,Adults and Health,Other Agencies - Third Party P,90234914,THE BARNETGROUP LIMITED,"2,304.00",27/02/2020
Delivery Units,Adults and Health,Other Agencies - Third Party P,90234915,THE BARNETGROUP LIMITED,"2,304.00",27/02/2020
Delivery Units,Adults and Health,Other Agencies - Third Party P,90234916,THE BARNETGROUP LIMITED,"2,304.00",27/02/2020
Delivery Units,Adults and Health,Other Agencies - Third Party P,90234917,THE BARNETGROUP LIMITED,"2,304.00",27/02/2020
Delivery Units,Adults and Health,Other Agencies - Third Party P,90234918,THE BARNETGROUP LIMITED,"2,144.00",27/02/2020
Delivery Units,Adults and Health,Other Agencies - Third Party P,90234919,THE BARNETGROUP LIMITED,"-1,684.57",27/02/2020
Delivery Units,Adults and Health,Other Agencies - Third Party P,90234920,THE BARNETGROUP LIMITED,"2,144.00",27/02/2020
Delivery Units,Adults and Health,Other Agencies - Third Party P,90234921,THE BARNETGROUP LIMITED,"2,304.00",27/02/2020
Delivery Units,Adults and Health,Other Agencies - Third Party P,90234922,THE BARNETGROUP LIMITED,"2,144.00",27/02/2020
Delivery Units,Adults and Health,Other Agencies - Third Party P,90234924,THE BARNETGROUP LIMITED,"3,000.00",27/02/2020
Delivery Units,Adults and Health,Other Agencies - Third Party P,90234925,THE BARNETGROUP LIMITED,"3,791.47",27/02/2020
Delivery Units,Adults and Health,Other Agencies - Third Party P,90234926,THE BARNETGROUP LIMITED,"2,304.00",27/02/2020
Delivery Units,Adults and Health,Other Agencies - Third Party P,90234927,THE BARNETGROUP LIMITED,"1,378.29",27/02/2020
Delivery Units,Adults and Health,Other Agencies - Third Party P,90234928,THE BARNETGROUP LIMITED,"5,677.71",27/02/2020
Delivery Units,Adults and Health,Other Agencies - Third Party P,90230546,THE GRANGE,"2,350.08",04/02/2020
Delivery Units,Adults and Health,Other Agencies - Third Party P,90230547,THE GRANGE,"2,600.00",04/02/2020
Delivery Units,Adults and Health,Other Agencies - Third Party P,90233546,THE LIMES RESIDENTIAL HOME,"2,186.88",17/02/2020
Delivery Units,Adults and Health,Other Agencies - Third Party P,90233556,THE LIMES RESIDENTIAL HOME,"2,350.08",17/02/2020
Delivery Units,Adults and Health,Other Agencies - Third Party P,90233566,THE LIMES RESIDENTIAL HOME,"2,186.88",17/02/2020
Delivery Units,Adults and Health,Other Agencies - Third Party P,90233567,THE LIMES RESIDENTIAL HOME,"3,040.00",17/02/2020
Delivery Units,Adults and Health,Other Agencies - Third Party P,90233587,THE LIMES RESIDENTIAL HOME,"2,350.08",17/02/2020
Delivery Units,Adults and Health,Other Agencies - Third Party P,90233592,THE LIMES RESIDENTIAL HOME,"2,350.08",17/02/2020
Delivery Units,Adults and Health,Other Agencies - Third Party P,90233598,THE LIMES RESIDENTIAL HOME,"2,304.00",17/02/2020
Delivery Units,Adults and Health,Other Agencies - Third Party P,90233607,THE LIMES RESIDENTIAL HOME,"2,350.08",17/02/2020
Delivery Units,Adults and Health,Other Agencies - Third Party P,90233610,THE LIMES RESIDENTIAL HOME,"2,350.08",17/02/2020
Delivery Units,Adults and Health,Other Agencies - Third Party P,90233611,THE LIMES RESIDENTIAL HOME,"2,350.08",17/02/2020
Delivery Units,Adults and Health,Other Agencies - Third Party P,90233619,THE LIMES RESIDENTIAL HOME,"2,186.88",17/02/2020
Delivery Units,Adults and Health,Other Agencies - Third Party P,90233620,THE LIMES RESIDENTIAL HOME,"2,350.08",17/02/2020
Delivery Units,Adults and Health,Other Agencies - Third Party P,90233655,THE LIMES RESIDENTIAL HOME,"2,350.08",17/02/2020
Delivery Units,Adults and Health,Other Agencies - Third Party P,90233673,THE LIMES RESIDENTIAL HOME,"2,304.00",17/02/2020
Delivery Units,Adults and Health,Other Agencies - Third Party P,90233679,THE LIMES RESIDENTIAL HOME,"2,350.08",17/02/2020
Delivery Units,Adults and Health,Other Agencies - Third Party P,90230578,The Windmill Care Home,"1,872.40",04/02/2020
Delivery Units,Adults and Health,Other Agencies - Third Party P,90230650,THE WOODSIDE HOME,"2,186.88",05/02/2020
Delivery Units,Adults and Health,Other Agencies - Third Party P,90230651,THE WOODSIDE HOME,"2,186.88",05/02/2020
Delivery Units,Adults and Health,Other Agencies - Third Party P,90230652,THE WOODSIDE HOME,"2,186.88",05/02/2020
Delivery Units,Adults and Health,Other Agencies - Third Party P,90235067,VENTRY RESIDENTIAL CARE LTD,"3,321.43",25/02/2020
Delivery Units,Adults and Health,Other Agencies - Third Party P,90235068,VENTRY RESIDENTIAL CARE LTD,"3,100.00",25/02/2020
Delivery Units,Adults and Health,Other Agencies - Third Party P,90235070,VENTRY RESIDENTIAL CARE LTD,"2,601.87",25/02/2020
Delivery Units,Adults and Health,Other Agencies - Third Party P,90235071,VENTRY RESIDENTIAL CARE LTD,"3,321.43",25/02/2020
Delivery Units,Adults and Health,Other Agencies - Third Party P,90235372,Wordsworth House Care Home,"2,485.71",26/02/2020
Delivery Units,Adults and Health,Other Agencies - Third Party P,90231847,Z & M CARE LTD,"2,600.00",11/02/2020
Delivery Units,Adults and Health,Other Agencies - Third Party P,90235383,Z & M CARE LTD,"2,600.00",26/02/2020
Delivery Units,Adults and Health,Direct Transfer Payments to So,90230909,REDACTED - PERSONAL DATA,"1,143.16",05/02/2020
Delivery Units,Adults and Health,Fees and Charges,90225317,REDACTED - PERSONAL DATA,-24.4,05/02/2020
Delivery Units,Adults and Health,Direct Transfer Payments to So,90231400,REDACTED - PERSONAL DATA,"1,351.56",05/02/2020
Delivery Units,Adults and Health,Direct Transfer Payments to So,90231281,REDACTED - PERSONAL DATA,360.6,05/02/2020
Delivery Units,Adults and Health,Direct Transfer Payments to So,90231222,REDACTED - PERSONAL DATA,348,05/02/2020
Delivery Units,Adults and Health,Direct Transfer Payments to So,90231300,REDACTED - PERSONAL DATA,"1,560.72",05/02/2020
Delivery Units,Adults and Health,Direct Transfer Payments to So,90231378,REDACTED - PERSONAL DATA,112,05/02/2020
Delivery Units,Adults and Health,Direct Transfer Payments to So,90231559,REDACTED - PERSONAL DATA,377.88,05/02/2020
Delivery Units,Adults and Health,Direct Transfer Payments to So,90231612,REDACTED - PERSONAL DATA,586.96,05/02/2020
Delivery Units,Adults and Health,Direct Transfer Payments to So,90231540,REDACTED - PERSONAL DATA,"4,200.00",05/02/2020
Delivery Units,Adults and Health,Direct Transfer Payments to So,90231032,REDACTED - PERSONAL DATA,"1,185.32",05/02/2020
Delivery Units,Adults and Health,Direct Transfer Payments to So,90231634,REDACTED - PERSONAL DATA,349.12,05/02/2020
Delivery Units,Adults and Health,Direct Transfer Payments to So,90231530,REDACTED - PERSONAL DATA,"2,316.96",05/02/2020
Delivery Units,Adults and Health,Direct Transfer Payments to So,90231560,REDACTED - PERSONAL DATA,"1,238.92",05/02/2020
Delivery Units,Adults and Health,Direct Transfer Payments to So,90230957,REDACTED - PERSONAL DATA,"1,699.72",05/02/2020
Delivery Units,Adults and Health,Direct Transfer Payments to So,90233210,REDACTED - PERSONAL DATA,"1,688.80",17/02/2020
Delivery Units,Adults and Health,Direct Transfer Payments to So,90231201,REDACTED - PERSONAL DATA,975.36,05/02/2020
Delivery Units,Adults and Health,Direct Transfer Payments to So,90231636,REDACTED - PERSONAL DATA,"1,260.00",05/02/2020
Delivery Units,Adults and Health,Direct Transfer Payments to So,90231613,REDACTED - PERSONAL DATA,"2,375.08",05/02/2020
Delivery Units,Adults and Health,Fees and Charges,90230571,REDACTED - PERSONAL DATA,-158.25,05/02/2020
Delivery Units,Adults and Health,Direct Transfer Payments to So,90231152,REDACTED - PERSONAL DATA,451.92,05/02/2020
Delivery Units,Adults and Health,Direct Transfer Payments to So,90231193,REDACTED - PERSONAL DATA,144.24,05/02/2020
Delivery Units,Adults and Health,Direct Transfer Payments to So,90231513,REDACTED - PERSONAL DATA,"1,238.92",05/02/2020
Delivery Units,Adults and Health,Direct Transfer Payments to So,90230948,REDACTED - PERSONAL DATA,"2,027.36",05/02/2020
Delivery Units,Adults and Health,Direct Transfer Payments to So,90230923,REDACTED - PERSONAL DATA,961.6,05/02/2020
Delivery Units,Adults and Health,Direct Transfer Payments to So,90231106,REDACTED - PERSONAL DATA,547.08,05/02/2020
Delivery Units,Adults and Health,Fees and Charges,90231308,REDACTED - PERSONAL DATA,-428.72,05/02/2020
Delivery Units,Adults and Health,Fees and Charges,90230506,REDACTED - PERSONAL DATA,-143.35,05/02/2020
Delivery Units,Adults and Health,Direct Transfer Payments to So,90230504,REDACTED - PERSONAL DATA,"2,117.35",04/02/2020
Delivery Units,Adults and Health,Direct Transfer Payments to So,90230876,REDACTED - PERSONAL DATA,852.76,05/02/2020
Delivery Units,Adults and Health,Direct Transfer Payments to So,90231137,REDACTED - PERSONAL DATA,800,05/02/2020
Delivery Units,Adults and Health,Direct Transfer Payments to So,90230764,REDACTED - PERSONAL DATA,295.68,05/02/2020
Delivery Units,Adults and Health,Direct Transfer Payments to So,90231578,REDACTED - PERSONAL DATA,"2,781.72",05/02/2020
Delivery Units,Adults and Health,Direct Transfer Payments to So,90230748,REDACTED - PERSONAL DATA,611.4,05/02/2020
Delivery Units,Adults and Health,Direct Transfer Payments to So,90231156,REDACTED - PERSONAL DATA,"4,093.84",05/02/2020
Delivery Units,Adults and Health,Direct Transfer Payments to So,90231639,REDACTED - PERSONAL DATA,"2,331.60",05/02/2020
Delivery Units,Adults and Health,Direct Transfer Payments to So,90231161,REDACTED - PERSONAL DATA,"1,029.76",05/02/2020
Delivery Units,Adults and Health,Direct Transfer Payments to So,90231599,REDACTED - PERSONAL DATA,"2,751.32",05/02/2020
Delivery Units,Adults and Health,Direct Transfer Payments to So,90231255,REDACTED - PERSONAL DATA,240,05/02/2020
Delivery Units,Adults and Health,Direct Transfer Payments to So,90231595,REDACTED - PERSONAL DATA,903.92,05/02/2020
Delivery Units,Adults and Health,Direct Transfer Payments to So,90231049,REDACTED - PERSONAL DATA,795.56,05/02/2020
Delivery Units,Adults and Health,Direct Transfer Payments to So,90231529,REDACTED - PERSONAL DATA,"1,497.04",05/02/2020
Delivery Units,Adults and Health,Direct Transfer Payments to So,90231391,REDACTED - PERSONAL DATA,"1,194.24",05/02/2020
Delivery Units,Adults and Health,Direct Transfer Payments to So,90231485,REDACTED - PERSONAL DATA,"1,560.72",05/02/2020
Delivery Units,Adults and Health,Direct Transfer Payments to So,90231067,REDACTED - PERSONAL DATA,"1,545.48",05/02/2020
Delivery Units,Adults and Health,Direct Transfer Payments to So,90231250,REDACTED - PERSONAL DATA,"4,608.04",05/02/2020
Delivery Units,Adults and Health,Direct Transfer Payments to So,90231645,REDACTED - PERSONAL DATA,"1,350.80",05/02/2020
Delivery Units,Adults and Health,Fees and Charges,90230568,REDACTED - PERSONAL DATA,-468.9,05/02/2020
Delivery Units,Adults and Health,Direct Transfer Payments to So,90231059,REDACTED - PERSONAL DATA,"3,846.40",05/02/2020
Delivery Units,Adults and Health,Direct Transfer Payments to So,90231154,REDACTED - PERSONAL DATA,"2,933.80",05/02/2020
Delivery Units,Adults and Health,Direct Transfer Payments to So,90231228,REDACTED - PERSONAL DATA,"1,431.96",05/02/2020
Delivery Units,Adults and Health,Direct Transfer Payments to So,90231602,REDACTED - PERSONAL DATA,640,05/02/2020
Delivery Units,Adults and Health,Direct Transfer Payments to So,90231499,REDACTED - PERSONAL DATA,589.68,05/02/2020
Delivery Units,Adults and Health,Direct Transfer Payments to So,90231440,REDACTED - PERSONAL DATA,889.48,05/02/2020
Delivery Units,Adults and Health,Direct Transfer Payments to So,90231575,REDACTED - PERSONAL DATA,"2,843.24",05/02/2020
Delivery Units,Adults and Health,Direct Transfer Payments to So,90230565,REDACTED - PERSONAL DATA,"5,345.90",04/02/2020
Delivery Units,Adults and Health,Direct Transfer Payments to So,90231294,REDACTED - PERSONAL DATA,478.48,05/02/2020
Delivery Units,Adults and Health,Direct Transfer Payments to So,90231305,REDACTED - PERSONAL DATA,321.8,05/02/2020
Delivery Units,Adults and Health,Direct Transfer Payments to So,90231311,REDACTED - PERSONAL DATA,136,05/02/2020
Delivery Units,Adults and Health,Direct Transfer Payments to So,90231464,REDACTED - PERSONAL DATA,"1,308.64",05/02/2020
Delivery Units,Adults and Health,Direct Transfer Payments to So,90231298,REDACTED - PERSONAL DATA,"4,022.52",05/02/2020
Delivery Units,Adults and Health,Fees and Charges,90230509,REDACTED - PERSONAL DATA,291.02,04/02/2020
Delivery Units,Adults and Health,Direct Transfer Payments to So,90231170,REDACTED - PERSONAL DATA,"2,092.96",05/02/2020
Delivery Units,Adults and Health,Direct Transfer Payments to So,90231369,REDACTED - PERSONAL DATA,"1,346.12",05/02/2020
Delivery Units,Adults and Health,Direct Transfer Payments to So,90231125,REDACTED - PERSONAL DATA,772.32,05/02/2020
Delivery Units,Adults and Health,Direct Transfer Payments to So,90231358,REDACTED - PERSONAL DATA,944,05/02/2020
Delivery Units,Adults and Health,Direct Transfer Payments to So,90230566,REDACTED - PERSONAL DATA,"1,107.28",04/02/2020
Delivery Units,Adults and Health,Direct Transfer Payments to So,90231282,REDACTED - PERSONAL DATA,410.96,05/02/2020
Delivery Units,Adults and Health,Direct Transfer Payments to So,90231547,REDACTED - PERSONAL DATA,"2,300.00",05/02/2020
Delivery Units,Adults and Health,Direct Transfer Payments to So,90231110,REDACTED - PERSONAL DATA,560,05/02/2020
Delivery Units,Adults and Health,Direct Transfer Payments to So,90231427,REDACTED - PERSONAL DATA,649.08,05/02/2020
Delivery Units,Adults and Health,Direct Transfer Payments to So,90231207,REDACTED - PERSONAL DATA,"2,349.16",05/02/2020
Delivery Units,Adults and Health,Direct Transfer Payments to So,90231150,REDACTED - PERSONAL DATA,480.8,05/02/2020
Delivery Units,Adults and Health,Direct Transfer Payments to So,90231176,REDACTED - PERSONAL DATA,"1,351.56",05/02/2020
Delivery Units,Adults and Health,Direct Transfer Payments to So,90231290,REDACTED - PERSONAL DATA,"2,066.00",05/02/2020
Delivery Units,Adults and Health,Direct Transfer Payments to So,90231194,REDACTED - PERSONAL DATA,"1,351.56",05/02/2020
Delivery Units,Adults and Health,Direct Transfer Payments to So,90231316,REDACTED - PERSONAL DATA,966.4,05/02/2020
Delivery Units,Adults and Health,Direct Transfer Payments to So,90231304,REDACTED - PERSONAL DATA,"2,518.48",05/02/2020
Delivery Units,Adults and Health,Direct Transfer Payments to So,90231479,REDACTED - PERSONAL DATA,810,05/02/2020
Delivery Units,Adults and Health,Direct Transfer Payments to So,90231242,REDACTED - PERSONAL DATA,"2,400.00",05/02/2020
Delivery Units,Adults and Health,Direct Transfer Payments to So,90231249,REDACTED - PERSONAL DATA,"1,582.00",05/02/2020
Delivery Units,Adults and Health,Direct Transfer Payments to So,90231237,REDACTED - PERSONAL DATA,960,05/02/2020
Delivery Units,Adults and Health,Direct Transfer Payments to So,90231364,REDACTED - PERSONAL DATA,730.92,05/02/2020
Delivery Units,Adults and Health,Direct Transfer Payments to So,90231076,REDACTED - PERSONAL DATA,351.52,05/02/2020
Delivery Units,Adults and Health,Direct Transfer Payments to So,90231596,REDACTED - PERSONAL DATA,140,05/02/2020
Delivery Units,Adults and Health,Direct Transfer Payments to So,90231277,REDACTED - PERSONAL DATA,700,05/02/2020
Delivery Units,Adults and Health,Direct Transfer Payments to So,90230790,REDACTED - PERSONAL DATA,"1,238.92",05/02/2020
Delivery Units,Adults and Health,Fees and Charges,90230567,REDACTED - PERSONAL DATA,-392.74,05/02/2020
Delivery Units,Adults and Health,Direct Transfer Payments to So,90231317,REDACTED - PERSONAL DATA,"3,444.00",05/02/2020
Delivery Units,Adults and Health,Direct Transfer Payments to So,90231564,REDACTED - PERSONAL DATA,"2,796.44",05/02/2020
Delivery Units,Adults and Health,Direct Transfer Payments to So,90231571,REDACTED - PERSONAL DATA,"3,000.00",05/02/2020
Delivery Units,Adults and Health,Direct Transfer Payments to So,90231581,REDACTED - PERSONAL DATA,"1,802.08",05/02/2020
Delivery Units,Adults and Health,Direct Transfer Payments to So,90231532,REDACTED - PERSONAL DATA,675.8,05/02/2020
Delivery Units,Adults and Health,Direct Transfer Payments to So,90231537,REDACTED - PERSONAL DATA,"3,200.00",05/02/2020
Delivery Units,Adults and Health,Direct Transfer Payments to So,90231421,REDACTED - PERSONAL DATA,"2,931.20",05/02/2020
Delivery Units,Adults and Health,Direct Transfer Payments to So,90230815,REDACTED - PERSONAL DATA,"2,703.12",05/02/2020
Delivery Units,Adults and Health,Direct Transfer Payments to So,90231253,REDACTED - PERSONAL DATA,"2,520.00",05/02/2020
Delivery Units,Adults and Health,Direct Transfer Payments to So,90231007,REDACTED - PERSONAL DATA,"2,056.84",05/02/2020
Delivery Units,Adults and Health,Direct Transfer Payments to So,90231441,REDACTED - PERSONAL DATA,231.4,05/02/2020
Delivery Units,Adults and Health,Direct Transfer Payments to So,90230512,REDACTED - PERSONAL DATA,"1,120.00",04/02/2020
Delivery Units,Adults and Health,Direct Transfer Payments to So,90230742,REDACTED - PERSONAL DATA,"2,638.76",05/02/2020
Delivery Units,Adults and Health,Direct Transfer Payments to So,90230875,REDACTED - PERSONAL DATA,"3,834.44",05/02/2020
Delivery Units,Adults and Health,Direct Transfer Payments to So,90231187,REDACTED - PERSONAL DATA,"1,208.00",05/02/2020
Delivery Units,Adults and Health,Direct Transfer Payments to So,90231141,REDACTED - PERSONAL DATA,490.04,05/02/2020
Delivery Units,Adults and Health,Direct Transfer Payments to So,90231516,REDACTED - PERSONAL DATA,482.72,05/02/2020
Delivery Units,Adults and Health,Direct Transfer Payments to So,90231396,REDACTED - PERSONAL DATA,792.88,05/02/2020
Delivery Units,Adults and Health,Direct Transfer Payments to So,90231610,REDACTED - PERSONAL DATA,384.64,05/02/2020
Delivery Units,Adults and Health,Direct Transfer Payments to So,90231405,REDACTED - PERSONAL DATA,804.52,05/02/2020
Delivery Units,Adults and Health,Other Agencies - Third Party P,90233211,Alina Homecare Ltd,275.52,17/02/2020
Delivery Units,Adults and Health,Other Agencies - Third Party P,90233213,Alina Homecare Ltd,336.77,17/02/2020
Delivery Units,Adults and Health,Other Agencies - Third Party P,90233217,Alina Homecare Ltd,161.84,17/02/2020
Delivery Units,Adults and Health,Other Agencies - Third Party P,90233218,Alina Homecare Ltd,214.34,17/02/2020
Delivery Units,Adults and Health,Other Agencies - Third Party P,90233219,Alina Homecare Ltd,332.42,17/02/2020
Delivery Units,Adults and Health,Other Agencies - Third Party P,90233220,Alina Homecare Ltd,122.43,17/02/2020
Delivery Units,Adults and Health,Other Agencies - Third Party P,90233221,Alina Homecare Ltd,153.09,17/02/2020
Delivery Units,Adults and Health,Other Agencies - Third Party P,90233225,Alina Homecare Ltd,91.84,17/02/2020
Delivery Units,Adults and Health,Other Agencies - Third Party P,90233226,Alina Homecare Ltd,91.84,17/02/2020
Delivery Units,Adults and Health,Other Agencies - Third Party P,90233227,Alina Homecare Ltd,52.47,17/02/2020
Delivery Units,Adults and Health,Other Agencies - Third Party P,90233228,Alina Homecare Ltd,314.92,17/02/2020
Delivery Units,Adults and Health,Other Agencies - Third Party P,90233229,Alina Homecare Ltd,275.52,17/02/2020
Delivery Units,Adults and Health,Other Agencies - Third Party P,90233231,Alina Homecare Ltd,214.34,17/02/2020
Delivery Units,Adults and Health,Other Agencies - Third Party P,90233232,Alina Homecare Ltd,153.09,17/02/2020
Delivery Units,Adults and Health,Other Agencies - Third Party P,90233233,Alina Homecare Ltd,218.72,17/02/2020
Delivery Units,Adults and Health,Other Agencies - Third Party P,90233235,Alina Homecare Ltd,122.43,17/02/2020
Delivery Units,Adults and Health,Other Agencies - Third Party P,90233236,Alina Homecare Ltd,341.16,17/02/2020
Delivery Units,Adults and Health,Other Agencies - Third Party P,90233237,Alina Homecare Ltd,244.86,17/02/2020
Delivery Units,Adults and Health,Other Agencies - Third Party P,90233238,Alina Homecare Ltd,301.76,17/02/2020
Delivery Units,Adults and Health,Other Agencies - Third Party P,90233240,Alina Homecare Ltd,78.72,17/02/2020
Delivery Units,Adults and Health,Other Agencies - Third Party P,90233242,Alina Homecare Ltd,358.65,17/02/2020
Delivery Units,Adults and Health,Other Agencies - Third Party P,90233243,Alina Homecare Ltd,78.73,17/02/2020
Delivery Units,Adults and Health,Other Agencies - Third Party P,90233244,Alina Homecare Ltd,201.17,17/02/2020
Delivery Units,Adults and Health,Other Agencies - Third Party P,90233247,Alina Homecare Ltd,153.09,17/02/2020
Delivery Units,Adults and Health,Other Agencies - Third Party P,90233248,Alina Homecare Ltd,275.48,17/02/2020
Delivery Units,Adults and Health,Other Agencies - Third Party P,90233250,Alina Homecare Ltd,275.59,17/02/2020
Delivery Units,Adults and Health,Other Agencies - Third Party P,90233251,Alina Homecare Ltd,275.58,17/02/2020
Delivery Units,Adults and Health,Other Agencies - Third Party P,90233252,Alina Homecare Ltd,26.25,17/02/2020
Delivery Units,Adults and Health,Other Agencies - Third Party P,90233253,Alina Homecare Ltd,65.6,17/02/2020
Delivery Units,Adults and Health,Other Agencies - Third Party P,90233254,Alina Homecare Ltd,153.09,17/02/2020
Delivery Units,Adults and Health,Other Agencies - Third Party P,90233255,Alina Homecare Ltd,65.6,17/02/2020
Delivery Units,Adults and Health,Other Agencies - Third Party P,90233258,Alina Homecare Ltd,109.32,17/02/2020
Delivery Units,Adults and Health,Other Agencies - Third Party P,90233259,Alina Homecare Ltd,17.5,17/02/2020
Delivery Units,Adults and Health,Other Agencies - Third Party P,90233260,Alina Homecare Ltd,153.09,17/02/2020
Delivery Units,Adults and Health,Other Agencies - Third Party P,90233261,Alina Homecare Ltd,91.84,17/02/2020
Delivery Units,Adults and Health,Other Agencies - Third Party P,90233263,Alina Homecare Ltd,139.98,17/02/2020
Delivery Units,Adults and Health,Other Agencies - Third Party P,90233264,Alina Homecare Ltd,113.69,17/02/2020
Delivery Units,Adults and Health,Other Agencies - Third Party P,90233266,Alina Homecare Ltd,201.19,17/02/2020
Delivery Units,Adults and Health,Other Agencies - Third Party P,90233267,Alina Homecare Ltd,148.68,17/02/2020
Delivery Units,Adults and Health,Other Agencies - Third Party P,90233268,Alina Homecare Ltd,196.8,17/02/2020
Delivery Units,Adults and Health,Other Agencies - Third Party P,90233270,Alina Homecare Ltd,284.21,17/02/2020
Delivery Units,Adults and Health,Other Agencies - Third Party P,90233271,Alina Homecare Ltd,43.72,17/02/2020
Delivery Units,Adults and Health,Other Agencies - Third Party P,90233272,Alina Homecare Ltd,669.18,17/02/2020
Delivery Units,Adults and Health,Other Agencies - Third Party P,90233274,Alina Homecare Ltd,166.2,17/02/2020
Delivery Units,Adults and Health,Other Agencies - Third Party P,90233279,Alina Homecare Ltd,279.92,17/02/2020
Delivery Units,Adults and Health,Other Agencies - Third Party P,90233284,Alina Homecare Ltd,481.11,17/02/2020
Delivery Units,Adults and Health,Other Agencies - Third Party P,90233285,Alina Homecare Ltd,122.43,17/02/2020
Delivery Units,Adults and Health,Other Agencies - Third Party P,90233286,Alina Homecare Ltd,454.78,17/02/2020
Delivery Units,Adults and Health,Other Agencies - Third Party P,90233288,Alina Homecare Ltd,275.59,17/02/2020
Delivery Units,Adults and Health,Other Agencies - Third Party P,90233289,Alina Homecare Ltd,122.49,17/02/2020
Delivery Units,Adults and Health,Other Agencies - Third Party P,90233290,Alina Homecare Ltd,91.84,17/02/2020
Delivery Units,Adults and Health,Other Agencies - Third Party P,90233292,Alina Homecare Ltd,91.84,17/02/2020
Delivery Units,Adults and Health,Other Agencies - Third Party P,90233293,Alina Homecare Ltd,34.98,17/02/2020
Delivery Units,Adults and Health,Other Agencies - Third Party P,90233294,Alina Homecare Ltd,660.43,17/02/2020
Delivery Units,Adults and Health,Other Agencies - Third Party P,90233295,Alina Homecare Ltd,78.72,17/02/2020
Delivery Units,Adults and Health,Other Agencies - Third Party P,90233296,Alina Homecare Ltd,358.65,17/02/2020
Delivery Units,Adults and Health,Other Agencies - Third Party P,90233297,Alina Homecare Ltd,201.17,17/02/2020
Delivery Units,Adults and Health,Other Agencies - Third Party P,90233299,Alina Homecare Ltd,336.77,17/02/2020
Delivery Units,Adults and Health,Other Agencies - Third Party P,90233301,Alina Homecare Ltd,275.59,17/02/2020
Delivery Units,Adults and Health,Other Agencies - Third Party P,90233303,Alina Homecare Ltd,153.09,17/02/2020
Delivery Units,Adults and Health,Other Agencies - Third Party P,90233305,Alina Homecare Ltd,332.42,17/02/2020
Delivery Units,Adults and Health,Other Agencies - Third Party P,90233306,Alina Homecare Ltd,122.43,17/02/2020
Delivery Units,Adults and Health,Other Agencies - Third Party P,90233309,Alina Homecare Ltd,91.84,17/02/2020
Delivery Units,Adults and Health,Other Agencies - Third Party P,90233310,Alina Homecare Ltd,91.84,17/02/2020
Delivery Units,Adults and Health,Other Agencies - Third Party P,90233311,Alina Homecare Ltd,214.34,17/02/2020
Delivery Units,Adults and Health,Other Agencies - Third Party P,90233312,Alina Homecare Ltd,52.47,17/02/2020
Delivery Units,Adults and Health,Other Agencies - Third Party P,90233313,Alina Homecare Ltd,275.52,17/02/2020
Delivery Units,Adults and Health,Other Agencies - Third Party P,90233315,Alina Homecare Ltd,214.34,17/02/2020
Delivery Units,Adults and Health,Other Agencies - Third Party P,90233316,Alina Homecare Ltd,341.16,17/02/2020
Delivery Units,Adults and Health,Other Agencies - Third Party P,90233317,Alina Homecare Ltd,244.86,17/02/2020
Delivery Units,Adults and Health,Other Agencies - Third Party P,90233319,Alina Homecare Ltd,301.76,17/02/2020
Delivery Units,Adults and Health,Other Agencies - Third Party P,90233323,Alina Homecare Ltd,266.76,17/02/2020
Delivery Units,Adults and Health,Other Agencies - Third Party P,90233324,Alina Homecare Ltd,91.86,17/02/2020
Delivery Units,Adults and Health,Other Agencies - Third Party P,90233327,Alina Homecare Ltd,153.09,17/02/2020
Delivery Units,Adults and Health,Other Agencies - Third Party P,90233328,Alina Homecare Ltd,275.48,17/02/2020
Delivery Units,Adults and Health,Other Agencies - Third Party P,90233330,Alina Homecare Ltd,275.59,17/02/2020
Delivery Units,Adults and Health,Other Agencies - Third Party P,90233331,Alina Homecare Ltd,21.87,17/02/2020
Delivery Units,Adults and Health,Other Agencies - Third Party P,90233332,Alina Homecare Ltd,61.23,17/02/2020
Delivery Units,Adults and Health,Other Agencies - Third Party P,90233335,Alina Homecare Ltd,122.43,17/02/2020
Delivery Units,Adults and Health,Other Agencies - Third Party P,90233336,Alina Homecare Ltd,26.25,17/02/2020
Delivery Units,Adults and Health,Other Agencies - Third Party P,90233337,Alina Homecare Ltd,161.84,17/02/2020
Delivery Units,Adults and Health,Other Agencies - Third Party P,90233338,Alina Homecare Ltd,153.09,17/02/2020
Delivery Units,Adults and Health,Other Agencies - Third Party P,90233339,Alina Homecare Ltd,209.96,17/02/2020
Delivery Units,Adults and Health,Other Agencies - Third Party P,90233340,Alina Homecare Ltd,83.1,17/02/2020
Delivery Units,Adults and Health,Other Agencies - Third Party P,90233341,Alina Homecare Ltd,153.09,17/02/2020
Delivery Units,Adults and Health,Other Agencies - Third Party P,90233343,Alina Homecare Ltd,153.09,17/02/2020
Delivery Units,Adults and Health,Other Agencies - Third Party P,90233345,Alina Homecare Ltd,104.95,17/02/2020
Delivery Units,Adults and Health,Other Agencies - Third Party P,90233347,Alina Homecare Ltd,144.31,17/02/2020
Delivery Units,Adults and Health,Other Agencies - Third Party P,90233348,Alina Homecare Ltd,183.68,17/02/2020
Delivery Units,Adults and Health,Other Agencies - Third Party P,90233350,Alina Homecare Ltd,323.56,17/02/2020
Delivery Units,Adults and Health,Other Agencies - Third Party P,90233351,Alina Homecare Ltd,323.67,17/02/2020
Delivery Units,Adults and Health,Other Agencies - Third Party P,90233352,Alina Homecare Ltd,69.96,17/02/2020
Delivery Units,Adults and Health,Other Agencies - Third Party P,90233353,Alina Homecare Ltd,638.57,17/02/2020
Delivery Units,Adults and Health,Other Agencies - Third Party P,90233355,Alina Homecare Ltd,205.53,17/02/2020
Delivery Units,Adults and Health,Other Agencies - Third Party P,90233360,Alina Homecare Ltd,310.53,17/02/2020
Delivery Units,Adults and Health,Other Agencies - Third Party P,90233361,Alina Homecare Ltd,148.72,17/02/2020
Delivery Units,Adults and Health,Other Agencies - Third Party P,90233363,Alina Homecare Ltd,214.36,17/02/2020
Delivery Units,Adults and Health,Other Agencies - Third Party P,90233368,Alina Homecare Ltd,109.32,17/02/2020
Delivery Units,Adults and Health,Other Agencies - Third Party P,90233369,Alina Homecare Ltd,494.23,17/02/2020
Delivery Units,Adults and Health,Other Agencies - Third Party P,90233370,Alina Homecare Ltd,118.06,17/02/2020
Delivery Units,Adults and Health,Other Agencies - Third Party P,90233371,Alina Homecare Ltd,411.06,17/02/2020
Delivery Units,Adults and Health,Other Agencies - Third Party P,90233373,Alina Homecare Ltd,275.59,17/02/2020
Delivery Units,Adults and Health,Other Agencies - Third Party P,90233374,Alina Homecare Ltd,122.5,17/02/2020
Delivery Units,Adults and Health,Other Agencies - Third Party P,90233375,Alina Homecare Ltd,91.84,17/02/2020
Delivery Units,Adults and Health,Other Agencies - Third Party P,90233376,Alina Homecare Ltd,91.84,17/02/2020
Delivery Units,Adults and Health,Other Agencies - Third Party P,90233377,Alina Homecare Ltd,56.85,17/02/2020
Delivery Units,Adults and Health,Other Agencies - Third Party P,90233378,Alina Homecare Ltd,656.06,17/02/2020
Delivery Units,Adults and Health,Other Agencies - Third Party P,90232727,BARNET CARERS CENTRE,491.02,11/02/2020
Delivery Units,Adults and Health,Other Agencies - Third Party P,90232728,BARNET CARERS CENTRE,596.33,11/02/2020
Delivery Units,Adults and Health,Other Agencies - Third Party P,90232731,BARNET CARERS CENTRE,593.24,11/02/2020
Delivery Units,Adults and Health,Other Agencies - Third Party P,90232733,BARNET CARERS CENTRE,278.8,11/02/2020
Delivery Units,Adults and Health,Other Agencies - Third Party P,90232734,BARNET CARERS CENTRE,250.92,11/02/2020
Delivery Units,Adults and Health,Other Agencies - Third Party P,90232737,BARNET CARERS CENTRE,460.04,11/02/2020
Delivery Units,Adults and Health,Other Agencies - Third Party P,90232738,BARNET CARERS CENTRE,596.33,11/02/2020
Delivery Units,Adults and Health,Other Agencies - Third Party P,90232741,BARNET CARERS CENTRE,590.15,11/02/2020
Delivery Units,Adults and Health,Other Agencies - Third Party P,90232743,BARNET CARERS CENTRE,223.04,11/02/2020
Delivery Units,Adults and Health,Other Agencies - Third Party P,90232744,BARNET CARERS CENTRE,223.04,11/02/2020
Delivery Units,Adults and Health,Other Agencies - Third Party P,90232747,BARNET CARERS CENTRE,473.98,11/02/2020
Delivery Units,Adults and Health,Other Agencies - Third Party P,90232748,BARNET CARERS CENTRE,596.33,11/02/2020
Delivery Units,Adults and Health,Other Agencies - Third Party P,90232751,BARNET CARERS CENTRE,607.18,11/02/2020
Delivery Units,Adults and Health,Other Agencies - Third Party P,90232753,BARNET CARERS CENTRE,473.96,11/02/2020
Delivery Units,Adults and Health,Other Agencies - Third Party P,90232754,BARNET CARERS CENTRE,250.92,11/02/2020
Delivery Units,Adults and Health,Other Agencies - Third Party P,90232757,BARNET CARERS CENTRE,498.11,11/02/2020
Delivery Units,Adults and Health,Other Agencies - Third Party P,90232758,BARNET CARERS CENTRE,681.75,11/02/2020
Delivery Units,Adults and Health,Other Agencies - Third Party P,90232761,BARNET CARERS CENTRE,684.84,11/02/2020
Delivery Units,Adults and Health,Other Agencies - Third Party P,90232763,BARNET CARERS CENTRE,515.94,11/02/2020
Delivery Units,Adults and Health,Other Agencies - Third Party P,90232764,BARNET CARERS CENTRE,250.96,11/02/2020
Delivery Units,Adults and Health,Other Agencies - Third Party P,90231668,Bluebird Care (Barnet),420,06/02/2020
Delivery Units,Adults and Health,Other Agencies - Third Party P,90231669,Bluebird Care (Barnet),633.9,06/02/2020
Delivery Units,Adults and Health,Other Agencies - Third Party P,90231671,Bluebird Care (Barnet),390,06/02/2020
Delivery Units,Adults and Health,Other Agencies - Third Party P,90231672,Bluebird Care (Barnet),348.45,06/02/2020
Delivery Units,Adults and Health,Other Agencies - Third Party P,90231673,Bluebird Care (Barnet),90.9,06/02/2020
Delivery Units,Adults and Health,Other Agencies - Third Party P,90231674,Bluebird Care (Barnet),636.3,06/02/2020
Delivery Units,Adults and Health,Other Agencies - Third Party P,90231675,Bluebird Care (Barnet),90.9,06/02/2020
Delivery Units,Adults and Health,Other Agencies - Third Party P,90231676,Bluebird Care (Barnet),106.05,06/02/2020
Delivery Units,Adults and Health,Other Agencies - Third Party P,90231678,Bluebird Care (Barnet),181.8,06/02/2020
Delivery Units,Adults and Health,Other Agencies - Third Party P,90231679,Bluebird Care (Barnet),636.3,06/02/2020
Delivery Units,Adults and Health,Other Agencies - Third Party P,90231680,Bluebird Care (Barnet),949.4,06/02/2020
Delivery Units,Adults and Health,Other Agencies - Third Party P,90231681,Bluebird Care (Barnet),181.8,06/02/2020
Delivery Units,Adults and Health,Other Agencies - Third Party P,90231683,Bluebird Care (Barnet),"1,494.80",06/02/2020
Delivery Units,Adults and Health,Other Agencies - Third Party P,90231684,Bluebird Care (Barnet),459.55,06/02/2020
Delivery Units,Adults and Health,Other Agencies - Third Party P,90231686,Bluebird Care (Barnet),494.9,06/02/2020
Delivery Units,Adults and Health,Other Agencies - Third Party P,90231687,Bluebird Care (Barnet),131.3,06/02/2020
Delivery Units,Adults and Health,Other Agencies - Third Party P,90231688,Bluebird Care (Barnet),782.75,06/02/2020
Delivery Units,Adults and Health,Other Agencies - Third Party P,90231691,Bluebird Care (Barnet),"1,060.50",06/02/2020
Delivery Units,Adults and Health,Other Agencies - Third Party P,90231692,Bluebird Care (Barnet),202,06/02/2020
Delivery Units,Adults and Health,Other Agencies - Third Party P,90231693,Bluebird Care (Barnet),565.6,06/02/2020
Delivery Units,Adults and Health,Other Agencies - Third Party P,90231694,Bluebird Care (Barnet),"2,800.00",06/02/2020
Delivery Units,Adults and Health,Other Agencies - Third Party P,90231695,Bluebird Care (Barnet),227.25,06/02/2020
Delivery Units,Adults and Health,Other Agencies - Third Party P,90231696,Bluebird Care (Barnet),424.2,06/02/2020
Delivery Units,Adults and Health,Other Agencies - Third Party P,90231697,Bluebird Care (Barnet),515.1,06/02/2020
Delivery Units,Adults and Health,Other Agencies - Third Party P,90231698,Bluebird Care (Barnet),424.2,06/02/2020
Delivery Units,Adults and Health,Other Agencies - Third Party P,90231699,Bluebird Care (Barnet),"1,568.00",06/02/2020
Delivery Units,Adults and Health,Other Agencies - Third Party P,90231700,Bluebird Care (Barnet),141.4,06/02/2020
Delivery Units,Adults and Health,Other Agencies - Third Party P,90231702,Bluebird Care (Barnet),742.35,06/02/2020
Delivery Units,Adults and Health,Other Agencies - Third Party P,90231705,Bluebird Care (Barnet),575.7,06/02/2020
Delivery Units,Adults and Health,Other Agencies - Third Party P,90231706,Bluebird Care (Barnet),600.95,06/02/2020
Delivery Units,Adults and Health,Other Agencies - Third Party P,90231707,Bluebird Care (Barnet),"1,838.20",06/02/2020
Delivery Units,Adults and Health,Other Agencies - Third Party P,90231708,Bluebird Care (Barnet),565.6,06/02/2020
Delivery Units,Adults and Health,Other Agencies - Third Party P,90231709,Bluebird Care (Barnet),202,06/02/2020
Delivery Units,Adults and Health,Other Agencies - Third Party P,90231710,Bluebird Care (Barnet),151.5,06/02/2020
Delivery Units,Adults and Health,Other Agencies - Third Party P,90231712,Bluebird Care (Barnet),151.5,06/02/2020
Delivery Units,Adults and Health,Other Agencies - Third Party P,90234451,Bluebird Care (Barnet),323.2,21/02/2020
Delivery Units,Adults and Health,Other Agencies - Third Party P,90234520,Bluebird Care (Barnet),90.9,21/02/2020
Delivery Units,Adults and Health,Other Agencies - Third Party P,90234522,Bluebird Care (Barnet),762.55,21/02/2020
Delivery Units,Adults and Health,Other Agencies - Third Party P,90234523,Bluebird Care (Barnet),247.45,21/02/2020
Delivery Units,Adults and Health,Other Agencies - Third Party P,90234525,Bluebird Care (Barnet),227.25,21/02/2020
Delivery Units,Adults and Health,Other Agencies - Third Party P,90234527,Bluebird Care (Barnet),70.7,21/02/2020
Delivery Units,Adults and Health,Other Agencies - Third Party P,90234528,Bluebird Care (Barnet),207.05,21/02/2020
Delivery Units,Adults and Health,Other Agencies - Third Party P,90234529,Bluebird Care (Barnet),101,21/02/2020
Delivery Units,Adults and Health,Other Agencies - Third Party P,90234531,Bluebird Care (Barnet),530.25,21/02/2020
Delivery Units,Adults and Health,Other Agencies - Third Party P,90234532,Bluebird Care (Barnet),121.2,21/02/2020
Delivery Units,Adults and Health,Other Agencies - Third Party P,90234533,Bluebird Care (Barnet),282.8,21/02/2020
Delivery Units,Adults and Health,Other Agencies - Third Party P,90234534,Bluebird Care (Barnet),"1,400.00",21/02/2020
Delivery Units,Adults and Health,Other Agencies - Third Party P,90234535,Bluebird Care (Barnet),121.2,21/02/2020
Delivery Units,Adults and Health,Other Agencies - Third Party P,90234536,Bluebird Care (Barnet),212.1,21/02/2020
Delivery Units,Adults and Health,Other Agencies - Third Party P,90234537,Bluebird Care (Barnet),257.55,21/02/2020
Delivery Units,Adults and Health,Other Agencies - Third Party P,90234538,Bluebird Care (Barnet),212.1,21/02/2020
Delivery Units,Adults and Health,Other Agencies - Third Party P,90234539,Bluebird Care (Barnet),784,21/02/2020
Delivery Units,Adults and Health,Other Agencies - Third Party P,90234540,Bluebird Care (Barnet),30.3,21/02/2020
Delivery Units,Adults and Health,Other Agencies - Third Party P,90234542,Bluebird Care (Barnet),358.55,21/02/2020
Delivery Units,Adults and Health,Other Agencies - Third Party P,90234543,Bluebird Care (Barnet),287.85,21/02/2020
Delivery Units,Adults and Health,Other Agencies - Third Party P,90234546,Bluebird Care (Barnet),30.3,21/02/2020
Delivery Units,Adults and Health,Other Agencies - Third Party P,90234547,Bluebird Care (Barnet),903.95,21/02/2020
Delivery Units,Adults and Health,Other Agencies - Third Party P,90234548,Bluebird Care (Barnet),282.8,21/02/2020
Delivery Units,Adults and Health,Other Agencies - Third Party P,90234549,Bluebird Care (Barnet),318.15,21/02/2020
Delivery Units,Adults and Health,Other Agencies - Third Party P,90234550,Bluebird Care (Barnet),121.2,21/02/2020
Delivery Units,Adults and Health,Other Agencies - Third Party P,90234551,Bluebird Care (Barnet),75.75,21/02/2020
Delivery Units,Adults and Health,Other Agencies - Third Party P,90234553,Bluebird Care (Barnet),75.75,21/02/2020
Delivery Units,Adults and Health,Other Agencies - Third Party P,90234554,Bluebird Care (Barnet),474.7,21/02/2020
Delivery Units,Adults and Health,Other Agencies - Third Party P,90234557,Bluebird Care (Barnet),90.9,21/02/2020
Delivery Units,Adults and Health,Other Agencies - Third Party P,90234559,Bluebird Care (Barnet),757.5,21/02/2020
Delivery Units,Adults and Health,Other Agencies - Third Party P,90234560,Bluebird Care (Barnet),247.45,21/02/2020
Delivery Units,Adults and Health,Other Agencies - Third Party P,90234562,Bluebird Care (Barnet),247.45,21/02/2020
Delivery Units,Adults and Health,Other Agencies - Third Party P,90234564,Bluebird Care (Barnet),70.7,21/02/2020
Delivery Units,Adults and Health,Other Agencies - Third Party P,90234565,Bluebird Care (Barnet),333.3,21/02/2020
Delivery Units,Adults and Health,Other Agencies - Third Party P,90234566,Bluebird Care (Barnet),101,21/02/2020
Delivery Units,Adults and Health,Other Agencies - Third Party P,90234568,Bluebird Care (Barnet),515.1,21/02/2020
Delivery Units,Adults and Health,Other Agencies - Third Party P,90234569,Bluebird Care (Barnet),282.8,21/02/2020
Delivery Units,Adults and Health,Other Agencies - Third Party P,90234570,Bluebird Care (Barnet),"1,397.17",21/02/2020
Delivery Units,Adults and Health,Other Agencies - Third Party P,90234571,Bluebird Care (Barnet),106.05,21/02/2020
Delivery Units,Adults and Health,Other Agencies - Third Party P,90234572,Bluebird Care (Barnet),212.1,21/02/2020
Delivery Units,Adults and Health,Other Agencies - Third Party P,90234573,Bluebird Care (Barnet),257.55,21/02/2020
Delivery Units,Adults and Health,Other Agencies - Third Party P,90234574,Bluebird Care (Barnet),212.1,21/02/2020
Delivery Units,Adults and Health,Other Agencies - Third Party P,90234575,Bluebird Care (Barnet),784,21/02/2020
Delivery Units,Adults and Health,Other Agencies - Third Party P,90234577,Bluebird Care (Barnet),383.8,21/02/2020
Delivery Units,Adults and Health,Other Agencies - Third Party P,90234578,Bluebird Care (Barnet),287.85,21/02/2020
Delivery Units,Adults and Health,Other Agencies - Third Party P,90234581,Bluebird Care (Barnet),308.05,21/02/2020
Delivery Units,Adults and Health,Other Agencies - Third Party P,90234582,Bluebird Care (Barnet),525.2,21/02/2020
Delivery Units,Adults and Health,Other Agencies - Third Party P,90234583,Bluebird Care (Barnet),267.65,21/02/2020
Delivery Units,Adults and Health,Other Agencies - Third Party P,90234584,Bluebird Care (Barnet),318.15,21/02/2020
Delivery Units,Adults and Health,Other Agencies - Third Party P,90234585,Bluebird Care (Barnet),80.8,21/02/2020
Delivery Units,Adults and Health,Other Agencies - Third Party P,90234586,Bluebird Care (Barnet),60.6,21/02/2020
Delivery Units,Adults and Health,Other Agencies - Third Party P,90234588,Bluebird Care (Barnet),75.75,21/02/2020
Delivery Units,Adults and Health,Other Agencies - Third Party P,90234589,Bluebird Care (Barnet),474.7,21/02/2020
Delivery Units,Adults and Health,Other Agencies - Third Party P,90235535,Bluebird Care (Barnet),"2,432.00",27/02/2020
Delivery Units,Adults and Health,Other Agencies - Third Party P,90230253,BMM Care LTD,"1,700.19",03/02/2020
Delivery Units,Adults and Health,Other Agencies - Third Party P,90230254,BMM Care LTD,422.36,03/02/2020
Delivery Units,Adults and Health,Other Agencies - Third Party P,90230255,BMM Care LTD,"1,480.17",03/02/2020
Delivery Units,Adults and Health,Other Agencies - Third Party P,90230256,BMM Care LTD,964.66,03/02/2020
Delivery Units,Adults and Health,Other Agencies - Third Party P,90230257,BMM Care LTD,182.08,03/02/2020
Delivery Units,Adults and Health,Other Agencies - Third Party P,90230258,BMM Care LTD,493.97,03/02/2020
Delivery Units,Adults and Health,Other Agencies - Third Party P,90230260,BMM Care LTD,734.36,03/02/2020
Delivery Units,Adults and Health,Other Agencies - Third Party P,90230261,BMM Care LTD,986.31,03/02/2020
Delivery Units,Adults and Health,Other Agencies - Third Party P,90230262,BMM Care LTD,12.14,03/02/2020
Delivery Units,Adults and Health,Other Agencies - Third Party P,90230264,BMM Care LTD,732.34,03/02/2020
Delivery Units,Adults and Health,Other Agencies - Third Party P,90230265,BMM Care LTD,942.46,03/02/2020
Delivery Units,Adults and Health,Other Agencies - Third Party P,90230266,BMM Care LTD,570.98,03/02/2020
Delivery Units,Adults and Health,Other Agencies - Third Party P,90230267,BMM Care LTD,"1,096.14",03/02/2020
Delivery Units,Adults and Health,Other Agencies - Third Party P,90230268,BMM Care LTD,"2,002.88",03/02/2020
Delivery Units,Adults and Health,Other Agencies - Third Party P,90230269,BMM Care LTD,795,03/02/2020
Delivery Units,Adults and Health,Other Agencies - Third Party P,90230271,BMM Care LTD,200.3,03/02/2020
Delivery Units,Adults and Health,Other Agencies - Third Party P,90230272,BMM Care LTD,"1,361.59",03/02/2020
Delivery Units,Adults and Health,Other Agencies - Third Party P,90230274,BMM Care LTD,625.16,03/02/2020
Delivery Units,Adults and Health,Other Agencies - Third Party P,90230275,BMM Care LTD,"1,001.44",03/02/2020
Delivery Units,Adults and Health,Other Agencies - Third Party P,90230276,BMM Care LTD,760.44,03/02/2020
Delivery Units,Adults and Health,Other Agencies - Third Party P,90230277,BMM Care LTD,"1,253.71",03/02/2020
Delivery Units,Adults and Health,Other Agencies - Third Party P,90230278,BMM Care LTD,"1,069.00",03/02/2020
Delivery Units,Adults and Health,Other Agencies - Third Party P,90230279,BMM Care LTD,819.52,03/02/2020
Delivery Units,Adults and Health,Other Agencies - Third Party P,90230280,BMM Care LTD,"2,870.68",03/02/2020
Delivery Units,Adults and Health,Other Agencies - Third Party P,90230281,BMM Care LTD,"1,680.83",03/02/2020
Delivery Units,Adults and Health,Other Agencies - Third Party P,90230282,BMM Care LTD,"2,804.46",03/02/2020
Delivery Units,Adults and Health,Other Agencies - Third Party P,90230283,BMM Care LTD,"1,503.26",03/02/2020
Delivery Units,Adults and Health,Other Agencies - Third Party P,90230284,BMM Care LTD,"1,879.54",03/02/2020
Delivery Units,Adults and Health,Other Agencies - Third Party P,90230285,BMM Care LTD,"1,511.20",03/02/2020
Delivery Units,Adults and Health,Other Agencies - Third Party P,90230286,BMM Care LTD,"1,207.22",03/02/2020
Delivery Units,Adults and Health,Other Agencies - Third Party P,90230287,BMM Care LTD,99.3,03/02/2020
Delivery Units,Adults and Health,Other Agencies - Third Party P,90230289,BMM Care LTD,650.34,03/02/2020
Delivery Units,Adults and Health,Other Agencies - Third Party P,90230290,BMM Care LTD,"2,727.38",03/02/2020
Delivery Units,Adults and Health,Other Agencies - Third Party P,90230291,BMM Care LTD,610.03,03/02/2020
Delivery Units,Adults and Health,Other Agencies - Third Party P,90230292,BMM Care LTD,236.28,03/02/2020
Delivery Units,Adults and Health,Other Agencies - Third Party P,90232455,CAPITAL HOMECARE (UK) LIMITED,576,11/02/2020
Delivery Units,Adults and Health,Other Agencies - Third Party P,90232456,CAPITAL HOMECARE (UK) LIMITED,672,11/02/2020
Delivery Units,Adults and Health,Other Agencies - Third Party P,90234615,CAPITAL HOMECARE (UK) LIMITED,"1,189.04",21/02/2020
Delivery Units,Adults and Health,Other Agencies - Third Party P,90234616,CAPITAL HOMECARE (UK) LIMITED,"1,189.04",21/02/2020
Delivery Units,Adults and Health,Other Agencies - Third Party P,90234617,CAPITAL HOMECARE (UK) LIMITED,"1,189.04",21/02/2020
Delivery Units,Adults and Health,Other Agencies - Third Party P,90235522,CAPITAL HOMECARE (UK) LIMITED,262.5,27/02/2020
Delivery Units,Adults and Health,Other Agencies - Third Party P,90235523,CAPITAL HOMECARE (UK) LIMITED,"1,066.00",27/02/2020
Delivery Units,Adults and Health,Other Agencies - Third Party P,90235524,CAPITAL HOMECARE (UK) LIMITED,"1,066.00",27/02/2020
Delivery Units,Adults and Health,Other Agencies - Third Party P,90235525,CAPITAL HOMECARE (UK) LIMITED,"2,344.16",27/02/2020
Delivery Units,Adults and Health,Other Agencies - Third Party P,90235527,CAPITAL HOMECARE (UK) LIMITED,"2,233.00",27/02/2020
Delivery Units,Adults and Health,Other Agencies - Third Party P,90235528,CAPITAL HOMECARE (UK) LIMITED,"1,162.28",27/02/2020
Delivery Units,Adults and Health,Other Agencies - Third Party P,90233780,Constantia Care Ltd,"3,500.00",20/02/2020
Delivery Units,Adults and Health,Other Agencies - Third Party P,90232067,DYNAMIC PEOPLE LTD,140.84,11/02/2020
Delivery Units,Adults and Health,Other Agencies - Third Party P,90232068,DYNAMIC PEOPLE LTD,253.47,11/02/2020
Delivery Units,Adults and Health,Other Agencies - Third Party P,90232070,DYNAMIC PEOPLE LTD,225.33,11/02/2020
Delivery Units,Adults and Health,Other Agencies - Third Party P,90232071,DYNAMIC PEOPLE LTD,156.93,11/02/2020
Delivery Units,Adults and Health,Other Agencies - Third Party P,90232072,DYNAMIC PEOPLE LTD,197.19,11/02/2020
Delivery Units,Adults and Health,Other Agencies - Third Party P,90232073,DYNAMIC PEOPLE LTD,281.68,11/02/2020
Delivery Units,Adults and Health,Other Agencies - Third Party P,90232076,DYNAMIC PEOPLE LTD,309.75,11/02/2020
Delivery Units,Adults and Health,Other Agencies - Third Party P,90232077,DYNAMIC PEOPLE LTD,253.54,11/02/2020
Delivery Units,Adults and Health,Other Agencies - Third Party P,90232078,DYNAMIC PEOPLE LTD,168.98,11/02/2020
Delivery Units,Adults and Health,Other Agencies - Third Party P,90232080,DYNAMIC PEOPLE LTD,112.7,11/02/2020
Delivery Units,Adults and Health,Other Agencies - Third Party P,90232081,DYNAMIC PEOPLE LTD,225.33,11/02/2020
Delivery Units,Adults and Health,Other Agencies - Third Party P,90232082,DYNAMIC PEOPLE LTD,140.84,11/02/2020
Delivery Units,Adults and Health,Other Agencies - Third Party P,90232083,DYNAMIC PEOPLE LTD,253.47,11/02/2020
Delivery Units,Adults and Health,Other Agencies - Third Party P,90232085,DYNAMIC PEOPLE LTD,112.63,11/02/2020
Delivery Units,Adults and Health,Other Agencies - Third Party P,90232086,DYNAMIC PEOPLE LTD,281.69,11/02/2020
Delivery Units,Adults and Health,Other Agencies - Third Party P,90232087,DYNAMIC PEOPLE LTD,394.38,11/02/2020
Delivery Units,Adults and Health,Other Agencies - Third Party P,90232088,DYNAMIC PEOPLE LTD,337.96,11/02/2020
Delivery Units,Adults and Health,Other Agencies - Third Party P,90232090,DYNAMIC PEOPLE LTD,225.33,11/02/2020
Delivery Units,Adults and Health,Other Agencies - Third Party P,90232091,DYNAMIC PEOPLE LTD,253.54,11/02/2020
Delivery Units,Adults and Health,Other Agencies - Third Party P,90232092,DYNAMIC PEOPLE LTD,56.35,11/02/2020
Delivery Units,Adults and Health,Other Agencies - Third Party P,90232093,DYNAMIC PEOPLE LTD,140.84,11/02/2020
Delivery Units,Adults and Health,Other Agencies - Third Party P,90232094,DYNAMIC PEOPLE LTD,338,11/02/2020
Delivery Units,Adults and Health,Other Agencies - Third Party P,90232095,DYNAMIC PEOPLE LTD,209.19,11/02/2020
Delivery Units,Adults and Health,Other Agencies - Third Party P,90232096,DYNAMIC PEOPLE LTD,217.31,11/02/2020
Delivery Units,Adults and Health,Other Agencies - Third Party P,90232097,DYNAMIC PEOPLE LTD,261.53,11/02/2020
Delivery Units,Adults and Health,Other Agencies - Third Party P,90232098,DYNAMIC PEOPLE LTD,84.49,11/02/2020
Delivery Units,Adults and Health,Other Agencies - Third Party P,90232099,DYNAMIC PEOPLE LTD,285.65,11/02/2020
Delivery Units,Adults and Health,Other Agencies - Third Party P,90232100,DYNAMIC PEOPLE LTD,48.28,11/02/2020
Delivery Units,Adults and Health,Other Agencies - Third Party P,90232101,DYNAMIC PEOPLE LTD,140.84,11/02/2020
Delivery Units,Adults and Health,Other Agencies - Third Party P,90232102,DYNAMIC PEOPLE LTD,281.68,11/02/2020
Delivery Units,Adults and Health,Other Agencies - Third Party P,90232104,DYNAMIC PEOPLE LTD,72.4,11/02/2020
Delivery Units,Adults and Health,Other Agencies - Third Party P,90232105,DYNAMIC PEOPLE LTD,60.35,11/02/2020
Delivery Units,Adults and Health,Other Agencies - Third Party P,90232106,DYNAMIC PEOPLE LTD,197.12,11/02/2020
Delivery Units,Adults and Health,Other Agencies - Third Party P,90232107,DYNAMIC PEOPLE LTD,366.12,11/02/2020
Delivery Units,Adults and Health,Other Agencies - Third Party P,90232108,DYNAMIC PEOPLE LTD,32.18,11/02/2020
Delivery Units,Adults and Health,Other Agencies - Third Party P,90232109,DYNAMIC PEOPLE LTD,84.49,11/02/2020
Delivery Units,Adults and Health,Other Agencies - Third Party P,90232110,DYNAMIC PEOPLE LTD,92.55,11/02/2020
Delivery Units,Adults and Health,Other Agencies - Third Party P,90232111,DYNAMIC PEOPLE LTD,84.47,11/02/2020
Delivery Units,Adults and Health,Other Agencies - Third Party P,90232112,DYNAMIC PEOPLE LTD,84.49,11/02/2020
Delivery Units,Adults and Health,Other Agencies - Third Party P,90232113,DYNAMIC PEOPLE LTD,84.49,11/02/2020
Delivery Units,Adults and Health,Other Agencies - Third Party P,90232115,DYNAMIC PEOPLE LTD,96.54,11/02/2020
Delivery Units,Adults and Health,Other Agencies - Third Party P,90232116,DYNAMIC PEOPLE LTD,60.36,11/02/2020
Delivery Units,Adults and Health,Other Agencies - Third Party P,90232118,DYNAMIC PEOPLE LTD,140.84,11/02/2020
Delivery Units,Adults and Health,Other Agencies - Third Party P,90232119,DYNAMIC PEOPLE LTD,84.49,11/02/2020
Delivery Units,Adults and Health,Other Agencies - Third Party P,90232121,DYNAMIC PEOPLE LTD,64.36,11/02/2020
Delivery Units,Adults and Health,Other Agencies - Third Party P,90232122,DYNAMIC PEOPLE LTD,52.29,11/02/2020
Delivery Units,Adults and Health,Other Agencies - Third Party P,90232123,DYNAMIC PEOPLE LTD,56.35,11/02/2020
Delivery Units,Adults and Health,Other Agencies - Third Party P,90232126,DYNAMIC PEOPLE LTD,140.84,11/02/2020
Delivery Units,Adults and Health,Other Agencies - Third Party P,90232127,DYNAMIC PEOPLE LTD,281.68,11/02/2020
Delivery Units,Adults and Health,Other Agencies - Third Party P,90232128,DYNAMIC PEOPLE LTD,120.74,11/02/2020
Delivery Units,Adults and Health,Other Agencies - Third Party P,90232130,DYNAMIC PEOPLE LTD,32.18,11/02/2020
Delivery Units,Adults and Health,Other Agencies - Third Party P,90232131,DYNAMIC PEOPLE LTD,148.88,11/02/2020
Delivery Units,Adults and Health,Other Agencies - Third Party P,90232133,DYNAMIC PEOPLE LTD,88.5,11/02/2020
Delivery Units,Adults and Health,Other Agencies - Third Party P,90232134,DYNAMIC PEOPLE LTD,24.14,11/02/2020
Delivery Units,Adults and Health,Other Agencies - Third Party P,90232135,DYNAMIC PEOPLE LTD,269.55,11/02/2020
Delivery Units,Adults and Health,Other Agencies - Third Party P,90232136,DYNAMIC PEOPLE LTD,60.35,11/02/2020
Delivery Units,Adults and Health,Other Agencies - Third Party P,90232137,DYNAMIC PEOPLE LTD,24.14,11/02/2020
Delivery Units,Adults and Health,Other Agencies - Third Party P,90232138,DYNAMIC PEOPLE LTD,824.68,11/02/2020
Delivery Units,Adults and Health,Other Agencies - Third Party P,90232139,DYNAMIC PEOPLE LTD,112.63,11/02/2020
Delivery Units,Adults and Health,Other Agencies - Third Party P,90232141,DYNAMIC PEOPLE LTD,80.45,11/02/2020
Delivery Units,Adults and Health,Other Agencies - Third Party P,90232144,DYNAMIC PEOPLE LTD,36.21,11/02/2020
Delivery Units,Adults and Health,Other Agencies - Third Party P,90232146,DYNAMIC PEOPLE LTD,84.51,11/02/2020
Delivery Units,Adults and Health,Other Agencies - Third Party P,90232147,DYNAMIC PEOPLE LTD,84.49,11/02/2020
Delivery Units,Adults and Health,Other Agencies - Third Party P,90232148,DYNAMIC PEOPLE LTD,229.34,11/02/2020
Delivery Units,Adults and Health,Other Agencies - Third Party P,90232149,DYNAMIC PEOPLE LTD,197.19,11/02/2020
Delivery Units,Adults and Health,Other Agencies - Third Party P,90232150,DYNAMIC PEOPLE LTD,189.14,11/02/2020
Delivery Units,Adults and Health,Other Agencies - Third Party P,90232151,DYNAMIC PEOPLE LTD,92.56,11/02/2020
Delivery Units,Adults and Health,Other Agencies - Third Party P,90232152,DYNAMIC PEOPLE LTD,297.75,11/02/2020
Delivery Units,Adults and Health,Other Agencies - Third Party P,90232157,DYNAMIC PEOPLE LTD,136.82,11/02/2020
Delivery Units,Adults and Health,Other Agencies - Third Party P,90232158,DYNAMIC PEOPLE LTD,88.51,11/02/2020
Delivery Units,Adults and Health,Other Agencies - Third Party P,90232159,DYNAMIC PEOPLE LTD,36.21,11/02/2020
Delivery Units,Adults and Health,Other Agencies - Third Party P,90232161,DYNAMIC PEOPLE LTD,112.63,11/02/2020
Delivery Units,Adults and Health,Other Agencies - Third Party P,90232163,DYNAMIC PEOPLE LTD,197.19,11/02/2020
Delivery Units,Adults and Health,Other Agencies - Third Party P,90232164,DYNAMIC PEOPLE LTD,197.12,11/02/2020
Delivery Units,Adults and Health,Other Agencies - Third Party P,90232166,DYNAMIC PEOPLE LTD,217.22,11/02/2020
Delivery Units,Adults and Health,Other Agencies - Third Party P,90232167,DYNAMIC PEOPLE LTD,84.49,11/02/2020
Delivery Units,Adults and Health,Other Agencies - Third Party P,90232169,DYNAMIC PEOPLE LTD,173,11/02/2020
Delivery Units,Adults and Health,Other Agencies - Third Party P,90232170,DYNAMIC PEOPLE LTD,181.11,11/02/2020
Delivery Units,Adults and Health,Other Agencies - Third Party P,90232171,DYNAMIC PEOPLE LTD,48.27,11/02/2020
Delivery Units,Adults and Health,Other Agencies - Third Party P,90232172,DYNAMIC PEOPLE LTD,305.82,11/02/2020
Delivery Units,Adults and Health,Other Agencies - Third Party P,90232173,DYNAMIC PEOPLE LTD,289.66,11/02/2020
Delivery Units,Adults and Health,Other Agencies - Third Party P,90232174,DYNAMIC PEOPLE LTD,64.39,11/02/2020
Delivery Units,Adults and Health,Other Agencies - Third Party P,90232175,DYNAMIC PEOPLE LTD,112.63,11/02/2020
Delivery Units,Adults and Health,Other Agencies - Third Party P,90232176,DYNAMIC PEOPLE LTD,507.08,11/02/2020
Delivery Units,Adults and Health,Other Agencies - Third Party P,90232178,DYNAMIC PEOPLE LTD,197.12,11/02/2020
Delivery Units,Adults and Health,Other Agencies - Third Party P,90232179,DYNAMIC PEOPLE LTD,225.33,11/02/2020
Delivery Units,Adults and Health,Other Agencies - Third Party P,90232180,DYNAMIC PEOPLE LTD,84.49,11/02/2020
Delivery Units,Adults and Health,Other Agencies - Third Party P,90232181,DYNAMIC PEOPLE LTD,84.49,11/02/2020
Delivery Units,Adults and Health,Other Agencies - Third Party P,90232182,DYNAMIC PEOPLE LTD,112.63,11/02/2020
Delivery Units,Adults and Health,Other Agencies - Third Party P,90232184,DYNAMIC PEOPLE LTD,193.16,11/02/2020
Delivery Units,Adults and Health,Other Agencies - Third Party P,90232185,DYNAMIC PEOPLE LTD,140.84,11/02/2020
Delivery Units,Adults and Health,Other Agencies - Third Party P,90232186,DYNAMIC PEOPLE LTD,16.1,11/02/2020
Delivery Units,Adults and Health,Other Agencies - Third Party P,90232187,DYNAMIC PEOPLE LTD,80.5,11/02/2020
Delivery Units,Adults and Health,Other Agencies - Third Party P,90232189,DYNAMIC PEOPLE LTD,48.28,11/02/2020
Delivery Units,Adults and Health,Other Agencies - Third Party P,90232191,DYNAMIC PEOPLE LTD,88.55,11/02/2020
Delivery Units,Adults and Health,Other Agencies - Third Party P,90232192,DYNAMIC PEOPLE LTD,36.21,11/02/2020
Delivery Units,Adults and Health,Other Agencies - Third Party P,90232193,DYNAMIC PEOPLE LTD,458.7,11/02/2020
Delivery Units,Adults and Health,Other Agencies - Third Party P,90232196,DYNAMIC PEOPLE LTD,140.84,11/02/2020
Delivery Units,Adults and Health,Other Agencies - Third Party P,90232197,DYNAMIC PEOPLE LTD,253.47,11/02/2020
Delivery Units,Adults and Health,Other Agencies - Third Party P,90232199,DYNAMIC PEOPLE LTD,225.33,11/02/2020
Delivery Units,Adults and Health,Other Agencies - Third Party P,90232200,DYNAMIC PEOPLE LTD,156.93,11/02/2020
Delivery Units,Adults and Health,Other Agencies - Third Party P,90232201,DYNAMIC PEOPLE LTD,197.19,11/02/2020
Delivery Units,Adults and Health,Other Agencies - Third Party P,90232202,DYNAMIC PEOPLE LTD,281.68,11/02/2020
Delivery Units,Adults and Health,Other Agencies - Third Party P,90232205,DYNAMIC PEOPLE LTD,309.75,11/02/2020
Delivery Units,Adults and Health,Other Agencies - Third Party P,90232206,DYNAMIC PEOPLE LTD,168.98,11/02/2020
Delivery Units,Adults and Health,Other Agencies - Third Party P,90232209,DYNAMIC PEOPLE LTD,281.68,11/02/2020
Delivery Units,Adults and Health,Other Agencies - Third Party P,90232210,DYNAMIC PEOPLE LTD,140.84,11/02/2020
Delivery Units,Adults and Health,Other Agencies - Third Party P,90232211,DYNAMIC PEOPLE LTD,253.47,11/02/2020
Delivery Units,Adults and Health,Other Agencies - Third Party P,90232213,DYNAMIC PEOPLE LTD,394.38,11/02/2020
Delivery Units,Adults and Health,Other Agencies - Third Party P,90232214,DYNAMIC PEOPLE LTD,337.96,11/02/2020
Delivery Units,Adults and Health,Other Agencies - Third Party P,90232215,DYNAMIC PEOPLE LTD,225.33,11/02/2020
Delivery Units,Adults and Health,Other Agencies - Third Party P,90232216,DYNAMIC PEOPLE LTD,253.54,11/02/2020
Delivery Units,Adults and Health,Other Agencies - Third Party P,90232217,DYNAMIC PEOPLE LTD,309.82,11/02/2020
Delivery Units,Adults and Health,Other Agencies - Third Party P,90232218,DYNAMIC PEOPLE LTD,225.4,11/02/2020
Delivery Units,Adults and Health,Other Agencies - Third Party P,90232219,DYNAMIC PEOPLE LTD,56.35,11/02/2020
Delivery Units,Adults and Health,Other Agencies - Third Party P,90232220,DYNAMIC PEOPLE LTD,56.35,11/02/2020
Delivery Units,Adults and Health,Other Agencies - Third Party P,90232221,DYNAMIC PEOPLE LTD,140.84,11/02/2020
Delivery Units,Adults and Health,Other Agencies - Third Party P,90232222,DYNAMIC PEOPLE LTD,88.51,11/02/2020
Delivery Units,Adults and Health,Other Agencies - Third Party P,90232223,DYNAMIC PEOPLE LTD,36.21,11/02/2020
Delivery Units,Adults and Health,Other Agencies - Third Party P,90232224,DYNAMIC PEOPLE LTD,112.7,11/02/2020
Delivery Units,Adults and Health,Other Agencies - Third Party P,90232226,DYNAMIC PEOPLE LTD,197.19,11/02/2020
Delivery Units,Adults and Health,Other Agencies - Third Party P,90232227,DYNAMIC PEOPLE LTD,140.84,11/02/2020
Delivery Units,Adults and Health,Other Agencies - Third Party P,90232228,DYNAMIC PEOPLE LTD,281.68,11/02/2020
Delivery Units,Adults and Health,Other Agencies - Third Party P,90232229,DYNAMIC PEOPLE LTD,173,11/02/2020
Delivery Units,Adults and Health,Other Agencies - Third Party P,90232230,DYNAMIC PEOPLE LTD,181.11,11/02/2020
Delivery Units,Adults and Health,Other Agencies - Third Party P,90232231,DYNAMIC PEOPLE LTD,305.82,11/02/2020
Delivery Units,Adults and Health,Other Agencies - Third Party P,90232232,DYNAMIC PEOPLE LTD,281.61,11/02/2020
Delivery Units,Adults and Health,Other Agencies - Third Party P,90232233,DYNAMIC PEOPLE LTD,64.39,11/02/2020
Delivery Units,Adults and Health,Other Agencies - Third Party P,90232234,DYNAMIC PEOPLE LTD,112.63,11/02/2020
Delivery Units,Adults and Health,Other Agencies - Third Party P,90232235,DYNAMIC PEOPLE LTD,197.19,11/02/2020
Delivery Units,Adults and Health,Other Agencies - Third Party P,90232236,DYNAMIC PEOPLE LTD,140.84,11/02/2020
Delivery Units,Adults and Health,Other Agencies - Third Party P,90232238,DYNAMIC PEOPLE LTD,197.12,11/02/2020
Delivery Units,Adults and Health,Other Agencies - Third Party P,90232239,DYNAMIC PEOPLE LTD,225.33,11/02/2020
Delivery Units,Adults and Health,Other Agencies - Third Party P,90232240,DYNAMIC PEOPLE LTD,84.49,11/02/2020
Delivery Units,Adults and Health,Other Agencies - Third Party P,90232241,DYNAMIC PEOPLE LTD,84.49,11/02/2020
Delivery Units,Adults and Health,Other Agencies - Third Party P,90232245,DYNAMIC PEOPLE LTD,72.4,11/02/2020
Delivery Units,Adults and Health,Other Agencies - Third Party P,90232246,DYNAMIC PEOPLE LTD,60.35,11/02/2020
Delivery Units,Adults and Health,Other Agencies - Third Party P,90232247,DYNAMIC PEOPLE LTD,128.73,11/02/2020
Delivery Units,Adults and Health,Other Agencies - Third Party P,90232248,DYNAMIC PEOPLE LTD,386.23,11/02/2020
Delivery Units,Adults and Health,Other Agencies - Third Party P,90232249,DYNAMIC PEOPLE LTD,32.18,11/02/2020
Delivery Units,Adults and Health,Other Agencies - Third Party P,90232250,DYNAMIC PEOPLE LTD,84.49,11/02/2020
Delivery Units,Adults and Health,Other Agencies - Third Party P,90232251,DYNAMIC PEOPLE LTD,88.53,11/02/2020
Delivery Units,Adults and Health,Other Agencies - Third Party P,90232252,DYNAMIC PEOPLE LTD,20.11,11/02/2020
Delivery Units,Adults and Health,Other Agencies - Third Party P,90232253,DYNAMIC PEOPLE LTD,84.49,11/02/2020
Delivery Units,Adults and Health,Other Agencies - Third Party P,90232254,DYNAMIC PEOPLE LTD,84.49,11/02/2020
Delivery Units,Adults and Health,Other Agencies - Third Party P,90232256,DYNAMIC PEOPLE LTD,96.54,11/02/2020
Delivery Units,Adults and Health,Other Agencies - Third Party P,90232257,DYNAMIC PEOPLE LTD,40.24,11/02/2020
Delivery Units,Adults and Health,Other Agencies - Third Party P,90232258,DYNAMIC PEOPLE LTD,253.54,11/02/2020
Delivery Units,Adults and Health,Other Agencies - Third Party P,90232260,DYNAMIC PEOPLE LTD,140.84,11/02/2020
Delivery Units,Adults and Health,Other Agencies - Third Party P,90232261,DYNAMIC PEOPLE LTD,84.49,11/02/2020
Delivery Units,Adults and Health,Other Agencies - Third Party P,90232263,DYNAMIC PEOPLE LTD,64.36,11/02/2020
Delivery Units,Adults and Health,Other Agencies - Third Party P,90232264,DYNAMIC PEOPLE LTD,52.29,11/02/2020
Delivery Units,Adults and Health,Other Agencies - Third Party P,90232265,DYNAMIC PEOPLE LTD,56.35,11/02/2020
Delivery Units,Adults and Health,Other Agencies - Third Party P,90232267,DYNAMIC PEOPLE LTD,140.84,11/02/2020
Delivery Units,Adults and Health,Other Agencies - Third Party P,90232268,DYNAMIC PEOPLE LTD,112.7,11/02/2020
Delivery Units,Adults and Health,Other Agencies - Third Party P,90232269,DYNAMIC PEOPLE LTD,112.7,11/02/2020
Delivery Units,Adults and Health,Other Agencies - Third Party P,90232271,DYNAMIC PEOPLE LTD,32.18,11/02/2020
Delivery Units,Adults and Health,Other Agencies - Third Party P,90232272,DYNAMIC PEOPLE LTD,128.76,11/02/2020
Delivery Units,Adults and Health,Other Agencies - Third Party P,90232273,DYNAMIC PEOPLE LTD,152.9,11/02/2020
Delivery Units,Adults and Health,Other Agencies - Third Party P,90232275,DYNAMIC PEOPLE LTD,108.61,11/02/2020
Delivery Units,Adults and Health,Other Agencies - Third Party P,90232276,DYNAMIC PEOPLE LTD,124.74,11/02/2020
Delivery Units,Adults and Health,Other Agencies - Third Party P,90232277,DYNAMIC PEOPLE LTD,265.54,11/02/2020
Delivery Units,Adults and Health,Other Agencies - Third Party P,90232278,DYNAMIC PEOPLE LTD,60.35,11/02/2020
Delivery Units,Adults and Health,Other Agencies - Third Party P,90232279,DYNAMIC PEOPLE LTD,24.14,11/02/2020
Delivery Units,Adults and Health,Other Agencies - Third Party P,90232280,DYNAMIC PEOPLE LTD,100.56,11/02/2020
Delivery Units,Adults and Health,Other Agencies - Third Party P,90232281,DYNAMIC PEOPLE LTD,812.62,11/02/2020
Delivery Units,Adults and Health,Other Agencies - Third Party P,90232282,DYNAMIC PEOPLE LTD,269.63,11/02/2020
Delivery Units,Adults and Health,Other Agencies - Third Party P,90232283,DYNAMIC PEOPLE LTD,112.63,11/02/2020
Delivery Units,Adults and Health,Other Agencies - Third Party P,90232285,DYNAMIC PEOPLE LTD,80.45,11/02/2020
Delivery Units,Adults and Health,Other Agencies - Third Party P,90232289,DYNAMIC PEOPLE LTD,36.21,11/02/2020
Delivery Units,Adults and Health,Other Agencies - Third Party P,90232292,DYNAMIC PEOPLE LTD,56.34,11/02/2020
Delivery Units,Adults and Health,Other Agencies - Third Party P,90232293,DYNAMIC PEOPLE LTD,84.49,11/02/2020
Delivery Units,Adults and Health,Other Agencies - Third Party P,90232294,DYNAMIC PEOPLE LTD,197.19,11/02/2020
Delivery Units,Adults and Health,Other Agencies - Third Party P,90232295,DYNAMIC PEOPLE LTD,301.77,11/02/2020
Delivery Units,Adults and Health,Other Agencies - Third Party P,90232300,DYNAMIC PEOPLE LTD,297.67,11/02/2020
Delivery Units,Adults and Health,Other Agencies - Third Party P,90232301,DYNAMIC PEOPLE LTD,124.7,11/02/2020
Delivery Units,Adults and Health,Other Agencies - Third Party P,90232302,DYNAMIC PEOPLE LTD,140.84,11/02/2020
Delivery Units,Adults and Health,Other Agencies - Third Party P,90232304,DYNAMIC PEOPLE LTD,261.52,11/02/2020
Delivery Units,Adults and Health,Other Agencies - Third Party P,90232305,DYNAMIC PEOPLE LTD,84.49,11/02/2020
Delivery Units,Adults and Health,Other Agencies - Third Party P,90232306,DYNAMIC PEOPLE LTD,136.81,11/02/2020
Delivery Units,Adults and Health,Other Agencies - Third Party P,90232308,DYNAMIC PEOPLE LTD,140.8,11/02/2020
Delivery Units,Adults and Health,Other Agencies - Third Party P,90232309,DYNAMIC PEOPLE LTD,168.99,11/02/2020
Delivery Units,Adults and Health,Other Agencies - Third Party P,90232310,DYNAMIC PEOPLE LTD,84.49,11/02/2020
Delivery Units,Adults and Health,Other Agencies - Third Party P,90232311,DYNAMIC PEOPLE LTD,209.17,11/02/2020
Delivery Units,Adults and Health,Other Agencies - Third Party P,90232312,DYNAMIC PEOPLE LTD,84.49,11/02/2020
Delivery Units,Adults and Health,Other Agencies - Third Party P,90232314,DYNAMIC PEOPLE LTD,507.08,11/02/2020
Delivery Units,Adults and Health,Other Agencies - Third Party P,90232315,DYNAMIC PEOPLE LTD,16.1,11/02/2020
Delivery Units,Adults and Health,Other Agencies - Third Party P,90232316,DYNAMIC PEOPLE LTD,80.5,11/02/2020
Delivery Units,Adults and Health,Other Agencies - Third Party P,90232318,DYNAMIC PEOPLE LTD,48.28,11/02/2020
Delivery Units,Adults and Health,Other Agencies - Third Party P,90232320,DYNAMIC PEOPLE LTD,88.55,11/02/2020
Delivery Units,Adults and Health,Other Agencies - Third Party P,90232321,DYNAMIC PEOPLE LTD,36.21,11/02/2020
Delivery Units,Adults and Health,Other Agencies - Third Party P,90232322,DYNAMIC PEOPLE LTD,112.63,11/02/2020
Delivery Units,Adults and Health,Other Agencies - Third Party P,90232323,DYNAMIC PEOPLE LTD,458.7,11/02/2020
Delivery Units,Adults and Health,Other Agencies - Third Party P,90232458,DYNAMIC PEOPLE LTD,72.4,11/02/2020
Delivery Units,Adults and Health,Other Agencies - Third Party P,90232459,DYNAMIC PEOPLE LTD,60.35,11/02/2020
Delivery Units,Adults and Health,Other Agencies - Third Party P,90232460,DYNAMIC PEOPLE LTD,197.12,11/02/2020
Delivery Units,Adults and Health,Other Agencies - Third Party P,90232461,DYNAMIC PEOPLE LTD,265.54,11/02/2020
Delivery Units,Adults and Health,Other Agencies - Third Party P,90232462,DYNAMIC PEOPLE LTD,32.18,11/02/2020
Delivery Units,Adults and Health,Other Agencies - Third Party P,90232463,DYNAMIC PEOPLE LTD,92.55,11/02/2020
Delivery Units,Adults and Health,Other Agencies - Third Party P,90232464,DYNAMIC PEOPLE LTD,84.49,11/02/2020
Delivery Units,Adults and Health,Other Agencies - Third Party P,90232466,DYNAMIC PEOPLE LTD,96.54,11/02/2020
Delivery Units,Adults and Health,Other Agencies - Third Party P,90232467,DYNAMIC PEOPLE LTD,60.36,11/02/2020
Delivery Units,Adults and Health,Other Agencies - Third Party P,90232468,DYNAMIC PEOPLE LTD,253.54,11/02/2020
Delivery Units,Adults and Health,Other Agencies - Third Party P,90232470,DYNAMIC PEOPLE LTD,140.84,11/02/2020
Delivery Units,Adults and Health,Other Agencies - Third Party P,90232471,DYNAMIC PEOPLE LTD,84.49,11/02/2020
Delivery Units,Adults and Health,Other Agencies - Third Party P,90232473,DYNAMIC PEOPLE LTD,52.29,11/02/2020
Delivery Units,Adults and Health,Other Agencies - Third Party P,90232474,DYNAMIC PEOPLE LTD,56.35,11/02/2020
Delivery Units,Adults and Health,Other Agencies - Third Party P,90232477,DYNAMIC PEOPLE LTD,112.7,11/02/2020
Delivery Units,Adults and Health,Other Agencies - Third Party P,90232478,DYNAMIC PEOPLE LTD,112.7,11/02/2020
Delivery Units,Adults and Health,Other Agencies - Third Party P,90232479,DYNAMIC PEOPLE LTD,16.09,11/02/2020
Delivery Units,Adults and Health,Other Agencies - Third Party P,90232480,DYNAMIC PEOPLE LTD,116.7,11/02/2020
Delivery Units,Adults and Health,Other Agencies - Third Party P,90232481,DYNAMIC PEOPLE LTD,124.7,11/02/2020
Delivery Units,Adults and Health,Other Agencies - Third Party P,90232482,DYNAMIC PEOPLE LTD,116.69,11/02/2020
Delivery Units,Adults and Health,Other Agencies - Third Party P,90232483,DYNAMIC PEOPLE LTD,64.37,11/02/2020
Delivery Units,Adults and Health,Other Agencies - Third Party P,90232484,DYNAMIC PEOPLE LTD,36.21,11/02/2020
Delivery Units,Adults and Health,Other Agencies - Third Party P,90232485,DYNAMIC PEOPLE LTD,828.7,11/02/2020
Delivery Units,Adults and Health,Other Agencies - Third Party P,90232486,DYNAMIC PEOPLE LTD,277.67,11/02/2020
Delivery Units,Adults and Health,Other Agencies - Third Party P,90232487,DYNAMIC PEOPLE LTD,112.63,11/02/2020
Delivery Units,Adults and Health,Other Agencies - Third Party P,90232489,DYNAMIC PEOPLE LTD,80.45,11/02/2020
Delivery Units,Adults and Health,Other Agencies - Third Party P,90232492,DYNAMIC PEOPLE LTD,36.21,11/02/2020
Delivery Units,Adults and Health,Other Agencies - Third Party P,90232495,DYNAMIC PEOPLE LTD,253.54,11/02/2020
Delivery Units,Adults and Health,Other Agencies - Third Party P,90232496,DYNAMIC PEOPLE LTD,36.22,11/02/2020
Delivery Units,Adults and Health,Other Agencies - Third Party P,90232497,DYNAMIC PEOPLE LTD,84.49,11/02/2020
Delivery Units,Adults and Health,Other Agencies - Third Party P,90232498,DYNAMIC PEOPLE LTD,193.17,11/02/2020
Delivery Units,Adults and Health,Other Agencies - Third Party P,90232499,DYNAMIC PEOPLE LTD,305.79,11/02/2020
Delivery Units,Adults and Health,Other Agencies - Third Party P,90232500,DYNAMIC PEOPLE LTD,140.84,11/02/2020
Delivery Units,Adults and Health,Other Agencies - Third Party P,90232504,DYNAMIC PEOPLE LTD,144.86,11/02/2020
Delivery Units,Adults and Health,Other Agencies - Third Party P,90232505,DYNAMIC PEOPLE LTD,60.35,11/02/2020
Delivery Units,Adults and Health,Other Agencies - Third Party P,90232507,DYNAMIC PEOPLE LTD,84.49,11/02/2020
Delivery Units,Adults and Health,Other Agencies - Third Party P,90232508,DYNAMIC PEOPLE LTD,140.84,11/02/2020
Delivery Units,Adults and Health,Other Agencies - Third Party P,90232510,DYNAMIC PEOPLE LTD,84.49,11/02/2020
Delivery Units,Adults and Health,Other Agencies - Third Party P,90232513,DYNAMIC PEOPLE LTD,116.69,11/02/2020
Delivery Units,Adults and Health,Other Agencies - Third Party P,90232514,DYNAMIC PEOPLE LTD,209.17,11/02/2020
Delivery Units,Adults and Health,Other Agencies - Third Party P,90232515,DYNAMIC PEOPLE LTD,301.79,11/02/2020
Delivery Units,Adults and Health,Other Agencies - Third Party P,90232516,DYNAMIC PEOPLE LTD,277.58,11/02/2020
Delivery Units,Adults and Health,Other Agencies - Third Party P,90232518,DYNAMIC PEOPLE LTD,140.84,11/02/2020
Delivery Units,Adults and Health,Other Agencies - Third Party P,90232519,DYNAMIC PEOPLE LTD,16.1,11/02/2020
Delivery Units,Adults and Health,Other Agencies - Third Party P,90232520,DYNAMIC PEOPLE LTD,80.5,11/02/2020
Delivery Units,Adults and Health,Other Agencies - Third Party P,90232522,DYNAMIC PEOPLE LTD,48.28,11/02/2020
Delivery Units,Adults and Health,Other Agencies - Third Party P,90232524,DYNAMIC PEOPLE LTD,88.55,11/02/2020
Delivery Units,Adults and Health,Other Agencies - Third Party P,90232525,DYNAMIC PEOPLE LTD,36.21,11/02/2020
Delivery Units,Adults and Health,Other Agencies - Third Party P,90232526,DYNAMIC PEOPLE LTD,84.49,11/02/2020
Delivery Units,Adults and Health,Other Agencies - Third Party P,90232527,DYNAMIC PEOPLE LTD,112.63,11/02/2020
Delivery Units,Adults and Health,Other Agencies - Third Party P,90232528,DYNAMIC PEOPLE LTD,454.68,11/02/2020
Delivery Units,Adults and Health,Other Agencies - Third Party P,90232530,DYNAMIC PEOPLE LTD,140.84,11/02/2020
Delivery Units,Adults and Health,Other Agencies - Third Party P,90232531,DYNAMIC PEOPLE LTD,253.47,11/02/2020
Delivery Units,Adults and Health,Other Agencies - Third Party P,90232533,DYNAMIC PEOPLE LTD,225.33,11/02/2020
Delivery Units,Adults and Health,Other Agencies - Third Party P,90232534,DYNAMIC PEOPLE LTD,84.49,11/02/2020
Delivery Units,Adults and Health,Other Agencies - Third Party P,90232535,DYNAMIC PEOPLE LTD,156.93,11/02/2020
Delivery Units,Adults and Health,Other Agencies - Third Party P,90232536,DYNAMIC PEOPLE LTD,197.19,11/02/2020
Delivery Units,Adults and Health,Other Agencies - Third Party P,90232537,DYNAMIC PEOPLE LTD,281.68,11/02/2020
Delivery Units,Adults and Health,Other Agencies - Third Party P,90232539,DYNAMIC PEOPLE LTD,140.84,11/02/2020
Delivery Units,Adults and Health,Other Agencies - Third Party P,90232540,DYNAMIC PEOPLE LTD,84.49,11/02/2020
Delivery Units,Adults and Health,Other Agencies - Third Party P,90232542,DYNAMIC PEOPLE LTD,309.75,11/02/2020
Delivery Units,Adults and Health,Other Agencies - Third Party P,90232543,DYNAMIC PEOPLE LTD,168.98,11/02/2020
Delivery Units,Adults and Health,Other Agencies - Third Party P,90232545,DYNAMIC PEOPLE LTD,140.84,11/02/2020
Delivery Units,Adults and Health,Other Agencies - Third Party P,90232546,DYNAMIC PEOPLE LTD,281.68,11/02/2020
Delivery Units,Adults and Health,Other Agencies - Third Party P,90232548,DYNAMIC PEOPLE LTD,225.33,11/02/2020
Delivery Units,Adults and Health,Other Agencies - Third Party P,90232550,DYNAMIC PEOPLE LTD,140.84,11/02/2020
Delivery Units,Adults and Health,Other Agencies - Third Party P,90232551,DYNAMIC PEOPLE LTD,253.47,11/02/2020
Delivery Units,Adults and Health,Other Agencies - Third Party P,90232552,DYNAMIC PEOPLE LTD,269.55,11/02/2020
Delivery Units,Adults and Health,Other Agencies - Third Party P,90232554,DYNAMIC PEOPLE LTD,112.63,11/02/2020
Delivery Units,Adults and Health,Other Agencies - Third Party P,90232555,DYNAMIC PEOPLE LTD,225.33,11/02/2020
Delivery Units,Adults and Health,Other Agencies - Third Party P,90232556,DYNAMIC PEOPLE LTD,394.38,11/02/2020
Delivery Units,Adults and Health,Other Agencies - Third Party P,90232557,DYNAMIC PEOPLE LTD,337.96,11/02/2020
Delivery Units,Adults and Health,Other Agencies - Third Party P,90232559,DYNAMIC PEOPLE LTD,80.45,11/02/2020
Delivery Units,Adults and Health,Other Agencies - Third Party P,90232560,DYNAMIC PEOPLE LTD,225.33,11/02/2020
Delivery Units,Adults and Health,Other Agencies - Third Party P,90232561,DYNAMIC PEOPLE LTD,309.82,11/02/2020
Delivery Units,Adults and Health,Other Agencies - Third Party P,90232562,DYNAMIC PEOPLE LTD,197.19,11/02/2020
Delivery Units,Adults and Health,Other Agencies - Third Party P,90232563,DYNAMIC PEOPLE LTD,56.35,11/02/2020
Delivery Units,Adults and Health,Other Agencies - Third Party P,90232564,DYNAMIC PEOPLE LTD,56.35,11/02/2020
Delivery Units,Adults and Health,Other Agencies - Third Party P,90232567,DYNAMIC PEOPLE LTD,338,11/02/2020
Delivery Units,Adults and Health,Other Agencies - Third Party P,90232568,DYNAMIC PEOPLE LTD,253.54,11/02/2020
Delivery Units,Adults and Health,Other Agencies - Third Party P,90232569,DYNAMIC PEOPLE LTD,36.21,11/02/2020
Delivery Units,Adults and Health,Other Agencies - Third Party P,90232570,DYNAMIC PEOPLE LTD,225.33,11/02/2020
Delivery Units,Adults and Health,Other Agencies - Third Party P,90232571,DYNAMIC PEOPLE LTD,112.7,11/02/2020
Delivery Units,Adults and Health,Other Agencies - Third Party P,90232573,DYNAMIC PEOPLE LTD,169.02,11/02/2020
Delivery Units,Adults and Health,Other Agencies - Third Party P,90232574,DYNAMIC PEOPLE LTD,281.68,11/02/2020
Delivery Units,Adults and Health,Other Agencies - Third Party P,90232575,DYNAMIC PEOPLE LTD,173,11/02/2020
Delivery Units,Adults and Health,Other Agencies - Third Party P,90232576,DYNAMIC PEOPLE LTD,181.11,11/02/2020
Delivery Units,Adults and Health,Other Agencies - Third Party P,90232577,DYNAMIC PEOPLE LTD,48.27,11/02/2020
Delivery Units,Adults and Health,Other Agencies - Third Party P,90232578,DYNAMIC PEOPLE LTD,84.49,11/02/2020
Delivery Units,Adults and Health,Other Agencies - Third Party P,90232579,DYNAMIC PEOPLE LTD,64.39,11/02/2020
Delivery Units,Adults and Health,Other Agencies - Third Party P,90232580,DYNAMIC PEOPLE LTD,112.63,11/02/2020
Delivery Units,Adults and Health,Other Agencies - Third Party P,90232581,DYNAMIC PEOPLE LTD,507.08,11/02/2020
Delivery Units,Adults and Health,Other Agencies - Third Party P,90232582,DYNAMIC PEOPLE LTD,197.19,11/02/2020
Delivery Units,Adults and Health,Other Agencies - Third Party P,90232584,DYNAMIC PEOPLE LTD,197.12,11/02/2020
Delivery Units,Adults and Health,Other Agencies - Third Party P,90232585,DYNAMIC PEOPLE LTD,225.33,11/02/2020
Delivery Units,Adults and Health,Other Agencies - Third Party P,90232586,DYNAMIC PEOPLE LTD,84.49,11/02/2020
Delivery Units,Adults and Health,Other Agencies - Third Party P,90234163,DYNAMIC PEOPLE LTD,140.84,18/02/2020
Delivery Units,Adults and Health,Other Agencies - Third Party P,90234164,DYNAMIC PEOPLE LTD,253.47,18/02/2020
Delivery Units,Adults and Health,Other Agencies - Third Party P,90234165,DYNAMIC PEOPLE LTD,156.93,18/02/2020
Delivery Units,Adults and Health,Other Agencies - Third Party P,90234166,DYNAMIC PEOPLE LTD,197.19,18/02/2020
Delivery Units,Adults and Health,Other Agencies - Third Party P,90234167,DYNAMIC PEOPLE LTD,281.68,18/02/2020
Delivery Units,Adults and Health,Other Agencies - Third Party P,90234169,DYNAMIC PEOPLE LTD,309.75,18/02/2020
Delivery Units,Adults and Health,Other Agencies - Third Party P,90234170,DYNAMIC PEOPLE LTD,253.54,18/02/2020
Delivery Units,Adults and Health,Other Agencies - Third Party P,90234171,DYNAMIC PEOPLE LTD,168.98,18/02/2020
Delivery Units,Adults and Health,Other Agencies - Third Party P,90234174,DYNAMIC PEOPLE LTD,32.18,18/02/2020
Delivery Units,Adults and Health,Other Agencies - Third Party P,90234175,DYNAMIC PEOPLE LTD,225.33,18/02/2020
Delivery Units,Adults and Health,Other Agencies - Third Party P,90234176,DYNAMIC PEOPLE LTD,253.47,18/02/2020
Delivery Units,Adults and Health,Other Agencies - Third Party P,90234177,DYNAMIC PEOPLE LTD,36.21,18/02/2020
Delivery Units,Adults and Health,Other Agencies - Third Party P,90234178,DYNAMIC PEOPLE LTD,112.63,18/02/2020
Delivery Units,Adults and Health,Other Agencies - Third Party P,90234179,DYNAMIC PEOPLE LTD,281.69,18/02/2020
Delivery Units,Adults and Health,Other Agencies - Third Party P,90234180,DYNAMIC PEOPLE LTD,394.38,18/02/2020
Delivery Units,Adults and Health,Other Agencies - Third Party P,90234181,DYNAMIC PEOPLE LTD,337.96,18/02/2020
Delivery Units,Adults and Health,Other Agencies - Third Party P,90234183,DYNAMIC PEOPLE LTD,36.21,18/02/2020
Delivery Units,Adults and Health,Other Agencies - Third Party P,90234184,DYNAMIC PEOPLE LTD,225.33,18/02/2020
Delivery Units,Adults and Health,Other Agencies - Third Party P,90234185,DYNAMIC PEOPLE LTD,253.54,18/02/2020
Delivery Units,Adults and Health,Other Agencies - Third Party P,90234186,DYNAMIC PEOPLE LTD,309.82,18/02/2020
Delivery Units,Adults and Health,Other Agencies - Third Party P,90234187,DYNAMIC PEOPLE LTD,56.35,18/02/2020
Delivery Units,Adults and Health,Other Agencies - Third Party P,90234188,DYNAMIC PEOPLE LTD,56.35,18/02/2020
Delivery Units,Adults and Health,Other Agencies - Third Party P,90234189,DYNAMIC PEOPLE LTD,209.19,18/02/2020
Delivery Units,Adults and Health,Other Agencies - Third Party P,90234190,DYNAMIC PEOPLE LTD,36.21,18/02/2020
Delivery Units,Adults and Health,Other Agencies - Third Party P,90234191,DYNAMIC PEOPLE LTD,84.49,18/02/2020
Delivery Units,Adults and Health,Other Agencies - Third Party P,90234194,DYNAMIC PEOPLE LTD,205.21,18/02/2020
Delivery Units,Adults and Health,Other Agencies - Third Party P,90234195,DYNAMIC PEOPLE LTD,140.84,18/02/2020
Delivery Units,Adults and Health,Other Agencies - Third Party P,90234196,DYNAMIC PEOPLE LTD,281.68,18/02/2020
Delivery Units,Adults and Health,Other Agencies - Third Party P,90234197,DYNAMIC PEOPLE LTD,173,18/02/2020
Delivery Units,Adults and Health,Other Agencies - Third Party P,90234198,DYNAMIC PEOPLE LTD,181.11,18/02/2020
Delivery Units,Adults and Health,Other Agencies - Third Party P,90234199,DYNAMIC PEOPLE LTD,48.27,18/02/2020
Delivery Units,Adults and Health,Other Agencies - Third Party P,90234200,DYNAMIC PEOPLE LTD,305.82,18/02/2020
Delivery Units,Adults and Health,Other Agencies - Third Party P,90234201,DYNAMIC PEOPLE LTD,64.39,18/02/2020
Delivery Units,Adults and Health,Other Agencies - Third Party P,90234202,DYNAMIC PEOPLE LTD,112.63,18/02/2020
Delivery Units,Adults and Health,Other Agencies - Third Party P,90234203,DYNAMIC PEOPLE LTD,507.08,18/02/2020
Delivery Units,Adults and Health,Other Agencies - Third Party P,90234204,DYNAMIC PEOPLE LTD,197.19,18/02/2020
Delivery Units,Adults and Health,Other Agencies - Third Party P,90234206,DYNAMIC PEOPLE LTD,197.12,18/02/2020
Delivery Units,Adults and Health,Other Agencies - Third Party P,90234207,DYNAMIC PEOPLE LTD,225.33,18/02/2020
Delivery Units,Adults and Health,Other Agencies - Third Party P,90234210,DYNAMIC PEOPLE LTD,72.4,18/02/2020
Delivery Units,Adults and Health,Other Agencies - Third Party P,90234211,DYNAMIC PEOPLE LTD,60.35,18/02/2020
Delivery Units,Adults and Health,Other Agencies - Third Party P,90234213,DYNAMIC PEOPLE LTD,221.34,18/02/2020
Delivery Units,Adults and Health,Other Agencies - Third Party P,90234214,DYNAMIC PEOPLE LTD,197.12,18/02/2020
Delivery Units,Adults and Health,Other Agencies - Third Party P,90234215,DYNAMIC PEOPLE LTD,32.18,18/02/2020
Delivery Units,Adults and Health,Other Agencies - Third Party P,90234216,DYNAMIC PEOPLE LTD,84.49,18/02/2020
Delivery Units,Adults and Health,Other Agencies - Third Party P,90234217,DYNAMIC PEOPLE LTD,76.45,18/02/2020
Delivery Units,Adults and Health,Other Agencies - Third Party P,90234218,DYNAMIC PEOPLE LTD,84.49,18/02/2020
Delivery Units,Adults and Health,Other Agencies - Third Party P,90234219,DYNAMIC PEOPLE LTD,84.49,18/02/2020
Delivery Units,Adults and Health,Other Agencies - Third Party P,90234221,DYNAMIC PEOPLE LTD,96.54,18/02/2020
Delivery Units,Adults and Health,Other Agencies - Third Party P,90234222,DYNAMIC PEOPLE LTD,60.36,18/02/2020
Delivery Units,Adults and Health,Other Agencies - Third Party P,90234224,DYNAMIC PEOPLE LTD,140.84,18/02/2020
Delivery Units,Adults and Health,Other Agencies - Third Party P,90234225,DYNAMIC PEOPLE LTD,84.49,18/02/2020
Delivery Units,Adults and Health,Other Agencies - Third Party P,90234226,DYNAMIC PEOPLE LTD,52.29,18/02/2020
Delivery Units,Adults and Health,Other Agencies - Third Party P,90234227,DYNAMIC PEOPLE LTD,56.35,18/02/2020
Delivery Units,Adults and Health,Other Agencies - Third Party P,90234230,DYNAMIC PEOPLE LTD,140.84,18/02/2020
Delivery Units,Adults and Health,Other Agencies - Third Party P,90234231,DYNAMIC PEOPLE LTD,281.67,18/02/2020
Delivery Units,Adults and Health,Other Agencies - Third Party P,90234232,DYNAMIC PEOPLE LTD,112.7,18/02/2020
Delivery Units,Adults and Health,Other Agencies - Third Party P,90234233,DYNAMIC PEOPLE LTD,124.76,18/02/2020
Delivery Units,Adults and Health,Other Agencies - Third Party P,90234235,DYNAMIC PEOPLE LTD,60.35,18/02/2020
Delivery Units,Adults and Health,Other Agencies - Third Party P,90234237,DYNAMIC PEOPLE LTD,124.7,18/02/2020
Delivery Units,Adults and Health,Other Agencies - Third Party P,90234238,DYNAMIC PEOPLE LTD,136.82,18/02/2020
Delivery Units,Adults and Health,Other Agencies - Third Party P,90234239,DYNAMIC PEOPLE LTD,116.69,18/02/2020
Delivery Units,Adults and Health,Other Agencies - Third Party P,90234240,DYNAMIC PEOPLE LTD,265.54,18/02/2020
Delivery Units,Adults and Health,Other Agencies - Third Party P,90234241,DYNAMIC PEOPLE LTD,68.39,18/02/2020
Delivery Units,Adults and Health,Other Agencies - Third Party P,90234243,DYNAMIC PEOPLE LTD,804.56,18/02/2020
Delivery Units,Adults and Health,Other Agencies - Third Party P,90234244,DYNAMIC PEOPLE LTD,120.68,18/02/2020
Delivery Units,Adults and Health,Other Agencies - Third Party P,90234246,DYNAMIC PEOPLE LTD,80.45,18/02/2020
Delivery Units,Adults and Health,Other Agencies - Third Party P,90234251,DYNAMIC PEOPLE LTD,84.49,18/02/2020
Delivery Units,Adults and Health,Other Agencies - Third Party P,90234252,DYNAMIC PEOPLE LTD,197.19,18/02/2020
Delivery Units,Adults and Health,Other Agencies - Third Party P,90234253,DYNAMIC PEOPLE LTD,181.11,18/02/2020
Delivery Units,Adults and Health,Other Agencies - Third Party P,90234254,DYNAMIC PEOPLE LTD,301.77,18/02/2020
Delivery Units,Adults and Health,Other Agencies - Third Party P,90234255,DYNAMIC PEOPLE LTD,140.84,18/02/2020
Delivery Units,Adults and Health,Other Agencies - Third Party P,90234260,DYNAMIC PEOPLE LTD,337.89,18/02/2020
Delivery Units,Adults and Health,Other Agencies - Third Party P,90234262,DYNAMIC PEOPLE LTD,120.72,18/02/2020
Delivery Units,Adults and Health,Other Agencies - Third Party P,90234263,DYNAMIC PEOPLE LTD,64.37,18/02/2020
Delivery Units,Adults and Health,Other Agencies - Third Party P,90234264,DYNAMIC PEOPLE LTD,88.52,18/02/2020
Delivery Units,Adults and Health,Other Agencies - Third Party P,90234265,DYNAMIC PEOPLE LTD,112.63,18/02/2020
Delivery Units,Adults and Health,Other Agencies - Third Party P,90234266,DYNAMIC PEOPLE LTD,140.84,18/02/2020
Delivery Units,Adults and Health,Other Agencies - Third Party P,90234268,DYNAMIC PEOPLE LTD,84.49,18/02/2020
Delivery Units,Adults and Health,Other Agencies - Third Party P,90234270,DYNAMIC PEOPLE LTD,168.98,18/02/2020
Delivery Units,Adults and Health,Other Agencies - Third Party P,90234271,DYNAMIC PEOPLE LTD,209.17,18/02/2020
Delivery Units,Adults and Health,Other Agencies - Third Party P,90234272,DYNAMIC PEOPLE LTD,269.54,18/02/2020
Delivery Units,Adults and Health,Other Agencies - Third Party P,90234273,DYNAMIC PEOPLE LTD,84.49,18/02/2020
Delivery Units,Adults and Health,Other Agencies - Third Party P,90234275,DYNAMIC PEOPLE LTD,108.65,18/02/2020
Delivery Units,Adults and Health,Other Agencies - Third Party P,90234276,DYNAMIC PEOPLE LTD,16.1,18/02/2020
Delivery Units,Adults and Health,Other Agencies - Third Party P,90234277,DYNAMIC PEOPLE LTD,80.5,18/02/2020
Delivery Units,Adults and Health,Other Agencies - Third Party P,90234279,DYNAMIC PEOPLE LTD,48.28,18/02/2020
Delivery Units,Adults and Health,Other Agencies - Third Party P,90234281,DYNAMIC PEOPLE LTD,88.55,18/02/2020
Delivery Units,Adults and Health,Other Agencies - Third Party P,90234282,DYNAMIC PEOPLE LTD,84.49,18/02/2020
Delivery Units,Adults and Health,Other Agencies - Third Party P,90234283,DYNAMIC PEOPLE LTD,36.21,18/02/2020
Delivery Units,Adults and Health,Other Agencies - Third Party P,90234284,DYNAMIC PEOPLE LTD,84.49,18/02/2020
Delivery Units,Adults and Health,Other Agencies - Third Party P,90234285,DYNAMIC PEOPLE LTD,112.63,18/02/2020
Delivery Units,Adults and Health,Other Agencies - Third Party P,90234286,DYNAMIC PEOPLE LTD,450.66,18/02/2020
Delivery Units,Adults and Health,Other Agencies - Third Party P,90235295,Enable U Sensory Support Ltd,240,26/02/2020
Delivery Units,Adults and Health,Other Agencies - Third Party P,90235296,Enable U Sensory Support Ltd,240,26/02/2020
Delivery Units,Adults and Health,Other Agencies - Third Party P,90235297,Enable U Sensory Support Ltd,240,26/02/2020
Delivery Units,Adults and Health,Other Agencies - Third Party P,90235298,Enable U Sensory Support Ltd,240,26/02/2020
Delivery Units,Adults and Health,Other Agencies - Third Party P,90235299,Enable U Sensory Support Ltd,240,26/02/2020
Delivery Units,Adults and Health,Other Agencies - Third Party P,1000042202,ENARA COMMUNITY CARE,"2,527.00",11/02/2020
Delivery Units,Adults and Health,Other Agencies - Third Party P,1000047602,ENARA COMMUNITY CARE,"2,527.00",11/02/2020
Delivery Units,Adults and Health,Other Agencies - Third Party P,1000528002,ENARA COMMUNITY CARE,"2,527.00",12/02/2020
Delivery Units,Adults and Health,Other Agencies - Third Party P,1000531202,ENARA COMMUNITY CARE,"2,527.00",12/02/2020
Delivery Units,Adults and Health,Other Agencies - Third Party P,90234462,Focus Care Link Ltd,"1,045.94",21/02/2020
Delivery Units,Adults and Health,Other Agencies - Third Party P,90234463,Focus Care Link Ltd,"3,400.00",21/02/2020
Delivery Units,Adults and Health,Other Agencies - Third Party P,90230333,Greek & Greek Cypriot Community of En,560.32,03/02/2020
Delivery Units,Adults and Health,Other Agencies - Third Party P,90230334,Greek & Greek Cypriot Community of En,"1,105.26",03/02/2020
Delivery Units,Adults and Health,Other Agencies - Third Party P,90233013,HARTWIG CARE LIMITED,180.18,13/02/2020
Delivery Units,Adults and Health,Other Agencies - Third Party P,90233014,HARTWIG CARE LIMITED,90.09,13/02/2020
Delivery Units,Adults and Health,Other Agencies - Third Party P,90233015,HARTWIG CARE LIMITED,390.39,13/02/2020
Delivery Units,Adults and Health,Other Agencies - Third Party P,90233016,HARTWIG CARE LIMITED,180.18,13/02/2020
Delivery Units,Adults and Health,Other Agencies - Third Party P,90233017,HARTWIG CARE LIMITED,85.8,13/02/2020
Delivery Units,Adults and Health,Other Agencies - Third Party P,90233018,HARTWIG CARE LIMITED,120.12,13/02/2020
Delivery Units,Adults and Health,Other Agencies - Third Party P,90233019,HARTWIG CARE LIMITED,300.3,13/02/2020
Delivery Units,Adults and Health,Other Agencies - Third Party P,90233020,HARTWIG CARE LIMITED,120.12,13/02/2020
Delivery Units,Adults and Health,Other Agencies - Third Party P,90233022,HARTWIG CARE LIMITED,120.12,13/02/2020
Delivery Units,Adults and Health,Other Agencies - Third Party P,90233026,HARTWIG CARE LIMITED,180.18,13/02/2020
Delivery Units,Adults and Health,Other Agencies - Third Party P,90233027,HARTWIG CARE LIMITED,210.21,13/02/2020
Delivery Units,Adults and Health,Other Agencies - Third Party P,90233028,HARTWIG CARE LIMITED,150.15,13/02/2020
Delivery Units,Adults and Health,Other Agencies - Third Party P,90233029,HARTWIG CARE LIMITED,90.09,13/02/2020
Delivery Units,Adults and Health,Other Agencies - Third Party P,90233031,HARTWIG CARE LIMITED,197.34,13/02/2020
Delivery Units,Adults and Health,Other Agencies - Third Party P,90233032,HARTWIG CARE LIMITED,330.33,13/02/2020
Delivery Units,Adults and Health,Other Agencies - Third Party P,90233033,HARTWIG CARE LIMITED,240.24,13/02/2020
Delivery Units,Adults and Health,Other Agencies - Third Party P,90233034,HARTWIG CARE LIMITED,180.18,13/02/2020
Delivery Units,Adults and Health,Other Agencies - Third Party P,90233035,HARTWIG CARE LIMITED,175.89,13/02/2020
Delivery Units,Adults and Health,Other Agencies - Third Party P,90233037,HARTWIG CARE LIMITED,51.48,13/02/2020
Delivery Units,Adults and Health,Other Agencies - Third Party P,90233038,HARTWIG CARE LIMITED,90.09,13/02/2020
Delivery Units,Adults and Health,Other Agencies - Third Party P,90233040,HARTWIG CARE LIMITED,150.15,13/02/2020
Delivery Units,Adults and Health,Other Agencies - Third Party P,90233041,HARTWIG CARE LIMITED,85.8,13/02/2020
Delivery Units,Adults and Health,Other Agencies - Third Party P,90233042,HARTWIG CARE LIMITED,167.31,13/02/2020
Delivery Units,Adults and Health,Other Agencies - Third Party P,90233043,HARTWIG CARE LIMITED,287.43,13/02/2020
Delivery Units,Adults and Health,Other Agencies - Third Party P,90233044,HARTWIG CARE LIMITED,180.18,13/02/2020
Delivery Units,Adults and Health,Other Agencies - Third Party P,90233045,HARTWIG CARE LIMITED,120.12,13/02/2020
Delivery Units,Adults and Health,Other Agencies - Third Party P,90233046,HARTWIG CARE LIMITED,25.74,13/02/2020
Delivery Units,Adults and Health,Other Agencies - Third Party P,90233048,HARTWIG CARE LIMITED,120.12,13/02/2020
Delivery Units,Adults and Health,Other Agencies - Third Party P,90233049,HARTWIG CARE LIMITED,25.74,13/02/2020
Delivery Units,Adults and Health,Other Agencies - Third Party P,90233050,HARTWIG CARE LIMITED,51.48,13/02/2020
Delivery Units,Adults and Health,Other Agencies - Third Party P,90233051,HARTWIG CARE LIMITED,17.16,13/02/2020
Delivery Units,Adults and Health,Other Agencies - Third Party P,90233052,HARTWIG CARE LIMITED,167.31,13/02/2020
Delivery Units,Adults and Health,Other Agencies - Third Party P,90233053,HARTWIG CARE LIMITED,531.96,13/02/2020
Delivery Units,Adults and Health,Other Agencies - Third Party P,90233054,HARTWIG CARE LIMITED,201.63,13/02/2020
Delivery Units,Adults and Health,Other Agencies - Third Party P,90233055,HARTWIG CARE LIMITED,145.86,13/02/2020
Delivery Units,Adults and Health,Other Agencies - Third Party P,90233056,HARTWIG CARE LIMITED,583.44,13/02/2020
Delivery Units,Adults and Health,Other Agencies - Third Party P,90233057,HARTWIG CARE LIMITED,51.48,13/02/2020
Delivery Units,Adults and Health,Other Agencies - Third Party P,90233059,HARTWIG CARE LIMITED,132.99,13/02/2020
Delivery Units,Adults and Health,Other Agencies - Third Party P,90233061,HARTWIG CARE LIMITED,205.92,13/02/2020
Delivery Units,Adults and Health,Other Agencies - Third Party P,90233062,HARTWIG CARE LIMITED,313.17,13/02/2020
Delivery Units,Adults and Health,Other Agencies - Third Party P,90233063,HARTWIG CARE LIMITED,304.59,13/02/2020
Delivery Units,Adults and Health,Other Agencies - Third Party P,90233064,HARTWIG CARE LIMITED,296.01,13/02/2020
Delivery Units,Adults and Health,Other Agencies - Third Party P,90233065,HARTWIG CARE LIMITED,609.18,13/02/2020
Delivery Units,Adults and Health,Other Agencies - Third Party P,90233066,HARTWIG CARE LIMITED,253.11,13/02/2020
Delivery Units,Adults and Health,Other Agencies - Third Party P,90233067,HARTWIG CARE LIMITED,64.35,13/02/2020
Delivery Units,Adults and Health,Other Agencies - Third Party P,90233070,HARTWIG CARE LIMITED,167.31,13/02/2020
Delivery Units,Adults and Health,Other Agencies - Third Party P,90233072,HARTWIG CARE LIMITED,291.72,13/02/2020
Delivery Units,Adults and Health,Other Agencies - Third Party P,90233073,HARTWIG CARE LIMITED,111.54,13/02/2020
Delivery Units,Adults and Health,Other Agencies - Third Party P,90233074,HARTWIG CARE LIMITED,124.41,13/02/2020
Delivery Units,Adults and Health,Other Agencies - Third Party P,90233075,HARTWIG CARE LIMITED,107.25,13/02/2020
Delivery Units,Adults and Health,Other Agencies - Third Party P,90233076,HARTWIG CARE LIMITED,210.21,13/02/2020
Delivery Units,Adults and Health,Other Agencies - Third Party P,90233077,HARTWIG CARE LIMITED,60.06,13/02/2020
Delivery Units,Adults and Health,Other Agencies - Third Party P,90233078,HARTWIG CARE LIMITED,265.98,13/02/2020
Delivery Units,Adults and Health,Other Agencies - Third Party P,90233079,HARTWIG CARE LIMITED,47.19,13/02/2020
Delivery Units,Adults and Health,Other Agencies - Third Party P,90233083,HARTWIG CARE LIMITED,34.32,13/02/2020
Delivery Units,Adults and Health,Other Agencies - Third Party P,90233085,HARTWIG CARE LIMITED,34.32,13/02/2020
Delivery Units,Adults and Health,Other Agencies - Third Party P,90233086,HARTWIG CARE LIMITED,107.25,13/02/2020
Delivery Units,Adults and Health,Other Agencies - Third Party P,90233087,HARTWIG CARE LIMITED,42.9,13/02/2020
Delivery Units,Adults and Health,Other Agencies - Third Party P,90233090,HARTWIG CARE LIMITED,201.63,13/02/2020
Delivery Units,Adults and Health,Other Agencies - Third Party P,90233092,HARTWIG CARE LIMITED,94.38,13/02/2020
Delivery Units,Adults and Health,Other Agencies - Third Party P,90233093,HARTWIG CARE LIMITED,544.83,13/02/2020
Delivery Units,Adults and Health,Other Agencies - Third Party P,90233095,HARTWIG CARE LIMITED,536.25,13/02/2020
Delivery Units,Adults and Health,Other Agencies - Third Party P,90233096,HARTWIG CARE LIMITED,141.57,13/02/2020
Delivery Units,Adults and Health,Other Agencies - Third Party P,90233097,HARTWIG CARE LIMITED,416.13,13/02/2020
Delivery Units,Adults and Health,Other Agencies - Third Party P,90233098,HARTWIG CARE LIMITED,223.08,13/02/2020
Delivery Units,Adults and Health,Other Agencies - Third Party P,90233099,HARTWIG CARE LIMITED,265.98,13/02/2020
Delivery Units,Adults and Health,Other Agencies - Third Party P,90233101,HARTWIG CARE LIMITED,64.35,13/02/2020
Delivery Units,Adults and Health,Other Agencies - Third Party P,90233103,HARTWIG CARE LIMITED,64.35,13/02/2020
Delivery Units,Adults and Health,Other Agencies - Third Party P,90233104,HARTWIG CARE LIMITED,34.32,13/02/2020
Delivery Units,Adults and Health,Other Agencies - Third Party P,90233105,HARTWIG CARE LIMITED,180.18,13/02/2020
Delivery Units,Adults and Health,Other Agencies - Third Party P,90233106,HARTWIG CARE LIMITED,171.6,13/02/2020
Delivery Units,Adults and Health,Other Agencies - Third Party P,90233109,HARTWIG CARE LIMITED,51.48,13/02/2020
Delivery Units,Adults and Health,Other Agencies - Third Party P,90233110,HARTWIG CARE LIMITED,180.18,13/02/2020
Delivery Units,Adults and Health,Other Agencies - Third Party P,90233111,HARTWIG CARE LIMITED,90.09,13/02/2020
Delivery Units,Adults and Health,Other Agencies - Third Party P,90233112,HARTWIG CARE LIMITED,390.39,13/02/2020
Delivery Units,Adults and Health,Other Agencies - Third Party P,90233113,HARTWIG CARE LIMITED,540.54,13/02/2020
Delivery Units,Adults and Health,Other Agencies - Third Party P,90233114,HARTWIG CARE LIMITED,180.18,13/02/2020
Delivery Units,Adults and Health,Other Agencies - Third Party P,90233115,HARTWIG CARE LIMITED,150.15,13/02/2020
Delivery Units,Adults and Health,Other Agencies - Third Party P,90233116,HARTWIG CARE LIMITED,120.12,13/02/2020
Delivery Units,Adults and Health,Other Agencies - Third Party P,90233117,HARTWIG CARE LIMITED,300.3,13/02/2020
Delivery Units,Adults and Health,Other Agencies - Third Party P,90233118,HARTWIG CARE LIMITED,596.31,13/02/2020
Delivery Units,Adults and Health,Other Agencies - Third Party P,90233119,HARTWIG CARE LIMITED,120.12,13/02/2020
Delivery Units,Adults and Health,Other Agencies - Third Party P,90233121,HARTWIG CARE LIMITED,120.12,13/02/2020
Delivery Units,Adults and Health,Other Agencies - Third Party P,90233123,HARTWIG CARE LIMITED,308.88,13/02/2020
Delivery Units,Adults and Health,Other Agencies - Third Party P,90233124,HARTWIG CARE LIMITED,300.3,13/02/2020
Delivery Units,Adults and Health,Other Agencies - Third Party P,90233125,HARTWIG CARE LIMITED,64.35,13/02/2020
Delivery Units,Adults and Health,Other Agencies - Third Party P,90233126,HARTWIG CARE LIMITED,210.21,13/02/2020
Delivery Units,Adults and Health,Other Agencies - Third Party P,90233127,HARTWIG CARE LIMITED,180.18,13/02/2020
Delivery Units,Adults and Health,Other Agencies - Third Party P,90233128,HARTWIG CARE LIMITED,158.73,13/02/2020
Delivery Units,Adults and Health,Other Agencies - Third Party P,90233129,HARTWIG CARE LIMITED,300.3,13/02/2020
Delivery Units,Adults and Health,Other Agencies - Third Party P,90233130,HARTWIG CARE LIMITED,90.09,13/02/2020
Delivery Units,Adults and Health,Other Agencies - Third Party P,90233131,HARTWIG CARE LIMITED,55.77,13/02/2020
Delivery Units,Adults and Health,Other Agencies - Third Party P,90233132,HARTWIG CARE LIMITED,330.33,13/02/2020
Delivery Units,Adults and Health,Other Agencies - Third Party P,90233133,HARTWIG CARE LIMITED,270.27,13/02/2020
Delivery Units,Adults and Health,Other Agencies - Third Party P,90233134,HARTWIG CARE LIMITED,240.24,13/02/2020
Delivery Units,Adults and Health,Other Agencies - Third Party P,90233136,HARTWIG CARE LIMITED,51.48,13/02/2020
Delivery Units,Adults and Health,Other Agencies - Third Party P,90233138,HARTWIG CARE LIMITED,90.09,13/02/2020
Delivery Units,Adults and Health,Other Agencies - Third Party P,90233140,HARTWIG CARE LIMITED,420.42,13/02/2020
Delivery Units,Adults and Health,Other Agencies - Third Party P,90233141,HARTWIG CARE LIMITED,270.27,13/02/2020
Delivery Units,Adults and Health,Other Agencies - Third Party P,90233142,HARTWIG CARE LIMITED,150.15,13/02/2020
Delivery Units,Adults and Health,Other Agencies - Third Party P,90233143,HARTWIG CARE LIMITED,85.8,13/02/2020
Delivery Units,Adults and Health,Other Agencies - Third Party P,90233144,HARTWIG CARE LIMITED,68.64,13/02/2020
Delivery Units,Adults and Health,Other Agencies - Third Party P,90233145,HARTWIG CARE LIMITED,167.31,13/02/2020
Delivery Units,Adults and Health,Other Agencies - Third Party P,90233146,HARTWIG CARE LIMITED,287.43,13/02/2020
Delivery Units,Adults and Health,Other Agencies - Third Party P,90233147,HARTWIG CARE LIMITED,180.18,13/02/2020
Delivery Units,Adults and Health,Other Agencies - Third Party P,90233148,HARTWIG CARE LIMITED,120.12,13/02/2020
Delivery Units,Adults and Health,Other Agencies - Third Party P,90233149,HARTWIG CARE LIMITED,25.74,13/02/2020
Delivery Units,Adults and Health,Other Agencies - Third Party P,90233150,HARTWIG CARE LIMITED,218.79,13/02/2020
Delivery Units,Adults and Health,Other Agencies - Third Party P,90233151,HARTWIG CARE LIMITED,163.02,13/02/2020
Delivery Units,Adults and Health,Other Agencies - Third Party P,90233152,HARTWIG CARE LIMITED,175.89,13/02/2020
Delivery Units,Adults and Health,Other Agencies - Third Party P,90233153,HARTWIG CARE LIMITED,77.22,13/02/2020
Delivery Units,Adults and Health,Other Agencies - Third Party P,90233154,HARTWIG CARE LIMITED,55.77,13/02/2020
Delivery Units,Adults and Health,Other Agencies - Third Party P,90233156,HARTWIG CARE LIMITED,120.12,13/02/2020
Delivery Units,Adults and Health,Other Agencies - Third Party P,90233158,HARTWIG CARE LIMITED,124.41,13/02/2020
Delivery Units,Adults and Health,Other Agencies - Third Party P,90233161,HARTWIG CARE LIMITED,300.3,13/02/2020
Delivery Units,Adults and Health,Other Agencies - Third Party P,90233162,HARTWIG CARE LIMITED,175.89,13/02/2020
Delivery Units,Adults and Health,Other Agencies - Third Party P,90233163,HARTWIG CARE LIMITED,626.34,13/02/2020
Delivery Units,Adults and Health,Other Agencies - Third Party P,90233164,HARTWIG CARE LIMITED,248.82,13/02/2020
Delivery Units,Adults and Health,Other Agencies - Third Party P,90233168,HARTWIG CARE LIMITED,111.54,13/02/2020
Delivery Units,Adults and Health,Other Agencies - Third Party P,90233169,HARTWIG CARE LIMITED,115.83,13/02/2020
Delivery Units,Adults and Health,Other Agencies - Third Party P,90233171,HARTWIG CARE LIMITED,150.15,13/02/2020
Delivery Units,Adults and Health,Other Agencies - Third Party P,90233172,HARTWIG CARE LIMITED,201.63,13/02/2020
Delivery Units,Adults and Health,Other Agencies - Third Party P,90233173,HARTWIG CARE LIMITED,64.35,13/02/2020
Delivery Units,Adults and Health,Other Agencies - Third Party P,90233174,HARTWIG CARE LIMITED,98.67,13/02/2020
Delivery Units,Adults and Health,Other Agencies - Third Party P,90233177,HARTWIG CARE LIMITED,38.61,13/02/2020
Delivery Units,Adults and Health,Other Agencies - Third Party P,90233178,HARTWIG CARE LIMITED,163.02,13/02/2020
Delivery Units,Adults and Health,Other Agencies - Third Party P,90233180,HARTWIG CARE LIMITED,175.89,13/02/2020
Delivery Units,Adults and Health,Other Agencies - Third Party P,90233181,HARTWIG CARE LIMITED,34.32,13/02/2020
Delivery Units,Adults and Health,Other Agencies - Third Party P,90233182,HARTWIG CARE LIMITED,98.67,13/02/2020
Delivery Units,Adults and Health,Other Agencies - Third Party P,90233183,HARTWIG CARE LIMITED,42.9,13/02/2020
Delivery Units,Adults and Health,Other Agencies - Third Party P,90233186,HARTWIG CARE LIMITED,201.63,13/02/2020
Delivery Units,Adults and Health,Other Agencies - Third Party P,90233187,HARTWIG CARE LIMITED,94.38,13/02/2020
Delivery Units,Adults and Health,Other Agencies - Third Party P,90233188,HARTWIG CARE LIMITED,596.31,13/02/2020
Delivery Units,Adults and Health,Other Agencies - Third Party P,90233190,HARTWIG CARE LIMITED,613.47,13/02/2020
Delivery Units,Adults and Health,Other Agencies - Third Party P,90233191,HARTWIG CARE LIMITED,163.02,13/02/2020
Delivery Units,Adults and Health,Other Agencies - Third Party P,90233192,HARTWIG CARE LIMITED,214.5,13/02/2020
Delivery Units,Adults and Health,Other Agencies - Third Party P,90233194,HARTWIG CARE LIMITED,64.35,13/02/2020
Delivery Units,Adults and Health,Other Agencies - Third Party P,90233196,HARTWIG CARE LIMITED,34.32,13/02/2020
Delivery Units,Adults and Health,Other Agencies - Third Party P,90233197,HARTWIG CARE LIMITED,184.47,13/02/2020
Delivery Units,Adults and Health,Other Agencies - Third Party P,90233198,HARTWIG CARE LIMITED,175.89,13/02/2020
Delivery Units,Adults and Health,Other Agencies - Third Party P,90233201,HARTWIG CARE LIMITED,98.67,13/02/2020
Delivery Units,Adults and Health,Other Agencies - Third Party P,90233202,HARTWIG CARE LIMITED,25.74,13/02/2020
Delivery Units,Adults and Health,Other Agencies - Third Party P,90233838,HARTWIG CARE LIMITED,180.18,17/02/2020
Delivery Units,Adults and Health,Other Agencies - Third Party P,90233839,HARTWIG CARE LIMITED,390.39,17/02/2020
Delivery Units,Adults and Health,Other Agencies - Third Party P,90233840,HARTWIG CARE LIMITED,540.54,17/02/2020
Delivery Units,Adults and Health,Other Agencies - Third Party P,90233841,HARTWIG CARE LIMITED,180.18,17/02/2020
Delivery Units,Adults and Health,Other Agencies - Third Party P,90233842,HARTWIG CARE LIMITED,120.12,17/02/2020
Delivery Units,Adults and Health,Other Agencies - Third Party P,90233843,HARTWIG CARE LIMITED,300.3,17/02/2020
Delivery Units,Adults and Health,Other Agencies - Third Party P,90233845,HARTWIG CARE LIMITED,120.12,17/02/2020
Delivery Units,Adults and Health,Other Agencies - Third Party P,90233848,HARTWIG CARE LIMITED,308.88,17/02/2020
Delivery Units,Adults and Health,Other Agencies - Third Party P,90233849,HARTWIG CARE LIMITED,180.18,17/02/2020
Delivery Units,Adults and Health,Other Agencies - Third Party P,90233850,HARTWIG CARE LIMITED,257.4,17/02/2020
Delivery Units,Adults and Health,Other Agencies - Third Party P,90233851,HARTWIG CARE LIMITED,64.35,17/02/2020
Delivery Units,Adults and Health,Other Agencies - Third Party P,90233853,HARTWIG CARE LIMITED,180.18,17/02/2020
Delivery Units,Adults and Health,Other Agencies - Third Party P,90233854,HARTWIG CARE LIMITED,158.73,17/02/2020
Delivery Units,Adults and Health,Other Agencies - Third Party P,90233855,HARTWIG CARE LIMITED,300.3,17/02/2020
Delivery Units,Adults and Health,Other Agencies - Third Party P,90233856,HARTWIG CARE LIMITED,90.09,17/02/2020
Delivery Units,Adults and Health,Other Agencies - Third Party P,90233857,HARTWIG CARE LIMITED,55.77,17/02/2020
Delivery Units,Adults and Health,Other Agencies - Third Party P,90233858,HARTWIG CARE LIMITED,270.27,17/02/2020
Delivery Units,Adults and Health,Other Agencies - Third Party P,90233859,HARTWIG CARE LIMITED,175.89,17/02/2020
Delivery Units,Adults and Health,Other Agencies - Third Party P,90233861,HARTWIG CARE LIMITED,51.48,17/02/2020
Delivery Units,Adults and Health,Other Agencies - Third Party P,90233863,HARTWIG CARE LIMITED,240.24,17/02/2020
Delivery Units,Adults and Health,Other Agencies - Third Party P,90233864,HARTWIG CARE LIMITED,150.15,17/02/2020
Delivery Units,Adults and Health,Other Agencies - Third Party P,90233865,HARTWIG CARE LIMITED,68.64,17/02/2020
Delivery Units,Adults and Health,Other Agencies - Third Party P,90233866,HARTWIG CARE LIMITED,287.43,17/02/2020
Delivery Units,Adults and Health,Other Agencies - Third Party P,90233868,HARTWIG CARE LIMITED,120.12,17/02/2020
Delivery Units,Adults and Health,Other Agencies - Third Party P,90233869,HARTWIG CARE LIMITED,25.74,17/02/2020
Delivery Units,Adults and Health,Other Agencies - Third Party P,90233870,HARTWIG CARE LIMITED,265.98,17/02/2020
Delivery Units,Adults and Health,Other Agencies - Third Party P,90233871,HARTWIG CARE LIMITED,34.32,17/02/2020
Delivery Units,Adults and Health,Other Agencies - Third Party P,90233872,HARTWIG CARE LIMITED,90.09,17/02/2020
Delivery Units,Adults and Health,Other Agencies - Third Party P,90233873,HARTWIG CARE LIMITED,175.89,17/02/2020
Delivery Units,Adults and Health,Other Agencies - Third Party P,90233874,HARTWIG CARE LIMITED,171.6,17/02/2020
Delivery Units,Adults and Health,Other Agencies - Third Party P,90233875,HARTWIG CARE LIMITED,132.99,17/02/2020
Delivery Units,Adults and Health,Other Agencies - Third Party P,90233876,HARTWIG CARE LIMITED,77.22,17/02/2020
Delivery Units,Adults and Health,Other Agencies - Third Party P,90233877,HARTWIG CARE LIMITED,574.86,17/02/2020
Delivery Units,Adults and Health,Other Agencies - Third Party P,90233878,HARTWIG CARE LIMITED,34.32,17/02/2020
Delivery Units,Adults and Health,Other Agencies - Third Party P,90233879,HARTWIG CARE LIMITED,120.12,17/02/2020
Delivery Units,Adults and Health,Other Agencies - Third Party P,90233881,HARTWIG CARE LIMITED,132.99,17/02/2020
Delivery Units,Adults and Health,Other Agencies - Third Party P,90233883,HARTWIG CARE LIMITED,210.21,17/02/2020
Delivery Units,Adults and Health,Other Agencies - Third Party P,90233885,HARTWIG CARE LIMITED,321.75,17/02/2020
Delivery Units,Adults and Health,Other Agencies - Third Party P,90233886,HARTWIG CARE LIMITED,283.14,17/02/2020
Delivery Units,Adults and Health,Other Agencies - Third Party P,90233887,HARTWIG CARE LIMITED,622.05,17/02/2020
Delivery Units,Adults and Health,Other Agencies - Third Party P,90233888,HARTWIG CARE LIMITED,205.92,17/02/2020
Delivery Units,Adults and Health,Other Agencies - Third Party P,90233891,HARTWIG CARE LIMITED,120.12,17/02/2020
Delivery Units,Adults and Health,Other Agencies - Third Party P,90233892,HARTWIG CARE LIMITED,128.7,17/02/2020
Delivery Units,Adults and Health,Other Agencies - Third Party P,90233894,HARTWIG CARE LIMITED,132.99,17/02/2020
Delivery Units,Adults and Health,Other Agencies - Third Party P,90233895,HARTWIG CARE LIMITED,201.63,17/02/2020
Delivery Units,Adults and Health,Other Agencies - Third Party P,90233896,HARTWIG CARE LIMITED,64.35,17/02/2020
Delivery Units,Adults and Health,Other Agencies - Third Party P,90233897,HARTWIG CARE LIMITED,321.75,17/02/2020
Delivery Units,Adults and Health,Other Agencies - Third Party P,90233898,HARTWIG CARE LIMITED,132.99,17/02/2020
Delivery Units,Adults and Health,Other Agencies - Third Party P,90233901,HARTWIG CARE LIMITED,34.32,17/02/2020
Delivery Units,Adults and Health,Other Agencies - Third Party P,90233902,HARTWIG CARE LIMITED,21.45,17/02/2020
Delivery Units,Adults and Health,Other Agencies - Third Party P,90233904,HARTWIG CARE LIMITED,115.83,17/02/2020
Delivery Units,Adults and Health,Other Agencies - Third Party P,90233905,HARTWIG CARE LIMITED,51.48,17/02/2020
Delivery Units,Adults and Health,Other Agencies - Third Party P,90233908,HARTWIG CARE LIMITED,210.21,17/02/2020
Delivery Units,Adults and Health,Other Agencies - Third Party P,90233910,HARTWIG CARE LIMITED,77.22,17/02/2020
Delivery Units,Adults and Health,Other Agencies - Third Party P,90233911,HARTWIG CARE LIMITED,94.38,17/02/2020
Delivery Units,Adults and Health,Other Agencies - Third Party P,90233912,HARTWIG CARE LIMITED,604.89,17/02/2020
Delivery Units,Adults and Health,Other Agencies - Third Party P,90233914,HARTWIG CARE LIMITED,579.15,17/02/2020
Delivery Units,Adults and Health,Other Agencies - Third Party P,90233915,HARTWIG CARE LIMITED,163.02,17/02/2020
Delivery Units,Adults and Health,Other Agencies - Third Party P,90233916,HARTWIG CARE LIMITED,373.23,17/02/2020
Delivery Units,Adults and Health,Other Agencies - Third Party P,90233917,HARTWIG CARE LIMITED,270.27,17/02/2020
Delivery Units,Adults and Health,Other Agencies - Third Party P,90233919,HARTWIG CARE LIMITED,72.93,17/02/2020
Delivery Units,Adults and Health,Other Agencies - Third Party P,90233921,HARTWIG CARE LIMITED,85.8,17/02/2020
Delivery Units,Adults and Health,Other Agencies - Third Party P,90233922,HARTWIG CARE LIMITED,34.32,17/02/2020
Delivery Units,Adults and Health,Other Agencies - Third Party P,90233923,HARTWIG CARE LIMITED,188.76,17/02/2020
Delivery Units,Adults and Health,Other Agencies - Third Party P,90233924,HARTWIG CARE LIMITED,167.31,17/02/2020
Delivery Units,Adults and Health,Other Agencies - Third Party P,90233925,HARTWIG CARE LIMITED,167.31,17/02/2020
Delivery Units,Adults and Health,Other Agencies - Third Party P,90233926,HARTWIG CARE LIMITED,158.73,17/02/2020
Delivery Units,Adults and Health,Other Agencies - Third Party P,90233929,HARTWIG CARE LIMITED,111.54,17/02/2020
Delivery Units,Adults and Health,Other Agencies - Third Party P,90233930,HARTWIG CARE LIMITED,25.74,17/02/2020
Delivery Units,Adults and Health,Other Agencies - Third Party P,90233932,HARTWIG CARE LIMITED,180.18,17/02/2020
Delivery Units,Adults and Health,Other Agencies - Third Party P,90233933,HARTWIG CARE LIMITED,180.18,17/02/2020
Delivery Units,Adults and Health,Other Agencies - Third Party P,90233934,HARTWIG CARE LIMITED,540.54,17/02/2020
Delivery Units,Adults and Health,Other Agencies - Third Party P,90233935,HARTWIG CARE LIMITED,180.18,17/02/2020
Delivery Units,Adults and Health,Other Agencies - Third Party P,90233936,HARTWIG CARE LIMITED,85.8,17/02/2020
Delivery Units,Adults and Health,Other Agencies - Third Party P,90233937,HARTWIG CARE LIMITED,120.12,17/02/2020
Delivery Units,Adults and Health,Other Agencies - Third Party P,90233938,HARTWIG CARE LIMITED,300.3,17/02/2020
Delivery Units,Adults and Health,Other Agencies - Third Party P,90233939,HARTWIG CARE LIMITED,120.12,17/02/2020
Delivery Units,Adults and Health,Other Agencies - Third Party P,90233943,HARTWIG CARE LIMITED,308.88,17/02/2020
Delivery Units,Adults and Health,Other Agencies - Third Party P,90233944,HARTWIG CARE LIMITED,180.18,17/02/2020
Delivery Units,Adults and Health,Other Agencies - Third Party P,90233945,HARTWIG CARE LIMITED,300.3,17/02/2020
Delivery Units,Adults and Health,Other Agencies - Third Party P,90233946,HARTWIG CARE LIMITED,210.21,17/02/2020
Delivery Units,Adults and Health,Other Agencies - Third Party P,90233947,HARTWIG CARE LIMITED,158.73,17/02/2020
Delivery Units,Adults and Health,Other Agencies - Third Party P,90233948,HARTWIG CARE LIMITED,300.3,17/02/2020
Delivery Units,Adults and Health,Other Agencies - Third Party P,90233949,HARTWIG CARE LIMITED,90.09,17/02/2020
Delivery Units,Adults and Health,Other Agencies - Third Party P,90233950,HARTWIG CARE LIMITED,64.35,17/02/2020
Delivery Units,Adults and Health,Other Agencies - Third Party P,90233951,HARTWIG CARE LIMITED,330.33,17/02/2020
Delivery Units,Adults and Health,Other Agencies - Third Party P,90233952,HARTWIG CARE LIMITED,270.27,17/02/2020
Delivery Units,Adults and Health,Other Agencies - Third Party P,90233953,HARTWIG CARE LIMITED,175.89,17/02/2020
Delivery Units,Adults and Health,Other Agencies - Third Party P,90233956,HARTWIG CARE LIMITED,51.48,17/02/2020
Delivery Units,Adults and Health,Other Agencies - Third Party P,90233958,HARTWIG CARE LIMITED,270.27,17/02/2020
Delivery Units,Adults and Health,Other Agencies - Third Party P,90233959,HARTWIG CARE LIMITED,150.15,17/02/2020
Delivery Units,Adults and Health,Other Agencies - Third Party P,90233960,HARTWIG CARE LIMITED,72.93,17/02/2020
Delivery Units,Adults and Health,Other Agencies - Third Party P,90233961,HARTWIG CARE LIMITED,68.64,17/02/2020
Delivery Units,Adults and Health,Other Agencies - Third Party P,90233962,HARTWIG CARE LIMITED,34.32,17/02/2020
Delivery Units,Adults and Health,Other Agencies - Third Party P,90233963,HARTWIG CARE LIMITED,167.31,17/02/2020
Delivery Units,Adults and Health,Other Agencies - Third Party P,90233964,HARTWIG CARE LIMITED,287.43,17/02/2020
Delivery Units,Adults and Health,Other Agencies - Third Party P,90233965,HARTWIG CARE LIMITED,120.12,17/02/2020
Delivery Units,Adults and Health,Other Agencies - Third Party P,90233967,HARTWIG CARE LIMITED,120.12,17/02/2020
Delivery Units,Adults and Health,Other Agencies - Third Party P,90233968,HARTWIG CARE LIMITED,25.74,17/02/2020
Delivery Units,Adults and Health,Other Agencies - Third Party P,90233969,HARTWIG CARE LIMITED,261.69,17/02/2020
Delivery Units,Adults and Health,Other Agencies - Third Party P,90233970,HARTWIG CARE LIMITED,30.03,17/02/2020
Delivery Units,Adults and Health,Other Agencies - Third Party P,90233971,HARTWIG CARE LIMITED,85.8,17/02/2020
Delivery Units,Adults and Health,Other Agencies - Third Party P,90233972,HARTWIG CARE LIMITED,154.44,17/02/2020
Delivery Units,Adults and Health,Other Agencies - Third Party P,90233973,HARTWIG CARE LIMITED,197.34,17/02/2020
Delivery Units,Adults and Health,Other Agencies - Third Party P,90233974,HARTWIG CARE LIMITED,132.99,17/02/2020
Delivery Units,Adults and Health,Other Agencies - Third Party P,90233975,HARTWIG CARE LIMITED,570.57,17/02/2020
Delivery Units,Adults and Health,Other Agencies - Third Party P,90233976,HARTWIG CARE LIMITED,25.74,17/02/2020
Delivery Units,Adults and Health,Other Agencies - Third Party P,90233978,HARTWIG CARE LIMITED,150.15,17/02/2020
Delivery Units,Adults and Health,Other Agencies - Third Party P,90233980,HARTWIG CARE LIMITED,120.12,17/02/2020
Delivery Units,Adults and Health,Other Agencies - Third Party P,90233981,HARTWIG CARE LIMITED,205.92,17/02/2020
Delivery Units,Adults and Health,Other Agencies - Third Party P,90233983,HARTWIG CARE LIMITED,334.62,17/02/2020
Delivery Units,Adults and Health,Other Agencies - Third Party P,90233984,HARTWIG CARE LIMITED,617.76,17/02/2020
Delivery Units,Adults and Health,Other Agencies - Third Party P,90233985,HARTWIG CARE LIMITED,253.11,17/02/2020
Delivery Units,Adults and Health,Other Agencies - Third Party P,90233986,HARTWIG CARE LIMITED,64.35,17/02/2020
Delivery Units,Adults and Health,Other Agencies - Third Party P,90233989,HARTWIG CARE LIMITED,171.6,17/02/2020
Delivery Units,Adults and Health,Other Agencies - Third Party P,90233991,HARTWIG CARE LIMITED,107.25,17/02/2020
Delivery Units,Adults and Health,Other Agencies - Third Party P,90233992,HARTWIG CARE LIMITED,115.83,17/02/2020
Delivery Units,Adults and Health,Other Agencies - Third Party P,90233994,HARTWIG CARE LIMITED,137.28,17/02/2020
Delivery Units,Adults and Health,Other Agencies - Third Party P,90233995,HARTWIG CARE LIMITED,205.92,17/02/2020
Delivery Units,Adults and Health,Other Agencies - Third Party P,90233996,HARTWIG CARE LIMITED,64.35,17/02/2020
Delivery Units,Adults and Health,Other Agencies - Third Party P,90233997,HARTWIG CARE LIMITED,141.57,17/02/2020
Delivery Units,Adults and Health,Other Agencies - Third Party P,90234000,HARTWIG CARE LIMITED,38.61,17/02/2020
Delivery Units,Adults and Health,Other Agencies - Third Party P,90234001,HARTWIG CARE LIMITED,34.32,17/02/2020
Delivery Units,Adults and Health,Other Agencies - Third Party P,90234002,HARTWIG CARE LIMITED,115.83,17/02/2020
Delivery Units,Adults and Health,Other Agencies - Third Party P,90234003,HARTWIG CARE LIMITED,60.06,17/02/2020
Delivery Units,Adults and Health,Other Agencies - Third Party P,90234005,HARTWIG CARE LIMITED,218.79,17/02/2020
Delivery Units,Adults and Health,Other Agencies - Third Party P,90234007,HARTWIG CARE LIMITED,85.8,17/02/2020
Delivery Units,Adults and Health,Other Agencies - Third Party P,90234008,HARTWIG CARE LIMITED,94.38,17/02/2020
Delivery Units,Adults and Health,Other Agencies - Third Party P,90234009,HARTWIG CARE LIMITED,609.18,17/02/2020
Delivery Units,Adults and Health,Other Agencies - Third Party P,90234011,HARTWIG CARE LIMITED,639.21,17/02/2020
Delivery Units,Adults and Health,Other Agencies - Third Party P,90234012,HARTWIG CARE LIMITED,141.57,17/02/2020
Delivery Units,Adults and Health,Other Agencies - Third Party P,90234013,HARTWIG CARE LIMITED,210.21,17/02/2020
Delivery Units,Adults and Health,Other Agencies - Third Party P,90234014,HARTWIG CARE LIMITED,214.5,17/02/2020
